Number,Authority,Directorate / service where expenditure incurred,Department,Spending area,Expense type,Doc type,Doc ref,Cap / Rev,Supplier name,Supplier Name (Not Published),Address,Postcode,Cost centre,GL code,Order text (Not Published),Order Text (original - Not published),Supplier number,Posting date,Amount,Card Transaction
1,9040,Director Integrated Commissioning,Assistive Equipment,Head of Service Commissioning,Fees,ZN,2200367519,R,Nottingham Rehab Ltd - NRS Healthca,Nottingham Rehab Ltd - NRS Healthca,Cartwright Way,LE67 1UB,F21302,4809,Provision of Community Equipment,Provision of Community Equipment,1307671,16/01/2024,227642.41,No
2,9040,Director Integrated Commissioning,Assistive Equipment,Head of Service Commissioning,Fees,ZN,2200373885,R,Nottingham Rehab Ltd - NRS Healthca,Nottingham Rehab Ltd - NRS Healthca,Cartwright Way,LE67 1UB,F21302,4809,Provision of Community Equipment,Provision of Community Equipment,1307671,13/02/2024,2699.85,No
3,9040,Director Integrated Commissioning,Assistive Equipment,Head of Service Commissioning,Fees,ZN,2200373886,R,Nottingham Rehab Ltd - NRS Healthca,Nottingham Rehab Ltd - NRS Healthca,Cartwright Way,LE67 1UB,F21302,4809,Provision of Community Equipment,Provision of Community Equipment,1307671,13/02/2024,221830.11,No
4,9040,Director Integrated Commissioning,Pan London,Head of Service Commissioning,Creditors Control : AP GRIR,ZN,2200366821,R,Bevan Brittan Llp ,Bevan Brittan Llp,Kings Orchard,BS2 0HQ,F21091,1362,RBKC on behalf of the London Community,RBKC on behalf of the London Community,1232737,12/01/2024,2735,No
5,9040,Director Integrated Commissioning,Pan London,Head of Service Commissioning,Creditors Control : AP GRIR,ZN,2200367724,R,Bevan Brittan Llp ,Bevan Brittan Llp,Kings Orchard,BS2 0HQ,F21091,1362,RBKC on behalf of the London Community,RBKC on behalf of the London Community,1232737,17/01/2024,17234.5,No
6,9040,Director Integrated Commissioning,Pan London,Head of Service Commissioning,Creditors Control : AP GRIR,ZN,2200369297,R,Epiq Systems Ltd,Epiq Systems Ltd,Salesforce Tower,EC2N 4AY,F21091,1362,RBKC on behalf of the London Community,RBKC on behalf of the London Community,1311902,24/01/2024,5758.67,No
7,9040,Director Integrated Commissioning,Pan London,Head of Service Commissioning,Creditors Control : AP GRIR,ZN,2200373181,R,Sands Catering Ltd ,Sands Catering Ltd,"Unit 20, Kings Exchange",N7 9AH,F21091,1362,RBKC on behalf of London Community -,RBKC on behalf of London Community -,1231311,08/02/2024,672,No
8,9040,Director Adult Social Care,Equipment,Head of Service Care and Assessment RBKC,Payments to Voluntary bodies,ZN,2200369945,R,Doro AB,Doro AB,Units 3 & 4,BN22 8LD,F21720,5520,"December 2023 SIM card Online costs, 235","December 2023 SIM card Online costs, 235",1274450,26/01/2024,940,No
9,9040,Director Adult Social Care,Equipment,Head of Service Care and Assessment RBKC,Payments to Voluntary bodies,ZN,2200378419,R,Doro AB,Doro AB,Units 3 & 4,BN22 8LD,F21720,5520,January 2024 SIM card invoice x 227,January 2024 SIM card invoice x 227,1274450,05/03/2024,908,No
10,9040,Director Adult Social Care,Equipment,Head of Service Care and Assessment RBKC,Payments to Voluntary bodies,ZN,2200365458,R,Red Alert Ltd ,Red Alert Ltd,Unit 3 The Oak Trees Business,TN24 0SY,F21720,5520,Engineer for telecare installation,Engineer for telecare installation,1231238,05/01/2024,2572.5,No
11,9040,Director Adult Social Care,Equipment,Head of Service Care and Assessment RBKC,Payments to Voluntary bodies,ZN,2200372922,R,Red Alert Ltd ,Red Alert Ltd,Unit 3 The Oak Trees Business,TN24 0SY,F21720,5520,Engineer for telecare installation,Engineer for telecare installation,1231238,08/02/2024,2940,No
12,9040,Director Adult Social Care,Equipment,Head of Service Care and Assessment RBKC,Payments to Voluntary bodies,ZN,2200381804,R,Red Alert Ltd ,Red Alert Ltd,Unit 3 The Oak Trees Business,TN24 0SY,F21720,5520,Engineer for telecare installation,Engineer for telecare installation,1231238,19/03/2024,3307.5,No
13,9040,Director Adult Social Care,Equipment,Head of Service Care and Assessment RBKC,Payments to Voluntary bodies,ZN,2200374931,R,Tunstall Healthcare (UK) Ltd (Use 3012996),Tunstall Healthcare (UK) Ltd (Use,Whitley Lodge Doncaster Road,DN14 0HR,F21720,5520,200 x Lifeline DIGITAL disperse units +,200 x Lifeline DIGITAL disperse units +,1235586,16/02/2024,47000,No
14,9040,Planning and Place,Building Control,Support and Systems,Service Charges : Premises,ZN,2200383977,R,City of London ,City of London,PO Box 270,EC2P 2EJ,E26803,3980,Administering the LDSA Hub-19 BSR,Administering the LDSA Hub-19 BSR,1230793,28/03/2024,2888,No
15,9040,Planning and Place,Building Control,Support and Systems,Service Charges : Premises,ZN,2200379540,R,Sage Green Safety Ltd,Sage Green Safety Ltd,7,TQ6 0FQ,E26803,3980,M&E Obs for building control during,M&E Obs for building control during,1269431,11/03/2024,1680,No
16,9040,Planning and Place,Building Control,Support and Systems,Subscriptions,ZN,2200371994,R,"BSI Assurance UK Ltd (Membership, Subscriptions and Standards)","BSI Assurance UK Ltd (Membership,",389 Chiswick High Road,W4 4AL,E26804,5190,Membership Renewal Number: 41103661;,Membership Renewal Number: 41103661;,1232995,05/02/2024,1515,No
17,9040,Planning and Place,Building Control,Support and Systems,Professional Fees,ZN,2200373295,R,Redact Details,Bryan Packman Marcel,,,E26804,3241,Redact Details,Dangerous Structure costs supporting,1260368,09/02/2024,1632,No
18,9040,Planning and Place,Building Control,Support and Systems,Subscriptions,ZN,2200366831,R,Chartered Association ,Chartered Association,of Building Engineers,NN3 8NW,E26804,5190,Invoice number :300047839- CABE Company,Invoice number :300047839- CABE Company,1252686,12/01/2024,1250,No
19,9040,Planning and Place,Building Control,Support and Systems,Subscriptions,ZN,2200381452,R,LABC ,District Surveyors Association Limi,Vauxhall,SW8 2LE,E26804,5190,LABC membership for 2024-25.,LABC membership for 2024-25.,1234875,18/03/2024,2622.4,No
20,9040,Planning and Place,Building Control,Support and Systems,Training related expenditure,ZN,2200383832,R,LABC ,District Surveyors Association Limi,Vauxhall,SW8 2LE,E26804,3105,Invoice No: 216290-Booking Reference:,Invoice No: 216290-Booking Reference:,1234875,27/03/2024,4215,No
21,9040,Planning and Place,Building Control,Support and Systems,Training related expenditure,ZN,2200382779,R,Fire Protection Associati,Fire Protection Association,London Road,GL56 0RH,E26804,3105,LEVEL 3 CERTIFICATE IN FIRE RISK,LEVEL 3 CERTIFICATE IN FIRE RISK,1265018,22/03/2024,1592.9,No
22,9040,Planning and Place,Building Control,Support and Systems,Subscriptions,ZN,2200376748,R,London District Surveyors Association,London District Surveyors,c/o Ron Adams (Hon Treasurer),RM1 3SL,E26804,5190,LDSA Membership 2024 - 2025,LDSA Membership 2024 - 2025,1234927,26/02/2024,1250,No
23,9040,Planning and Place,Building Control,Support and Systems,Legal Costs,ZN,2200382805,R,Redact Details,Tazafar Saleem Asghar,,,E26804,5251,Redact Details,40017350 - LBO - RBKC Building Control,1287948,22/03/2024,1050,No
24,9040,Planning and Place,Building Control,Support and Systems,Hired and Contracted Services,ZN,2200376467,R,Wates Living Space (Maintenance) Ltd,Wates Living Space (Maintenance),Civic Centre,EN1 3EF,E26804,4861,Pembroke Road - Purchase of Props  for,Pembroke Road - Purchase of Props  for,1231445,23/02/2024,507350.97,No
25,9040,"Cleaner, Greener and Cultural Services",Parks and Open Spaces,Leisure and Parks,Creditors Control : AP GRIR,ZN,2200368848,R,C J Jordan & Son Ltd ,C J Jordan & Son Ltd,112 Churchfield Road,W3 6BY,E26160,1362,81712 - R & R Access w/c 1/1/2024,81712 - R & R Access w/c 1/1/2024,1233031,22/01/2024,584,No
26,9040,"Cleaner, Greener and Cultural Services",Parks and Open Spaces,Leisure and Parks,Creditors Control : AP GRIR,ZN,2200368850,R,C J Jordan & Son Ltd ,C J Jordan & Son Ltd,112 Churchfield Road,W3 6BY,E26160,1362,"81824 - KL X 2, LA X 2 & LB X 2 - R & R","81824 - KL X 2, LA X 2 & LB X 2 - R & R",1233031,22/01/2024,1236,No
27,9040,"Cleaner, Greener and Cultural Services",Parks and Open Spaces,Leisure and Parks,Creditors Control : AP GRIR,ZN,2200368851,R,C J Jordan & Son Ltd ,C J Jordan & Son Ltd,112 Churchfield Road,W3 6BY,E26160,1362,"81745 - CA,K & 5 X EE","81745 - CA,K & 5 X EE",1233031,22/01/2024,1786,No
28,9040,"Cleaner, Greener and Cultural Services",Parks and Open Spaces,Leisure and Parks,Creditors Control : AP GRIR,ZN,2200368853,R,C J Jordan & Son Ltd ,C J Jordan & Son Ltd,112 Churchfield Road,W3 6BY,E26160,1362,81903 - section C X 2 + Section L x 4,81903 - section C X 2 + Section L x 4,1233031,22/01/2024,1236,No
29,9040,"Cleaner, Greener and Cultural Services",Parks and Open Spaces,Leisure and Parks,Creditors Control : AP GRIR,ZN,2200368854,R,C J Jordan & Son Ltd ,C J Jordan & Son Ltd,112 Churchfield Road,W3 6BY,E26160,1362,81747 - January replacements,81747 - January replacements,1233031,22/01/2024,910,No
30,9040,"Cleaner, Greener and Cultural Services",Parks and Open Spaces,Leisure and Parks,Creditors Control : AP GRIR,ZN,2200370613,R,C J Jordan & Son Ltd ,C J Jordan & Son Ltd,112 Churchfield Road,W3 6BY,E26160,1362,"81974 - Sections R, N x 5, B x 2","81974 - Sections R, N x 5, B x 2",1233031,30/01/2024,1958,No
31,9040,"Cleaner, Greener and Cultural Services",Parks and Open Spaces,Leisure and Parks,Creditors Control : AP GRIR,ZN,2200376041,R,C J Jordan & Son Ltd ,C J Jordan & Son Ltd,112 Churchfield Road,W3 6BY,E26160,1362,82068 - Replace Dig Feb 2024 -,82068 - Replace Dig Feb 2024 -,1233031,21/02/2024,3409,No
32,9040,"Cleaner, Greener and Cultural Services",Parks and Open Spaces,Leisure and Parks,Creditors Control : AP GRIR,ZN,2200376144,R,C J Jordan & Son Ltd ,C J Jordan & Son Ltd,112 Churchfield Road,W3 6BY,E26160,1362,82219 - 130 x 3 (Hanwell),82219 - 130 x 3 (Hanwell),1233031,21/02/2024,618,No
33,9040,"Cleaner, Greener and Cultural Services",Parks and Open Spaces,Leisure and Parks,Creditors Control : AP GRIR,ZN,2200376146,R,C J Jordan & Son Ltd ,C J Jordan & Son Ltd,112 Churchfield Road,W3 6BY,E26160,1362,"82218 - M x 2, O x 4. H x 3, NA x 2","82218 - M x 2, O x 4. H x 3, NA x 2",1233031,21/02/2024,2524,No
34,9040,"Cleaner, Greener and Cultural Services",Parks and Open Spaces,Leisure and Parks,Creditors Control : AP GRIR,ZN,2200376149,R,C J Jordan & Son Ltd ,C J Jordan & Son Ltd,112 Churchfield Road,W3 6BY,E26160,1362,"82137 - EE x 4, H x 2, E x 3","82137 - EE x 4, H x 2, E x 3",1233031,21/02/2024,2370,No
35,9040,"Cleaner, Greener and Cultural Services",Parks and Open Spaces,Leisure and Parks,Creditors Control : AP GRIR,ZN,2200376152,R,C J Jordan & Son Ltd ,C J Jordan & Son Ltd,112 Churchfield Road,W3 6BY,E26160,1362,"82061 - R, L x4, H x 2, C x 2 Gunnesbury","82061 - R, L x4, H x 2, C x 2 Gunnesbury",1233031,21/02/2024,2336,No
36,9040,"Cleaner, Greener and Cultural Services",Parks and Open Spaces,Leisure and Parks,Creditors Control : AP GRIR,ZN,2200377281,R,C J Jordan & Son Ltd ,C J Jordan & Son Ltd,112 Churchfield Road,W3 6BY,E26160,1362,81147 - Replacement Memorial grave 324,81147 - Replacement Memorial grave 324,1233031,28/02/2024,1228,No
37,9040,"Cleaner, Greener and Cultural Services",Parks and Open Spaces,Leisure and Parks,Creditors Control : AP GRIR,ZN,2200377334,R,C J Jordan & Son Ltd ,C J Jordan & Son Ltd,112 Churchfield Road,W3 6BY,E26160,1362,"82309 - R & R NA x 4, N x 3 & F","82309 - R & R NA x 4, N x 3 & F",1233031,28/02/2024,2164,No
38,9040,"Cleaner, Greener and Cultural Services",Parks and Open Spaces,Leisure and Parks,Creditors Control : AP GRIR,ZN,2200381720,R,C J Jordan & Son Ltd ,C J Jordan & Son Ltd,112 Churchfield Road,W3 6BY,E26160,1362,81779 - Grave 86 repair Gunnesbury,81779 - Grave 86 repair Gunnesbury,1233031,19/03/2024,685,No
39,9040,"Cleaner, Greener and Cultural Services",Parks and Open Spaces,Leisure and Parks,Creditors Control : AP GRIR,ZN,2200382178,R,C J Jordan & Son Ltd ,C J Jordan & Son Ltd,112 Churchfield Road,W3 6BY,E26160,1362,82421 - Replace Dig March 2024,82421 - Replace Dig March 2024,1233031,21/03/2024,661,No
40,9040,"Cleaner, Greener and Cultural Services",Parks and Open Spaces,Leisure and Parks,Creditors Control : AP GRIR,ZN,2200382180,R,C J Jordan & Son Ltd ,C J Jordan & Son Ltd,112 Churchfield Road,W3 6BY,E26160,1362,82391 - R & R Access w/c 4/3/2024,82391 - R & R Access w/c 4/3/2024,1233031,21/03/2024,876,No
41,9040,"Cleaner, Greener and Cultural Services",Parks and Open Spaces,Leisure and Parks,Creditors Control : AP GRIR,ZN,2200382183,R,C J Jordan & Son Ltd ,C J Jordan & Son Ltd,112 Churchfield Road,W3 6BY,E26160,1362,82533 R & R Access w/c 18/3/2024,82533 R & R Access w/c 18/3/2024,1233031,21/03/2024,1494,No
42,9040,"Cleaner, Greener and Cultural Services",Parks and Open Spaces,Leisure and Parks,Creditors Control : AP GRIR,ZN,2200383864,R,C J Jordan & Son Ltd ,C J Jordan & Son Ltd,112 Churchfield Road,W3 6BY,E26160,1362,"82610 - F,N & JA","82610 - F,N & JA",1233031,27/03/2024,687,No
43,9040,"Cleaner, Greener and Cultural Services",Parks and Open Spaces,Leisure and Parks,Creditors Control : AP GRIR,ZN,2200383866,R,C J Jordan & Son Ltd ,C J Jordan & Son Ltd,112 Churchfield Road,W3 6BY,E26160,1362,"82463 - Mx3, F, KB x 3","82463 - Mx3, F, KB x 3",1233031,27/03/2024,1786,No
44,9040,"Cleaner, Greener and Cultural Services",Parks and Open Spaces,Leisure and Parks,Income: General Fees and Charges,KC,3110632911,R,Redacted,Doctor Nazieh Zaki,.,.,E26160,7192,Redact Details,,D000000023,18/03/2024,2354.25,No
45,9040,"Cleaner, Greener and Cultural Services",Parks and Open Spaces,Leisure and Parks,Creditors Control : AP GRIR,ZN,2200377322,R,Redact Details,J & J Learmonth,,,E26160,1362,Redact Details,Memorial bench for KARKHANEH,1234806,28/02/2024,1096,No
46,9040,"Cleaner, Greener and Cultural Services",Parks and Open Spaces,Leisure and Parks,Reactive Repairs : Grounds Maintenance,ZN,2200379431,R,London In Bloom,London In Bloom,124 Gravel Hill,CR0 5BF,E26160,3830,The Royal Borough of Kensington and,The Royal Borough of Kensington and,1234937,08/03/2024,1055,No
47,9040,"Cleaner, Greener and Cultural Services",Parks and Open Spaces,Leisure and Parks,Creditors Control : AP GRIR,ZN,2200371185,R,T/A Idverde ,Quadron Services Ltd T/A Idverde,3 Rye Hill Office Park Birming,CV5 9AB,E26160,1362,Cemeteries Core Contract - March 2024,Cemeteries Core Contract - March 2024,1231423,01/02/2024,44339.77,No
48,9040,"Cleaner, Greener and Cultural Services",Parks and Open Spaces,Leisure and Parks,Creditors Control : AP GRIR,ZN,2200376841,R,T/A Idverde ,Quadron Services Ltd T/A Idverde,3 Rye Hill Office Park Birming,CV5 9AB,E26160,1362,Cemeteries April 2024 Core Contract,Cemeteries April 2024 Core Contract,1231423,26/02/2024,50537.39,No
49,9040,"Cleaner, Greener and Cultural Services",Parks and Open Spaces,Leisure and Parks,Creditors Control : AP GRIR,ZN,2200376727,R,Redact Details,Scott Evans,,,E26160,1362,Redact Details,Invoice 1069 - 12-14th Feb,1231428,26/02/2024,1747.5,No
50,9040,Communities,Community Safety,Community Safety,Hired and Contracted Services,ZN,2200380944,R,City Of Westminster ,City Of Westminster,City Hall,SW1E 6QP,E26113,4861,RBKC Mortuaries Service Contribution for,RBKC Mortuaries Service Contribution for,1231771,15/03/2024,86874,No
51,9040,Communities,Community Safety,Community Safety,Hired and Contracted Services,ZN,2200382364,R,City Of Westminster ,City Of Westminster,City Hall,SW1E 6QP,E26113,4861,RBKC Mortuaries Service Contribution for,RBKC Mortuaries Service Contribution for,1231771,21/03/2024,85508.23,No
52,9040,Statutory Year-End Adjustments,Statutory Year End Accounting,Statutory Year-End Adjustments,Payments to main contractor,ZN,2200371918,C,24 Seven Companies Ltd,24 Seven Companies Ltd,Hall Farm Unit 2,CB10 1XA,Z50000,8102,320 Hurstway Walk  - Void property,320 Hurstway Walk  - Void property,1260952,05/02/2024,1000,No
53,9040,Statutory Year-End Adjustments,Statutory Year End Accounting,Statutory Year-End Adjustments,Payments to main contractor,ZN,2200372831,C,24 Seven Companies Ltd,24 Seven Companies Ltd,Hall Farm Unit 2,CB10 1XA,Z50000,8102,423 Barandon Walk - Void Clearance,423 Barandon Walk - Void Clearance,1260952,07/02/2024,1500,No
54,9040,Statutory Year-End Adjustments,Statutory Year End Accounting,Statutory Year-End Adjustments,Payments to main contractor,ZN,2200379253,C,24 Seven Companies Ltd,24 Seven Companies Ltd,Hall Farm Unit 2,CB10 1XA,Z50000,8102,31 Upper Camelford Walk - Void Clearance,31 Upper Camelford Walk - Void Clearance,1260952,07/03/2024,1000,No
55,9040,Statutory Year-End Adjustments,Statutory Year End Accounting,Statutory Year-End Adjustments,Payments to main contractor,ZN,2200379254,C,24 Seven Companies Ltd,24 Seven Companies Ltd,Hall Farm Unit 2,CB10 1XA,Z50000,8102,37 Clarendon Walk - Void Clearance,37 Clarendon Walk - Void Clearance,1260952,07/03/2024,1000,No
56,9040,Statutory Year-End Adjustments,Statutory Year End Accounting,Statutory Year-End Adjustments,Payments to main contractor,ZN,2200379255,C,24 Seven Companies Ltd,24 Seven Companies Ltd,Hall Farm Unit 2,CB10 1XA,Z50000,8102,550 Barandon Walk - Void Clearance,550 Barandon Walk - Void Clearance,1260952,07/03/2024,1000,No
57,9040,Statutory Year-End Adjustments,Statutory Year End Accounting,Statutory Year-End Adjustments,Payments to main contractor,ZN,2200379256,C,24 Seven Companies Ltd,24 Seven Companies Ltd,Hall Farm Unit 2,CB10 1XA,Z50000,8102,307 Testerton Walk - Void Clearance,307 Testerton Walk - Void Clearance,1260952,07/03/2024,1000,No
58,9040,Statutory Year-End Adjustments,Statutory Year End Accounting,Statutory Year-End Adjustments,Architects,ZN,2200372908,C,3Bm Ltd,3Bm Ltd,Addison School Annexe,W14 0DT,Z50000,8021,Design Services -Oxford Gds School ASD,Design Services -Oxford Gds School ASD,1232075,08/02/2024,7080.12,No
59,9040,Statutory Year-End Adjustments,Statutory Year End Accounting,Statutory Year-End Adjustments,Architects,ZN,2200372909,C,3Bm Ltd,3Bm Ltd,Addison School Annexe,W14 0DT,Z50000,8021,Design Services -Oxford Gds School ASD,Design Services -Oxford Gds School ASD,1232075,08/02/2024,7080.12,No
60,9040,Statutory Year-End Adjustments,Statutory Year End Accounting,Statutory Year-End Adjustments,Payments to main contractor,ZN,2200373249,C,3Bm Ltd,3Bm Ltd,Addison School Annexe,W14 0DT,Z50000,8102,All Saints Catholic School Planning,All Saints Catholic School Planning,1232075,08/02/2024,2667.5,No
61,9040,Statutory Year-End Adjustments,Statutory Year End Accounting,Statutory Year-End Adjustments,Payments to main contractor,ZN,2200373251,C,3Bm Ltd,3Bm Ltd,Addison School Annexe,W14 0DT,Z50000,8102,Bousfield School Feasability for 3,Bousfield School Feasability for 3,1232075,08/02/2024,1551,No
62,9040,Statutory Year-End Adjustments,Statutory Year End Accounting,Statutory Year-End Adjustments,Payments to main contractor,ZN,2200373252,C,3Bm Ltd,3Bm Ltd,Addison School Annexe,W14 0DT,Z50000,8102,All Saints Catholic School Planning,All Saints Catholic School Planning,1232075,08/02/2024,8058.96,No
63,9040,Statutory Year-End Adjustments,Statutory Year End Accounting,Statutory Year-End Adjustments,Payments to main contractor,ZN,2200373253,C,3Bm Ltd,3Bm Ltd,Addison School Annexe,W14 0DT,Z50000,8102,Bousfield School Feasability for 3,Bousfield School Feasability for 3,1232075,08/02/2024,4104,No
64,9040,Statutory Year-End Adjustments,Statutory Year End Accounting,Statutory Year-End Adjustments,Payments to main contractor,ZN,2200373254,C,3Bm Ltd,3Bm Ltd,Addison School Annexe,W14 0DT,Z50000,8102,Park Walk Primary Landscape Condition,Park Walk Primary Landscape Condition,1232075,08/02/2024,736.26,No
65,9040,Statutory Year-End Adjustments,Statutory Year End Accounting,Statutory Year-End Adjustments,Payments to main contractor,ZN,2200373255,C,3Bm Ltd,3Bm Ltd,Addison School Annexe,W14 0DT,Z50000,8102,All Saints Catholic School Planning,All Saints Catholic School Planning,1232075,08/02/2024,1925,No
66,9040,Statutory Year-End Adjustments,Statutory Year End Accounting,Statutory Year-End Adjustments,Payments to main contractor,ZN,2200373256,C,3Bm Ltd,3Bm Ltd,Addison School Annexe,W14 0DT,Z50000,8102,KAA Building Control - 23/24,KAA Building Control - 23/24,1232075,08/02/2024,2734,No
67,9040,Statutory Year-End Adjustments,Statutory Year End Accounting,Statutory Year-End Adjustments,Payments to main contractor,ZN,2200374616,C,3Bm Ltd,3Bm Ltd,Addison School Annexe,W14 0DT,Z50000,8102,St Charles Nursery Summer Works 2023,St Charles Nursery Summer Works 2023,1232075,15/02/2024,5500,No
68,9040,Statutory Year-End Adjustments,Statutory Year End Accounting,Statutory Year-End Adjustments,Payments to main contractor,ZN,2200374617,C,3Bm Ltd,3Bm Ltd,Addison School Annexe,W14 0DT,Z50000,8102,St Charles Nursery Summer Works 2023,St Charles Nursery Summer Works 2023,1232075,15/02/2024,3400,No
69,9040,Statutory Year-End Adjustments,Statutory Year End Accounting,Statutory Year-End Adjustments,Payments to main contractor,ZN,2200374618,C,3Bm Ltd,3Bm Ltd,Addison School Annexe,W14 0DT,Z50000,8102,St Charles Nursery Summer Works 2023,St Charles Nursery Summer Works 2023,1232075,15/02/2024,1375,No
70,9040,Statutory Year-End Adjustments,Statutory Year End Accounting,Statutory Year-End Adjustments,Architects,ZN,2200380587,C,3Bm Ltd,3Bm Ltd,Addison School Annexe,W14 0DT,Z50000,8021,Design Services -Oxford Gds School ASD,Design Services -Oxford Gds School ASD,1232075,13/03/2024,7080.12,No
71,9040,Statutory Year-End Adjustments,Statutory Year End Accounting,Statutory Year-End Adjustments,Surveyors,ZN,2200381710,C,3Bm Ltd,3Bm Ltd,Addison School Annexe,W14 0DT,Z50000,8010,30All Saints Catholic School - Acoustic,30All Saints Catholic School - Acoustic,1232075,19/03/2024,3080,No
72,9040,Statutory Year-End Adjustments,Statutory Year End Accounting,Statutory Year-End Adjustments,Payments to main contractor,ZN,2200381711,C,3Bm Ltd,3Bm Ltd,Addison School Annexe,W14 0DT,Z50000,8102,Kensington Aldridge Academy - Planning,Kensington Aldridge Academy - Planning,1232075,19/03/2024,768.16,No
73,9040,Statutory Year-End Adjustments,Statutory Year End Accounting,Statutory Year-End Adjustments,Payments to main contractor,ZN,2200369554,C,4i Solutions Ltd,4i Solutions Ltd,The Coach House Ashmead Mews,SE8 4DS,Z50000,8102,Cost and Programme Consultancy 2023,Cost and Programme Consultancy 2023,1232084,25/01/2024,15692.87,No
74,9040,Statutory Year-End Adjustments,Statutory Year End Accounting,Statutory Year-End Adjustments,Payments to main contractor,ZN,2200369555,C,4i Solutions Ltd,4i Solutions Ltd,The Coach House Ashmead Mews,SE8 4DS,Z50000,8102,Cost and Programme Consultancy 2023,Cost and Programme Consultancy 2023,1232084,25/01/2024,15942.56,No
75,9040,Statutory Year-End Adjustments,Statutory Year End Accounting,Statutory Year-End Adjustments,Payments to main contractor,ZN,2200369556,C,4i Solutions Ltd,4i Solutions Ltd,The Coach House Ashmead Mews,SE8 4DS,Z50000,8102,Cost and Programme Consultancy 2023,Cost and Programme Consultancy 2023,1232084,25/01/2024,12251.84,No
76,9040,Statutory Year-End Adjustments,Statutory Year End Accounting,Statutory Year-End Adjustments,Payments to main contractor,ZN,2200372323,C,4i Solutions Ltd,4i Solutions Ltd,The Coach House Ashmead Mews,SE8 4DS,Z50000,8102,Cost and Programme Consultancy 2023,Cost and Programme Consultancy 2023,1232084,06/02/2024,6749.84,No
77,9040,Statutory Year-End Adjustments,Statutory Year End Accounting,Statutory Year-End Adjustments,Site Works,ZN,2200366548,C,A N Contract Service Ltd,A N Contract Service Ltd,78 York Street,W1H 1DP,Z50000,8130,Park Walk Primary School High level Tile,Park Walk Primary School High level Tile,1232095,11/01/2024,3311.75,No
78,9040,Statutory Year-End Adjustments,Statutory Year End Accounting,Statutory Year-End Adjustments,Site Works,ZN,2200366549,C,A N Contract Service Ltd,A N Contract Service Ltd,78 York Street,W1H 1DP,Z50000,8130,Park Walk Primary School Heating Works,Park Walk Primary School Heating Works,1232095,11/01/2024,2465,No
79,9040,Statutory Year-End Adjustments,Statutory Year End Accounting,Statutory Year-End Adjustments,Site Works,ZN,2200366551,C,A N Contract Service Ltd,A N Contract Service Ltd,78 York Street,W1H 1DP,Z50000,8130,Park Walk Primary School: Wall and Gate,Park Walk Primary School: Wall and Gate,1232095,11/01/2024,2455,No
80,9040,Statutory Year-End Adjustments,Statutory Year End Accounting,Statutory Year-End Adjustments,Site Works,ZN,2200366554,C,A N Contract Service Ltd,A N Contract Service Ltd,78 York Street,W1H 1DP,Z50000,8130,Park Walk School Front Elevation Signage,Park Walk School Front Elevation Signage,1232095,11/01/2024,1723,No
81,9040,Statutory Year-End Adjustments,Statutory Year End Accounting,Statutory Year-End Adjustments,Site Works,ZN,2200369882,C,A N Contract Service Ltd,A N Contract Service Ltd,78 York Street,W1H 1DP,Z50000,8130,"Bousfield School To supply, deliver and","Bousfield School To supply, deliver and",1232095,26/01/2024,8966,No
82,9040,Statutory Year-End Adjustments,Statutory Year End Accounting,Statutory Year-End Adjustments,Site Works,ZN,2200369983,C,A N Contract Service Ltd,A N Contract Service Ltd,78 York Street,W1H 1DP,Z50000,8130,Colville School: secure the rot damage,Colville School: secure the rot damage,1232095,26/01/2024,1668,No
83,9040,Statutory Year-End Adjustments,Statutory Year End Accounting,Statutory Year-End Adjustments,Site Works,ZN,2200371305,C,A N Contract Service Ltd,A N Contract Service Ltd,78 York Street,W1H 1DP,Z50000,8130,54 St Helens Gardens - Security Services,54 St Helens Gardens - Security Services,1232095,01/02/2024,894.48,No
84,9040,Statutory Year-End Adjustments,Statutory Year End Accounting,Statutory Year-End Adjustments,Site Works,ZN,2200374944,C,A N Contract Service Ltd,A N Contract Service Ltd,78 York Street,W1H 1DP,Z50000,8130,"Bousfield School: To supply, deliver and","Bousfield School: To supply, deliver and",1232095,16/02/2024,6611,No
85,9040,Statutory Year-End Adjustments,Statutory Year End Accounting,Statutory Year-End Adjustments,Site Works,ZN,2200374945,C,A N Contract Service Ltd,A N Contract Service Ltd,78 York Street,W1H 1DP,Z50000,8130,Bousfield School: To carry out temporary,Bousfield School: To carry out temporary,1232095,16/02/2024,7801,No
86,9040,Statutory Year-End Adjustments,Statutory Year End Accounting,Statutory Year-End Adjustments,Site Works,ZN,2200375511,C,A N Contract Service Ltd,A N Contract Service Ltd,78 York Street,W1H 1DP,Z50000,8130,Bevington School: Repairs to concrete,Bevington School: Repairs to concrete,1232095,20/02/2024,4773,No
87,9040,Statutory Year-End Adjustments,Statutory Year End Accounting,Statutory Year-End Adjustments,Site Works,ZN,2200375512,C,A N Contract Service Ltd,A N Contract Service Ltd,78 York Street,W1H 1DP,Z50000,8130,Thomas Jones: Enabling works to validate,Thomas Jones: Enabling works to validate,1232095,20/02/2024,1954,No
88,9040,Statutory Year-End Adjustments,Statutory Year End Accounting,Statutory Year-End Adjustments,Payments to sub contractor,ZN,2200377420,C,A N Contract Service Ltd,A N Contract Service Ltd,78 York Street,W1H 1DP,Z50000,8103,C.KJ10204.23 - Swinbrook Estate -,C.KJ10204.23 - Swinbrook Estate -,1232095,28/02/2024,536,No
89,9040,Statutory Year-End Adjustments,Statutory Year End Accounting,Statutory Year-End Adjustments,Site Works,ZN,2200379663,C,A N Contract Service Ltd,A N Contract Service Ltd,78 York Street,W1H 1DP,Z50000,8130,COTH: To carry out emergency works to,COTH: To carry out emergency works to,1232095,11/03/2024,6198,No
90,9040,Statutory Year-End Adjustments,Statutory Year End Accounting,Statutory Year-End Adjustments,Other Consultants,ZN,2200367512,C,AECOM Ltd,AECOM Ltd,Algate Tower,E1 8FA,Z50000,8007,Lot 4 � Consultancy for Soil Remediation,Lot 4 � Consultancy for Soil Remediation,1271122,16/01/2024,7050,No
91,9040,Statutory Year-End Adjustments,Statutory Year End Accounting,Statutory Year-End Adjustments,Other Consultants,ZN,2200375491,C,AECOM Ltd,AECOM Ltd,Algate Tower,E1 8FA,Z50000,8007,Lot 4 � Consultancy for Soil Remediation,Lot 4 � Consultancy for Soil Remediation,1271122,20/02/2024,3250,No
92,9040,Statutory Year-End Adjustments,Statutory Year End Accounting,Statutory Year-End Adjustments,Payments to main contractor,ZN,2200381404,C,AJ Mobility Ltd,AJ Mobility Ltd,AJ Mobility Ltd,BN27 3JF,Z50000,8102,"Flat 11, 1 Nursery Lane","Flat 11, 1 Nursery Lane",1305823,18/03/2024,749,No
93,9040,Statutory Year-End Adjustments,Statutory Year End Accounting,Statutory Year-End Adjustments,Professional Fees : Non Legal,ZN,2200368043,C,Akdesign Consultants Ltd,AKDesign Consultants Ltd,13 Dobbins Lane,HP22 6BU,Z50000,8017,Scheme 16 | Block 10 Elm Park Gardens,Scheme 16 | Block 10 Elm Park Gardens,1263929,18/01/2024,2000,No
94,9040,Statutory Year-End Adjustments,Statutory Year End Accounting,Statutory Year-End Adjustments,Payments to sub contractor,ZN,2200372134,C,Akdesign Consultants Ltd,AKDesign Consultants Ltd,13 Dobbins Lane,HP22 6BU,Z50000,8103,Scheme 16 | Asses blk 56 and the,Scheme 16 | Asses blk 56 and the,1263929,05/02/2024,755,No
95,9040,Statutory Year-End Adjustments,Statutory Year End Accounting,Statutory Year-End Adjustments,Professional Fees : Non Legal,ZN,2200372995,C,Akdesign Consultants Ltd,AKDesign Consultants Ltd,13 Dobbins Lane,HP22 6BU,Z50000,8017,"Scheme 16 | My fee to attend site,","Scheme 16 | My fee to attend site,",1263929,08/02/2024,650,No
96,9040,Statutory Year-End Adjustments,Statutory Year End Accounting,Statutory Year-End Adjustments,Special Maintenance,ZN,2200377616,C,AO Business,AO Business,5a The Parklands,BL6 4SD,Z50000,8321,Void & Internal Refurbs Works -,Void & Internal Refurbs Works -,1232416,29/02/2024,4712.5,No
97,9040,Statutory Year-End Adjustments,Statutory Year End Accounting,Statutory Year-End Adjustments,Special Maintenance,ZN,2200377618,C,AO Business,AO Business,5a The Parklands,BL6 4SD,Z50000,8321,Void & Internal Refurbs Works -,Void & Internal Refurbs Works -,1232416,29/02/2024,4991.67,No
98,9040,Statutory Year-End Adjustments,Statutory Year End Accounting,Statutory Year-End Adjustments,Special Maintenance,ZN,2200383877,C,AO Business,AO Business,5a The Parklands,BL6 4SD,Z50000,8321,Void & Internal Refurbs Works -,Void & Internal Refurbs Works -,1232416,27/03/2024,8579.16,No
99,9040,Statutory Year-End Adjustments,Statutory Year End Accounting,Statutory Year-End Adjustments,Other Consultants,ZN,2200368474,C,Access UK Ltd,Access UK Ltd,The Old School,CO7 6LZ,Z50000,8007,Mosaic Citizen Portal Implementation -,Mosaic Citizen Portal Implementation -,1287644,19/01/2024,26250,No
100,9040,Statutory Year-End Adjustments,Statutory Year End Accounting,Statutory Year-End Adjustments,Other Consultants,ZN,2200374930,C,Access UK Ltd,Access UK Ltd,The Old School,CO7 6LZ,Z50000,8007,Mosaic Citizen Portal - Implementation,Mosaic Citizen Portal - Implementation,1287644,16/02/2024,11250,No
101,9040,Statutory Year-End Adjustments,Statutory Year End Accounting,Statutory Year-End Adjustments,Other Consultants,ZN,2200381938,C,Access UK Ltd,Access UK Ltd,The Old School,CO7 6LZ,Z50000,8007,Mosaic Citizen Portal - Implementation,Mosaic Citizen Portal - Implementation,1287644,20/03/2024,15000,No
102,9040,Statutory Year-End Adjustments,Statutory Year End Accounting,Statutory Year-End Adjustments,Payments to main contractor,ZN,2200371031,C,All Urban Limited,All Urban Limited,Aizelwoods Mill,S3 8GG,Z50000,8102,Supply and delivery of 2 x atlantida,Supply and delivery of 2 x atlantida,1294850,31/01/2024,5270,No
103,9040,Statutory Year-End Adjustments,Statutory Year End Accounting,Statutory Year-End Adjustments,Payments to main contractor,ZN,2200365032,C,Amber Construction Services Ltd,Amber Construction Services Ltd,Unit 5 Rippleside Commercial,IG11 0RJ,Z50000,8102,Contract Sum - Scheme 24 - Swinbrook,Contract Sum - Scheme 24 - Swinbrook,1231168,03/01/2024,322719.49,No
104,9040,Statutory Year-End Adjustments,Statutory Year End Accounting,Statutory Year-End Adjustments,Payments to main contractor,ZN,2200365033,C,Amber Construction Services Ltd,Amber Construction Services Ltd,Unit 5 Rippleside Commercial,IG11 0RJ,Z50000,8102,Contract Sum - Scheme 11 - Henry Dickens,Contract Sum - Scheme 11 - Henry Dickens,1231168,03/01/2024,591905.57,No
105,9040,Statutory Year-End Adjustments,Statutory Year End Accounting,Statutory Year-End Adjustments,Payments to main contractor,ZN,2200365448,C,Amber Construction Services Ltd,Amber Construction Services Ltd,Unit 5 Rippleside Commercial,IG11 0RJ,Z50000,8102,Contract Sum - Scheme 24 - Swinbrook,Contract Sum - Scheme 24 - Swinbrook,1231168,05/01/2024,268225.67,No
106,9040,Statutory Year-End Adjustments,Statutory Year End Accounting,Statutory Year-End Adjustments,Payments to main contractor,ZN,2200365450,C,Amber Construction Services Ltd,Amber Construction Services Ltd,Unit 5 Rippleside Commercial,IG11 0RJ,Z50000,8102,Contract Sum - Scheme 11 - Henry Dickens,Contract Sum - Scheme 11 - Henry Dickens,1231168,05/01/2024,195977.84,No
107,9040,Statutory Year-End Adjustments,Statutory Year End Accounting,Statutory Year-End Adjustments,Payments to main contractor,ZN,2200370841,C,Amber Construction Services Ltd,Amber Construction Services Ltd,Unit 5 Rippleside Commercial,IG11 0RJ,Z50000,8102,Lot 1 Roof Improvement Works: Main,Lot 1 Roof Improvement Works: Main,1231168,31/01/2024,197559.51,No
108,9040,Statutory Year-End Adjustments,Statutory Year End Accounting,Statutory Year-End Adjustments,Payments to main contractor,ZN,2200376034,C,Amber Construction Services Ltd,Amber Construction Services Ltd,Unit 5 Rippleside Commercial,IG11 0RJ,Z50000,8102,Contract Sum - Scheme 24 - Swinbrook,Contract Sum - Scheme 24 - Swinbrook,1231168,21/02/2024,616097.66,No
109,9040,Statutory Year-End Adjustments,Statutory Year End Accounting,Statutory Year-End Adjustments,Payments to main contractor,ZN,2200376035,C,Amber Construction Services Ltd,Amber Construction Services Ltd,Unit 5 Rippleside Commercial,IG11 0RJ,Z50000,8102,Contract Sum - Scheme 11 - Henry Dickens,Contract Sum - Scheme 11 - Henry Dickens,1231168,21/02/2024,433329.68,No
110,9040,Statutory Year-End Adjustments,Statutory Year End Accounting,Statutory Year-End Adjustments,Payments to main contractor,ZN,2200379195,C,Amber Construction Services Ltd,Amber Construction Services Ltd,Unit 5 Rippleside Commercial,IG11 0RJ,Z50000,8102,Lot 1 Roof Improvement Works: Main,Lot 1 Roof Improvement Works: Main,1231168,07/03/2024,139825.58,No
111,9040,Statutory Year-End Adjustments,Statutory Year End Accounting,Statutory Year-End Adjustments,Payments to main contractor,ZN,2200379632,C,Amber Construction Services Ltd,Amber Construction Services Ltd,Unit 5 Rippleside Commercial,IG11 0RJ,Z50000,8102,Contract Sum - Scheme 24 - Swinbrook,Contract Sum - Scheme 24 - Swinbrook,1231168,11/03/2024,637358.95,No
112,9040,Statutory Year-End Adjustments,Statutory Year End Accounting,Statutory Year-End Adjustments,Payments to main contractor,ZN,2200382536,C,Amber Construction Services Ltd,Amber Construction Services Ltd,Unit 5 Rippleside Commercial,IG11 0RJ,Z50000,8102,Contract Sum - Scheme 11 - Henry Dickens,Contract Sum - Scheme 11 - Henry Dickens,1231168,22/03/2024,304860.12,No
113,9040,Statutory Year-End Adjustments,Statutory Year End Accounting,Statutory Year-End Adjustments,Payments to main contractor,ZN,2200383847,C,Amber Construction Services Ltd,Amber Construction Services Ltd,Unit 5 Rippleside Commercial,IG11 0RJ,Z50000,8102,Lot 1 Roof Improvement Works: Main,Lot 1 Roof Improvement Works: Main,1231168,27/03/2024,299635.89,No
114,9040,Statutory Year-End Adjustments,Statutory Year End Accounting,Statutory Year-End Adjustments,Payments to main contractor,ZN,2200384135,C,Amber Construction Services Ltd,Amber Construction Services Ltd,Unit 5 Rippleside Commercial,IG11 0RJ,Z50000,8102,Contract Sum - Scheme 24 - Swinbrook,Contract Sum - Scheme 24 - Swinbrook,1231168,28/03/2024,692372.21,No
115,9040,Statutory Year-End Adjustments,Statutory Year End Accounting,Statutory Year-End Adjustments,Payments to main contractor,ZN,2200365160,C,Aquaneed Ltd,Aquaneed Ltd,"1, THE GREEN BUSINESS CENTRE",TW18 3AL,Z50000,8102,20 Binbrook House,20 Binbrook House,1260944,03/01/2024,8333.69,No
116,9040,Statutory Year-End Adjustments,Statutory Year End Accounting,Statutory Year-End Adjustments,Payments to main contractor,ZN,2200376558,C,Aquaneed Ltd,Aquaneed Ltd,"1, THE GREEN BUSINESS CENTRE",TW18 3AL,Z50000,8102,1 Treverton House,1 Treverton House,1260944,23/02/2024,7816.6,No
117,9040,Statutory Year-End Adjustments,Statutory Year End Accounting,Statutory Year-End Adjustments,Payments to main contractor,ZN,2200376559,C,Aquaneed Ltd,Aquaneed Ltd,"1, THE GREEN BUSINESS CENTRE",TW18 3AL,Z50000,8102,15 Adair Tower,15 Adair Tower,1260944,23/02/2024,7894.49,No
118,9040,Statutory Year-End Adjustments,Statutory Year End Accounting,Statutory Year-End Adjustments,Payments to main contractor,ZN,2200380189,C,Aquaneed Ltd,Aquaneed Ltd,"1, THE GREEN BUSINESS CENTRE",TW18 3AL,Z50000,8102,59 Whitstable House,59 Whitstable House,1260944,12/03/2024,6757.42,No
119,9040,Statutory Year-End Adjustments,Statutory Year End Accounting,Statutory Year-End Adjustments,Payments to main contractor,ZN,2200380792,C,Aquaneed Ltd,Aquaneed Ltd,"1, THE GREEN BUSINESS CENTRE",TW18 3AL,Z50000,8102,17 Blore House,17 Blore House,1260944,14/03/2024,10653.09,No
120,9040,Statutory Year-End Adjustments,Statutory Year End Accounting,Statutory Year-End Adjustments,Payments to main contractor,ZN,2200381120,C,Aquaneed Ltd,Aquaneed Ltd,"1, THE GREEN BUSINESS CENTRE",TW18 3AL,Z50000,8102,39 Carton House,39 Carton House,1260944,15/03/2024,6958.33,No
121,9040,Statutory Year-End Adjustments,Statutory Year End Accounting,Statutory Year-End Adjustments,Engineering Consultancy Fees,ZN,2200375524,C,Arbtech Consulting Ltd,Arbtech Consulting Ltd,3 Well House,CH4 0DH,Z50000,8043,Undertake tree survey and ecology,Undertake tree survey and ecology,1310887,20/02/2024,939,No
122,9040,Statutory Year-End Adjustments,Statutory Year End Accounting,Statutory Year-End Adjustments,Engineering Consultancy Fees,ZN,2200375525,C,Arbtech Consulting Ltd,Arbtech Consulting Ltd,3 Well House,CH4 0DH,Z50000,8043,Undertake tree survey and ecology,Undertake tree survey and ecology,1310887,20/02/2024,889,No
123,9040,Statutory Year-End Adjustments,Statutory Year End Accounting,Statutory Year-End Adjustments,Design Consultant,ZN,2200382874,C,Arcadis Consulting (UK) Ltd ,Arcadis Consulting (UK) Ltd,HCL House St. Mellons Business,CF3 0EY,Z50000,8004,Chelsea Bridge - investigatory works as,Chelsea Bridge - investigatory works as,1232429,25/03/2024,11324.54,No
124,9040,Statutory Year-End Adjustments,Statutory Year End Accounting,Statutory Year-End Adjustments,Site Works,ZN,2200374093,C,Arcadis Llp ,Arcadis Llp,Po Box 307,M60 3NT,Z50000,8130,Fox Primary School - Latent Defect,Fox Primary School - Latent Defect,1232430,13/02/2024,3113,No
125,9040,Statutory Year-End Adjustments,Statutory Year End Accounting,Statutory Year-End Adjustments,Other Consultants,ZN,2200374097,C,Arcadis Llp ,Arcadis Llp,Po Box 307,M60 3NT,Z50000,8007,Acklam Road -Additional Fees and,Acklam Road -Additional Fees and,1232430,13/02/2024,10000,No
126,9040,Statutory Year-End Adjustments,Statutory Year End Accounting,Statutory Year-End Adjustments,Other Consultants,ZN,2200374098,C,Arcadis Llp ,Arcadis Llp,Po Box 307,M60 3NT,Z50000,8007,Acklam Road - reinstatement values,Acklam Road - reinstatement values,1232430,13/02/2024,2000,No
127,9040,Statutory Year-End Adjustments,Statutory Year End Accounting,Statutory Year-End Adjustments,Other Consultants,ZN,2200377536,C,Arcadis Llp ,Arcadis Llp,Po Box 307,M60 3NT,Z50000,8007,Acklam Road -Additional Fees and,Acklam Road -Additional Fees and,1232430,29/02/2024,10000,No
128,9040,Statutory Year-End Adjustments,Statutory Year End Accounting,Statutory Year-End Adjustments,Other Consultants,ZN,2200379420,C,Arcadis Llp ,Arcadis Llp,Po Box 307,M60 3NT,Z50000,8007,Fox Primary School - Fee Claim Jan 24,Fox Primary School - Fee Claim Jan 24,1232430,08/03/2024,1680,No
129,9040,Statutory Year-End Adjustments,Statutory Year End Accounting,Statutory Year-End Adjustments,Creditors Control : AP GRIR,ZN,2200382711,C,Architectural Plants,Architectural Plants,Stane Street,RH20 1DJ,Z50000,1362,Med border planting,Med border planting,1318518,22/03/2024,1357.92,No
130,9040,Statutory Year-End Adjustments,Statutory Year End Accounting,Statutory Year-End Adjustments,Special Maintenance,ZN,2200364951,C,Archway Sheet Metal Works Limited,Archway Sheet Metal Works Limited,Unit 13,N11 1JL,Z50000,8321,Installation of new metal staircase to,Installation of new metal staircase to,1301025,02/01/2024,15200,No
131,9040,Statutory Year-End Adjustments,Statutory Year End Accounting,Statutory Year-End Adjustments,Special Maintenance,ZN,2200368353,C,Archway Sheet Metal Works Limited,Archway Sheet Metal Works Limited,Unit 13,N11 1JL,Z50000,8321,Installation of new metal staircase to,Installation of new metal staircase to,1301025,19/01/2024,12600,No
132,9040,Statutory Year-End Adjustments,Statutory Year End Accounting,Statutory Year-End Adjustments,Special Maintenance,ZN,2200368356,C,Archway Sheet Metal Works Limited,Archway Sheet Metal Works Limited,Unit 13,N11 1JL,Z50000,8321,Installation of new metal staircase to,Installation of new metal staircase to,1301025,19/01/2024,9450,No
133,9040,Statutory Year-End Adjustments,Statutory Year End Accounting,Statutory Year-End Adjustments,Creditors Control : AP GRIR,ZN,2200379069,C,Arcus Consulting Llp,Arcus Consulting LLP,3rd Floor,M33 7AR,Z50000,1362,St Helens Gardens New Homes - Employee,St Helens Gardens New Homes - Employee,1265536,07/03/2024,46063.75,No
134,9040,Statutory Year-End Adjustments,Statutory Year End Accounting,Statutory Year-End Adjustments,Other Consultants,ZN,2200380334,C,Arcus Consulting Llp,Arcus Consulting LLP,3rd Floor,M33 7AR,Z50000,8007,NEW BUILD HOMES PHASE ONE - Professional,NEW BUILD HOMES PHASE ONE - Professional,1265536,13/03/2024,9125,No
135,9040,Statutory Year-End Adjustments,Statutory Year End Accounting,Statutory Year-End Adjustments,Other Consultants,ZN,2200380336,C,Arcus Consulting Llp,Arcus Consulting LLP,3rd Floor,M33 7AR,Z50000,8007,NEW BUILD HOMES PHASE ONE - Professional,NEW BUILD HOMES PHASE ONE - Professional,1265536,13/03/2024,5900,No
136,9040,Statutory Year-End Adjustments,Statutory Year End Accounting,Statutory Year-End Adjustments,Other Consultants,ZN,2200380337,C,Arcus Consulting Llp,Arcus Consulting LLP,3rd Floor,M33 7AR,Z50000,8007,NEW BUILD HOMES PHASE ONE - Professional,NEW BUILD HOMES PHASE ONE - Professional,1265536,13/03/2024,7332,No
137,9040,Statutory Year-End Adjustments,Statutory Year End Accounting,Statutory Year-End Adjustments,Site Works,ZN,2200366033,C,Ark Build Plc ,Ark Build Plc,Unit 12 Loughton Business Cent,IG10 3FL,Z50000,8130,54 St Helens � New Homes Project,54 St Helens � New Homes Project,1231173,09/01/2024,720572.55,No
138,9040,Statutory Year-End Adjustments,Statutory Year End Accounting,Statutory Year-End Adjustments,Other Consultants,ZN,2200366790,C,Ark Build Plc ,Ark Build Plc,Unit 12 Loughton Business Cent,IG10 3FL,Z50000,8007,Maxilla Project- Site Hoarding & Design,Maxilla Project- Site Hoarding & Design,1231173,12/01/2024,7593.24,No
139,9040,Statutory Year-End Adjustments,Statutory Year End Accounting,Statutory Year-End Adjustments,Site Works,ZN,2200368711,C,Ark Build Plc ,Ark Build Plc,Unit 12 Loughton Business Cent,IG10 3FL,Z50000,8130,54 St Helens � New Homes Project,54 St Helens � New Homes Project,1231173,22/01/2024,720000,No
140,9040,Statutory Year-End Adjustments,Statutory Year End Accounting,Statutory Year-End Adjustments,Site Works,ZN,2200369024,C,Ark Build Plc ,Ark Build Plc,Unit 12 Loughton Business Cent,IG10 3FL,Z50000,8130,St  Helen Gardens  - New Homes Project,St  Helen Gardens  - New Homes Project,1231173,23/01/2024,572.55,No
141,9040,Statutory Year-End Adjustments,Statutory Year End Accounting,Statutory Year-End Adjustments,Payments to main contractor,ZN,2200365842,C,Ash Contracting Limited,Ash Contracting Limited,4,ME19 5AA,Z50000,8102,Provision of building works at Park,Provision of building works at Park,1315733,08/01/2024,182107.56,No
142,9040,Statutory Year-End Adjustments,Statutory Year End Accounting,Statutory Year-End Adjustments,Payments to main contractor,ZN,2200369585,C,Ash Contracting Limited,Ash Contracting Limited,4,ME19 5AA,Z50000,8102,Additional works for CCHS project,Additional works for CCHS project,1315733,25/01/2024,16327.82,No
143,9040,Statutory Year-End Adjustments,Statutory Year End Accounting,Statutory Year-End Adjustments,Payments to main contractor,ZN,2200372273,C,Ash Contracting Limited,Ash Contracting Limited,4,ME19 5AA,Z50000,8102,Provision of building works at Park,Provision of building works at Park,1315733,06/02/2024,18252.91,No
144,9040,Statutory Year-End Adjustments,Statutory Year End Accounting,Statutory Year-End Adjustments,Payments to main contractor,ZN,2200381750,C,Ash Contracting Limited,Ash Contracting Limited,4,ME19 5AA,Z50000,8102,Additional works for CCHS project,Additional works for CCHS project,1315733,19/03/2024,1254.97,No
145,9040,Statutory Year-End Adjustments,Statutory Year End Accounting,Statutory Year-End Adjustments,Payments to main contractor,ZN,2200381755,C,Ash Contracting Limited,Ash Contracting Limited,4,ME19 5AA,Z50000,8102,Provision of building works at Park,Provision of building works at Park,1315733,19/03/2024,19541.41,No
146,9040,Statutory Year-End Adjustments,Statutory Year End Accounting,Statutory Year-End Adjustments,Professional Fees : Non Legal,ZN,2200364850,C,Ashfords Llp ,Ashfords Llp,Ashford House,EX1 3LH,Z50000,8017,Silchester Estate - Materials Off Site -,Silchester Estate - Materials Off Site -,1232627,02/01/2024,984,No
147,9040,Statutory Year-End Adjustments,Statutory Year End Accounting,Statutory Year-End Adjustments,Professional Fees : Non Legal,ZN,2200364856,C,Ashfords Llp ,Ashfords Llp,Ashford House,EX1 3LH,Z50000,8017,Project Union - Legal Services,Project Union - Legal Services,1232627,02/01/2024,5280,No
148,9040,Statutory Year-End Adjustments,Statutory Year End Accounting,Statutory Year-End Adjustments,Other Consultants,ZN,2200364910,C,Ashfords Llp ,Ashfords Llp,Ashford House,EX1 3LH,Z50000,8007,"Procurement Route for Lots 1, 2, and 3","Procurement Route for Lots 1, 2, and 3",1232627,02/01/2024,816,No
149,9040,Statutory Year-End Adjustments,Statutory Year End Accounting,Statutory Year-End Adjustments,Legal Fees & expenses,ZN,2200365871,C,Ashfords Llp ,Ashfords Llp,Ashford House,EX1 3LH,Z50000,8511,Silchester Arches - Finalised Loss &,Silchester Arches - Finalised Loss &,1232627,08/01/2024,1500,No
150,9040,Statutory Year-End Adjustments,Statutory Year End Accounting,Statutory Year-End Adjustments,Other Consultants,ZN,2200366468,C,Ashfords Llp ,Ashfords Llp,Ashford House,EX1 3LH,Z50000,8007,Revision and amendments to Deed of,Revision and amendments to Deed of,1232627,11/01/2024,1132,No
151,9040,Statutory Year-End Adjustments,Statutory Year End Accounting,Statutory Year-End Adjustments,Other Consultants,ZN,2200371112,C,Ashfords Llp ,Ashfords Llp,Ashford House,EX1 3LH,Z50000,8007,"Procurement Route for Lots 1, 2, and 3","Procurement Route for Lots 1, 2, and 3",1232627,01/02/2024,2165,No
152,9040,Statutory Year-End Adjustments,Statutory Year End Accounting,Statutory Year-End Adjustments,Other Consultants,ZN,2200371151,C,Ashfords Llp ,Ashfords Llp,Ashford House,EX1 3LH,Z50000,8007,Lot 4 - Second Design & Build Contract,Lot 4 - Second Design & Build Contract,1232627,01/02/2024,1083,No
153,9040,Statutory Year-End Adjustments,Statutory Year End Accounting,Statutory Year-End Adjustments,Professional Fees : Non Legal,ZN,2200371647,C,Ashfords Llp ,Ashfords Llp,Ashford House,EX1 3LH,Z50000,8017,Project Union - Legal Services,Project Union - Legal Services,1232627,02/02/2024,8699,No
154,9040,Statutory Year-End Adjustments,Statutory Year End Accounting,Statutory Year-End Adjustments,Legal Fees & expenses,ZN,2200377336,C,Ashfords Llp ,Ashfords Llp,Ashford House,EX1 3LH,Z50000,8511,Silchester Project - Buxton Building,Silchester Project - Buxton Building,1232627,28/02/2024,1472,No
155,9040,Statutory Year-End Adjustments,Statutory Year End Accounting,Statutory Year-End Adjustments,Legal Fees & expenses,ZN,2200377520,C,Ashfords Llp ,Ashfords Llp,Ashford House,EX1 3LH,Z50000,8511,Acklam Road: Collateral Warranties,Acklam Road: Collateral Warranties,1232627,29/02/2024,1412.5,No
156,9040,Statutory Year-End Adjustments,Statutory Year End Accounting,Statutory Year-End Adjustments,Professional Fees : Non Legal,ZN,2200378385,C,Ashfords Llp ,Ashfords Llp,Ashford House,EX1 3LH,Z50000,8017,Project Union - Legal Services,Project Union - Legal Services,1232627,05/03/2024,1320,No
157,9040,Statutory Year-End Adjustments,Statutory Year End Accounting,Statutory Year-End Adjustments,Legal Fees & expenses,ZN,2200378673,C,Ashfords Llp ,Ashfords Llp,Ashford House,EX1 3LH,Z50000,8511,C.KJ10119.01 - Ad-hoc Procurement advice,C.KJ10119.01 - Ad-hoc Procurement advice,1232627,06/03/2024,4264,No
158,9040,Statutory Year-End Adjustments,Statutory Year End Accounting,Statutory Year-End Adjustments,Legal Fees & expenses,ZN,2200378675,C,Ashfords Llp ,Ashfords Llp,Ashford House,EX1 3LH,Z50000,8511,C.KJ10119.01 - Ad-hoc Procurement advice,C.KJ10119.01 - Ad-hoc Procurement advice,1232627,06/03/2024,2821,No
159,9040,Statutory Year-End Adjustments,Statutory Year End Accounting,Statutory Year-End Adjustments,Legal Fees & expenses,ZN,2200378712,C,Ashfords Llp ,Ashfords Llp,Ashford House,EX1 3LH,Z50000,8511,Hewer St: Advice re Arcus Appointment,Hewer St: Advice re Arcus Appointment,1232627,06/03/2024,1000,No
160,9040,Statutory Year-End Adjustments,Statutory Year End Accounting,Statutory Year-End Adjustments,Legal Fees & expenses,ZN,2200378714,C,Ashfords Llp ,Ashfords Llp,Ashford House,EX1 3LH,Z50000,8511,Kensal Rd:  Advice re Arcus Appointment,Kensal Rd:  Advice re Arcus Appointment,1232627,06/03/2024,1000,No
161,9040,Statutory Year-End Adjustments,Statutory Year End Accounting,Statutory Year-End Adjustments,Legal Fees & expenses,ZN,2200378720,C,Ashfords Llp ,Ashfords Llp,Ashford House,EX1 3LH,Z50000,8511,Silchester Project - Buxton Building,Silchester Project - Buxton Building,1232627,06/03/2024,1500,No
162,9040,Statutory Year-End Adjustments,Statutory Year End Accounting,Statutory Year-End Adjustments,Other Consultants,ZN,2200378862,C,Ashfords Llp ,Ashfords Llp,Ashford House,EX1 3LH,Z50000,8007,Capital�s JCT Consultancy Agreement for,Capital�s JCT Consultancy Agreement for,1232627,06/03/2024,1764.5,No
163,9040,Statutory Year-End Adjustments,Statutory Year End Accounting,Statutory Year-End Adjustments,Creditors Control : AP GRIR,ZN,2200378869,C,Ashfords Llp ,Ashfords Llp,Ashford House,EX1 3LH,Z50000,1362,KENSAL RD - New Homes - advice re Arcus,KENSAL RD - New Homes - advice re Arcus,1232627,06/03/2024,1000,No
164,9040,Statutory Year-End Adjustments,Statutory Year End Accounting,Statutory Year-End Adjustments,Legal Fees & expenses,ZN,2200379607,C,Ashfords Llp ,Ashfords Llp,Ashford House,EX1 3LH,Z50000,8511,Advice re Willmott Dixon - Hewer Street,Advice re Willmott Dixon - Hewer Street,1232627,11/03/2024,3574.5,No
165,9040,Statutory Year-End Adjustments,Statutory Year End Accounting,Statutory Year-End Adjustments,Legal Fees & expenses,ZN,2200379608,C,Ashfords Llp ,Ashfords Llp,Ashford House,EX1 3LH,Z50000,8511,Advice re Willmott Dixon - Kensal Road,Advice re Willmott Dixon - Kensal Road,1232627,11/03/2024,3574.5,No
166,9040,Statutory Year-End Adjustments,Statutory Year End Accounting,Statutory Year-End Adjustments,Creditors Control : AP GRIR,ZN,2200379744,C,Ashfords Llp ,Ashfords Llp,Ashford House,EX1 3LH,Z50000,1362,HEWER ST - New Homes - advice re Arcus,HEWER ST - New Homes - advice re Arcus,1232627,11/03/2024,1000,No
167,9040,Statutory Year-End Adjustments,Statutory Year End Accounting,Statutory Year-End Adjustments,Professional Fees : Non Legal,ZN,2200384349,C,Ashfords Llp ,Ashfords Llp,Ashford House,EX1 3LH,Z50000,8017,Project Union - Legal Services,Project Union - Legal Services,1232627,31/03/2024,1946,No
168,9040,Statutory Year-End Adjustments,Statutory Year End Accounting,Statutory Year-End Adjustments,Site Works,ZN,2200369487,C,Austin-Smith Lord Limited,Austin-Smith Lord Limited,Port of Liverpool Building,L3 1BY,Z50000,8130,Architectural Consultancy services for,Architectural Consultancy services for,1316749,24/01/2024,2244.8,No
169,9040,Statutory Year-End Adjustments,Statutory Year End Accounting,Statutory Year-End Adjustments,Site Works,ZN,2200374099,C,Austin-Smith Lord Limited,Austin-Smith Lord Limited,Port of Liverpool Building,L3 1BY,Z50000,8130,Architectural Consultancy services for,Architectural Consultancy services for,1316749,13/02/2024,2244.8,No
170,9040,Statutory Year-End Adjustments,Statutory Year End Accounting,Statutory Year-End Adjustments,Site Works,ZN,2200377538,C,Austin-Smith Lord Limited,Austin-Smith Lord Limited,Port of Liverpool Building,L3 1BY,Z50000,8130,Architectural Consultancy services for,Architectural Consultancy services for,1316749,29/02/2024,4445.6,No
171,9040,Statutory Year-End Adjustments,Statutory Year End Accounting,Statutory Year-End Adjustments,Site Works,ZN,2200382560,C,Austin-Smith Lord Limited,Austin-Smith Lord Limited,Port of Liverpool Building,L3 1BY,Z50000,8130,Architectural Consultancy services for,Architectural Consultancy services for,1316749,22/03/2024,2244.8,No
172,9040,Statutory Year-End Adjustments,Statutory Year End Accounting,Statutory Year-End Adjustments,Creditors Control : AP GRIR,ZN,2200376194,C,Avondale Park Primary School ,Avondale Park Primary School,Sirdar Road,W11 4EE,Z50000,1362,Air Quality Measures at Avondale Park,Air Quality Measures at Avondale Park,1236060,21/02/2024,6194.03,No
173,9040,Statutory Year-End Adjustments,Statutory Year End Accounting,Statutory Year-End Adjustments,Creditors Control : AP GRIR,ZN,2200365610,C,BT Global Services ,BT Global Services,Pp Mk30422 Collindale House,NW9 6LB,Z50000,1362,RBKCCCN0367: Notebook ThinkPad L13 Gen4,RBKCCCN0367: Notebook ThinkPad L13 Gen4,1233001,05/01/2024,78103,No
174,9040,Statutory Year-End Adjustments,Statutory Year End Accounting,Statutory Year-End Adjustments,Creditors Control : AP GRIR,ZN,2200365610,C,BT Global Services ,BT Global Services,Pp Mk30422 Collindale House,NW9 6LB,Z50000,1362,RBKCCCN0367: Notebook ThinkPad L13 Yoga,RBKCCCN0367: Notebook ThinkPad L13 Yoga,1233001,05/01/2024,162566,No
175,9040,Statutory Year-End Adjustments,Statutory Year End Accounting,Statutory Year-End Adjustments,Creditors Control : AP GRIR,ZN,2200365610,C,BT Global Services ,BT Global Services,Pp Mk30422 Collindale House,NW9 6LB,Z50000,1362,RBKCCCN0367: Notebook ThinkPad L13 Gen4,RBKCCCN0367: Notebook ThinkPad L13 Gen4,1233001,05/01/2024,431754,No
176,9040,Statutory Year-End Adjustments,Statutory Year End Accounting,Statutory Year-End Adjustments,Creditors Control : AP GRIR,ZN,2200365610,C,BT Global Services ,BT Global Services,Pp Mk30422 Collindale House,NW9 6LB,Z50000,1362,RBKCCCN0367:  Lenovo 65W Standard AC,RBKCCCN0367:  Lenovo 65W Standard AC,1233001,05/01/2024,952.5,No
177,9040,Statutory Year-End Adjustments,Statutory Year End Accounting,Statutory Year-End Adjustments,Creditors Control : AP GRIR,ZN,2200377560,C,BT Global Services ,BT Global Services,Pp Mk30422 Collindale House,NW9 6LB,Z50000,1362,"RBKCCCN0373: Configuration, discovery,","RBKCCCN0373: Configuration, discovery,",1233001,29/02/2024,686.38,No
178,9040,Statutory Year-End Adjustments,Statutory Year End Accounting,Statutory Year-End Adjustments,Creditors Control : AP GRIR,ZN,2200377560,C,BT Global Services ,BT Global Services,Pp Mk30422 Collindale House,NW9 6LB,Z50000,1362,RBKCCCN0373: Testing and Packaging of,RBKCCCN0373: Testing and Packaging of,1233001,29/02/2024,1880.33,No
179,9040,Statutory Year-End Adjustments,Statutory Year End Accounting,Statutory Year-End Adjustments,Creditors Control : AP GRIR,ZN,2200379828,C,BT Global Services ,BT Global Services,Pp Mk30422 Collindale House,NW9 6LB,Z50000,1362,RBKCCCN0371 - (Cllrs) Notebook ThinkPad,RBKCCCN0371 - (Cllrs) Notebook ThinkPad,1233001,11/03/2024,83716,No
180,9040,Statutory Year-End Adjustments,Statutory Year End Accounting,Statutory Year-End Adjustments,Creditors Control : AP GRIR,ZN,2200379964,C,BT Global Services ,BT Global Services,Pp Mk30422 Collindale House,NW9 6LB,Z50000,1362,RBKCCCN0368 - Desktop TC M75q,RBKCCCN0368 - Desktop TC M75q,1233001,12/03/2024,58248,No
181,9040,Statutory Year-End Adjustments,Statutory Year End Accounting,Statutory Year-End Adjustments,Creditors Control : AP GRIR,ZN,2200383401,C,BT Global Services ,BT Global Services,Pp Mk30422 Collindale House,NW9 6LB,Z50000,1362,Application Discovery - RBKCCCN0363,Application Discovery - RBKCCCN0363,1233001,26/03/2024,686.38,No
182,9040,Statutory Year-End Adjustments,Statutory Year End Accounting,Statutory Year-End Adjustments,Creditors Control : AP GRIR,ZN,2200383401,C,BT Global Services ,BT Global Services,Pp Mk30422 Collindale House,NW9 6LB,Z50000,1362,Packaging & Deployment (Simple)(Thick,Packaging & Deployment (Simple)(Thick,1233001,26/03/2024,940.16,No
183,9040,Statutory Year-End Adjustments,Statutory Year End Accounting,Statutory Year-End Adjustments,Payments to main contractor,ZN,2200366973,C,Baily Garner LLP ,Baily Garner LLP,146-148 Eltham Hill,SE9 5DY,Z50000,8102,To Provide Retrofit Assessments @ 18,To Provide Retrofit Assessments @ 18,1232685,13/01/2024,5037.5,No
184,9040,Statutory Year-End Adjustments,Statutory Year End Accounting,Statutory Year-End Adjustments,Payments to main contractor,ZN,2200366974,C,Baily Garner LLP ,Baily Garner LLP,146-148 Eltham Hill,SE9 5DY,Z50000,8102,To Provide Retrofit Assessments @ 18,To Provide Retrofit Assessments @ 18,1232685,13/01/2024,2875,No
185,9040,Statutory Year-End Adjustments,Statutory Year End Accounting,Statutory Year-End Adjustments,Payments to main contractor,ZN,2200366975,C,Baily Garner LLP ,Baily Garner LLP,146-148 Eltham Hill,SE9 5DY,Z50000,8102,To Provide Retrofit Assessments @ 18,To Provide Retrofit Assessments @ 18,1232685,13/01/2024,6975,No
186,9040,Statutory Year-End Adjustments,Statutory Year End Accounting,Statutory Year-End Adjustments,Payments to main contractor,ZN,2200367410,C,Baily Garner LLP ,Baily Garner LLP,146-148 Eltham Hill,SE9 5DY,Z50000,8102,Retrofit Coordinator services Lot 3,Retrofit Coordinator services Lot 3,1232685,16/01/2024,9465,No
187,9040,Statutory Year-End Adjustments,Statutory Year End Accounting,Statutory Year-End Adjustments,Payments to main contractor,ZN,2200369050,C,Baily Garner LLP ,Baily Garner LLP,146-148 Eltham Hill,SE9 5DY,Z50000,8102,To Provide Retrofit Assessments @ 18,To Provide Retrofit Assessments @ 18,1232685,23/01/2024,540,No
188,9040,Statutory Year-End Adjustments,Statutory Year End Accounting,Statutory Year-End Adjustments,Payments to main contractor,ZN,2200378864,C,Baily Garner LLP ,Baily Garner LLP,146-148 Eltham Hill,SE9 5DY,Z50000,8102,Lot 1 - Retrofit Coordinator,Lot 1 - Retrofit Coordinator,1232685,06/03/2024,8740,No
189,9040,Statutory Year-End Adjustments,Statutory Year End Accounting,Statutory Year-End Adjustments,Payments to main contractor,ZN,2200382765,C,Baily Garner LLP ,Baily Garner LLP,146-148 Eltham Hill,SE9 5DY,Z50000,8102,Lot 2 pre-appointment retrofit,Lot 2 pre-appointment retrofit,1232685,22/03/2024,4916.25,No
190,9040,Statutory Year-End Adjustments,Statutory Year End Accounting,Statutory Year-End Adjustments,Creditors Control : AP GRIR,ZN,2200383283,C,Barcham Trees Plc ,Barcham Trees Plc,Eye Hill Drove,CB7 5XF,Z50000,1362,Quote 141551 for the supply of (6ft,Quote 141551 for the supply of (6ft,1232693,26/03/2024,1674.16,No
191,9040,Statutory Year-End Adjustments,Statutory Year End Accounting,Statutory Year-End Adjustments,Professional Fees : Non Legal,ZN,2200368017,C,Bates Wells & Braithwaite LONDON LL,Bates Wells & Braithwaite LONDON LL,Thames Exchange,EC4R 1BE,Z50000,8017,Additional legal fees to arrange the,Additional legal fees to arrange the,1300920,18/01/2024,6393,No
192,9040,Statutory Year-End Adjustments,Statutory Year End Accounting,Statutory Year-End Adjustments,Professional Fees : Non Legal,ZN,2200368121,C,Bates Wells & Braithwaite LONDON LL,Bates Wells & Braithwaite LONDON LL,Thames Exchange,EC4R 1BE,Z50000,8017,Legal Fees in connection to Tennis Court,Legal Fees in connection to Tennis Court,1300920,18/01/2024,2013,No
193,9040,Statutory Year-End Adjustments,Statutory Year End Accounting,Statutory Year-End Adjustments,Professional Fees : Non Legal,ZN,2200377192,C,Bates Wells & Braithwaite LONDON LL,Bates Wells & Braithwaite LONDON LL,Thames Exchange,EC4R 1BE,Z50000,8017,legal costs for our work in relation to,legal costs for our work in relation to,1300920,27/02/2024,1406,No
194,9040,Statutory Year-End Adjustments,Statutory Year End Accounting,Statutory Year-End Adjustments,Professional Fees : Non Legal,ZN,2200377284,C,Bates Wells & Braithwaite LONDON LL,Bates Wells & Braithwaite LONDON LL,Thames Exchange,EC4R 1BE,Z50000,8017,Silchester legal fees for Licence,Silchester legal fees for Licence,1300920,28/02/2024,2000,No
195,9040,Statutory Year-End Adjustments,Statutory Year End Accounting,Statutory Year-End Adjustments,Professional Fees : Non Legal,ZN,2200377285,C,Bates Wells & Braithwaite LONDON LL,Bates Wells & Braithwaite LONDON LL,Thames Exchange,EC4R 1BE,Z50000,8017,Additional legal fees to arrange the,Additional legal fees to arrange the,1300920,28/02/2024,607,No
196,9040,Statutory Year-End Adjustments,Statutory Year End Accounting,Statutory Year-End Adjustments,Construction : enhancements,ZN,2200365569,C,Bell Decorating & Building Ltd ,Bell Decorating & Building Ltd,NORMAND CROFT ANNEXE,W14 9PA,Z50000,8035,18 St Luke Street: Major Kitchen changes,18 St Luke Street: Major Kitchen changes,1232723,05/01/2024,3690,No
197,9040,Statutory Year-End Adjustments,Statutory Year End Accounting,Statutory Year-End Adjustments,Construction : enhancements,ZN,2200366429,C,Bell Decorating & Building Ltd ,Bell Decorating & Building Ltd,NORMAND CROFT ANNEXE,W14 9PA,Z50000,8035,18 St Lukes Street: man-handle the tall,18 St Lukes Street: man-handle the tall,1232723,11/01/2024,830,No
198,9040,Statutory Year-End Adjustments,Statutory Year End Accounting,Statutory Year-End Adjustments,Construction : enhancements,ZN,2200366430,C,Bell Decorating & Building Ltd ,Bell Decorating & Building Ltd,NORMAND CROFT ANNEXE,W14 9PA,Z50000,8035,18 St Lukes street: To Supply 2 number,18 St Lukes street: To Supply 2 number,1232723,11/01/2024,550,No
199,9040,Statutory Year-End Adjustments,Statutory Year End Accounting,Statutory Year-End Adjustments,Construction : enhancements,ZN,2200366431,C,Bell Decorating & Building Ltd ,Bell Decorating & Building Ltd,NORMAND CROFT ANNEXE,W14 9PA,Z50000,8035,18 St Lukes street: To Supply labour and,18 St Lukes street: To Supply labour and,1232723,11/01/2024,835,No
200,9040,Statutory Year-End Adjustments,Statutory Year End Accounting,Statutory Year-End Adjustments,Construction : enhancements,ZN,2200366991,C,Bell Decorating & Building Ltd ,Bell Decorating & Building Ltd,NORMAND CROFT ANNEXE,W14 9PA,Z50000,8035,18 St Luke Street: Major,18 St Luke Street: Major,1232723,15/01/2024,67103,No
201,9040,Statutory Year-End Adjustments,Statutory Year End Accounting,Statutory Year-End Adjustments,Construction : enhancements,ZN,2200368227,C,Bell Decorating & Building Ltd ,Bell Decorating & Building Ltd,NORMAND CROFT ANNEXE,W14 9PA,Z50000,8035,18 St Lukes Street: Various gas work:,18 St Lukes Street: Various gas work:,1232723,18/01/2024,3051.83,No
202,9040,Statutory Year-End Adjustments,Statutory Year End Accounting,Statutory Year-End Adjustments,Construction : enhancements,ZN,2200371195,C,Bell Decorating & Building Ltd ,Bell Decorating & Building Ltd,NORMAND CROFT ANNEXE,W14 9PA,Z50000,8035,23 Methwold Road: Major,23 Methwold Road: Major,1232723,01/02/2024,58800,No
203,9040,Statutory Year-End Adjustments,Statutory Year End Accounting,Statutory Year-End Adjustments,Construction : enhancements,ZN,2200371218,C,Bell Decorating & Building Ltd ,Bell Decorating & Building Ltd,NORMAND CROFT ANNEXE,W14 9PA,Z50000,8035,24-28 Middle Row: Replace missing,24-28 Middle Row: Replace missing,1232723,01/02/2024,1098.5,No
204,9040,Statutory Year-End Adjustments,Statutory Year End Accounting,Statutory Year-End Adjustments,Construction : enhancements,ZN,2200371224,C,Bell Decorating & Building Ltd ,Bell Decorating & Building Ltd,NORMAND CROFT ANNEXE,W14 9PA,Z50000,8035,23 Methwold Road: cap off heating,23 Methwold Road: cap off heating,1232723,01/02/2024,1800,No
205,9040,Statutory Year-End Adjustments,Statutory Year End Accounting,Statutory Year-End Adjustments,Construction : enhancements,ZN,2200371225,C,Bell Decorating & Building Ltd ,Bell Decorating & Building Ltd,NORMAND CROFT ANNEXE,W14 9PA,Z50000,8035,23 Methwold: Screeding of bathroom,23 Methwold: Screeding of bathroom,1232723,01/02/2024,820,No
206,9040,Statutory Year-End Adjustments,Statutory Year End Accounting,Statutory Year-End Adjustments,Construction : enhancements,ZN,2200371227,C,Bell Decorating & Building Ltd ,Bell Decorating & Building Ltd,NORMAND CROFT ANNEXE,W14 9PA,Z50000,8035,18 St Lukes Street: Carry out supply of,18 St Lukes Street: Carry out supply of,1232723,01/02/2024,2932,No
207,9040,Statutory Year-End Adjustments,Statutory Year End Accounting,Statutory Year-End Adjustments,Construction : enhancements,ZN,2200371228,C,Bell Decorating & Building Ltd ,Bell Decorating & Building Ltd,NORMAND CROFT ANNEXE,W14 9PA,Z50000,8035,23 Methwold Road: construct build in,23 Methwold Road: construct build in,1232723,01/02/2024,2800,No
208,9040,Statutory Year-End Adjustments,Statutory Year End Accounting,Statutory Year-End Adjustments,Construction : enhancements,ZN,2200371230,C,Bell Decorating & Building Ltd ,Bell Decorating & Building Ltd,NORMAND CROFT ANNEXE,W14 9PA,Z50000,8035,"23 Methwold Road: New bespoke kitchen,","23 Methwold Road: New bespoke kitchen,",1232723,01/02/2024,3329,No
209,9040,Statutory Year-End Adjustments,Statutory Year End Accounting,Statutory Year-End Adjustments,Construction : enhancements,ZN,2200371247,C,Bell Decorating & Building Ltd ,Bell Decorating & Building Ltd,NORMAND CROFT ANNEXE,W14 9PA,Z50000,8035,"23 Methwold Road, W10: Drop pipe heating","23 Methwold Road, W10: Drop pipe heating",1232723,01/02/2024,6375,No
210,9040,Statutory Year-End Adjustments,Statutory Year End Accounting,Statutory Year-End Adjustments,Construction : enhancements,ZN,2200371885,C,Bell Decorating & Building Ltd ,Bell Decorating & Building Ltd,NORMAND CROFT ANNEXE,W14 9PA,Z50000,8035,23 Methwold Road: construct a timber,23 Methwold Road: construct a timber,1232723,05/02/2024,1400,No
211,9040,Statutory Year-End Adjustments,Statutory Year End Accounting,Statutory Year-End Adjustments,Construction : enhancements,ZN,2200374199,C,Bell Decorating & Building Ltd ,Bell Decorating & Building Ltd,NORMAND CROFT ANNEXE,W14 9PA,Z50000,8035,18 St Luke Street:  Kitchen hob/oven to,18 St Luke Street:  Kitchen hob/oven to,1232723,14/02/2024,3460,No
212,9040,Statutory Year-End Adjustments,Statutory Year End Accounting,Statutory Year-End Adjustments,Construction : enhancements,ZN,2200376197,C,Bell Decorating & Building Ltd ,Bell Decorating & Building Ltd,NORMAND CROFT ANNEXE,W14 9PA,Z50000,8035,23 Methwold Road: Loft Boarding: � To,23 Methwold Road: Loft Boarding: � To,1232723,21/02/2024,5625,No
213,9040,Statutory Year-End Adjustments,Statutory Year End Accounting,Statutory Year-End Adjustments,Construction : enhancements,ZN,2200376894,C,Bell Decorating & Building Ltd ,Bell Decorating & Building Ltd,NORMAND CROFT ANNEXE,W14 9PA,Z50000,8035,23 Methwold Road: Take down bathroom,23 Methwold Road: Take down bathroom,1232723,26/02/2024,8160,No
214,9040,Statutory Year-End Adjustments,Statutory Year End Accounting,Statutory Year-End Adjustments,Construction : enhancements,ZN,2200376895,C,Bell Decorating & Building Ltd ,Bell Decorating & Building Ltd,NORMAND CROFT ANNEXE,W14 9PA,Z50000,8035,23 Mehwold: S&F: Acoustic underlay,23 Mehwold: S&F: Acoustic underlay,1232723,26/02/2024,1982,No
215,9040,Statutory Year-End Adjustments,Statutory Year End Accounting,Statutory Year-End Adjustments,Construction : enhancements,ZN,2200377783,C,Bell Decorating & Building Ltd ,Bell Decorating & Building Ltd,NORMAND CROFT ANNEXE,W14 9PA,Z50000,8035,6A Wallingford Avenue - refurbishment,6A Wallingford Avenue - refurbishment,1232723,01/03/2024,75224,No
216,9040,Statutory Year-End Adjustments,Statutory Year End Accounting,Statutory Year-End Adjustments,Professional Fees : Non Legal,ZN,2200382087,C,Bell Decorating & Building Ltd ,Bell Decorating & Building Ltd,NORMAND CROFT ANNEXE,W14 9PA,Z50000,8017,163 Oxford Gardens - Dorma and roof,163 Oxford Gardens - Dorma and roof,1232723,20/03/2024,5200,No
217,9040,Statutory Year-End Adjustments,Statutory Year End Accounting,Statutory Year-End Adjustments,Site Works,ZN,2200382699,C,Bell Decorating & Building Ltd ,Bell Decorating & Building Ltd,NORMAND CROFT ANNEXE,W14 9PA,Z50000,8130,Re:345-347 Ladbroke Grove - Block gas,Re:345-347 Ladbroke Grove - Block gas,1232723,22/03/2024,3044,No
218,9040,Statutory Year-End Adjustments,Statutory Year End Accounting,Statutory Year-End Adjustments,Legal Fees & expenses,ZN,2200367503,C,Bevan Brittan Llp ,Bevan Brittan Llp,Kings Orchard,BS2 0HQ,Z50000,8511,KAA - Development Agreement,KAA - Development Agreement,1232737,16/01/2024,1260,No
219,9040,Statutory Year-End Adjustments,Statutory Year End Accounting,Statutory Year-End Adjustments,Legal Fees & expenses,ZN,2200373990,C,Bevan Brittan Llp ,Bevan Brittan Llp,Kings Orchard,BS2 0HQ,Z50000,8511,Lots Road � deed of variation and,Lots Road � deed of variation and,1232737,13/02/2024,513,No
220,9040,Statutory Year-End Adjustments,Statutory Year End Accounting,Statutory Year-End Adjustments,Legal Fees & expenses,ZN,2200378711,C,Bevan Brittan Llp ,Bevan Brittan Llp,Kings Orchard,BS2 0HQ,Z50000,8511,Lots Road � deed of variation and,Lots Road � deed of variation and,1232737,06/03/2024,836,No
221,9040,Statutory Year-End Adjustments,Statutory Year End Accounting,Statutory Year-End Adjustments,Payments to main contractor,ZN,2200366328,C,Bishop Creighton House Care & Repair Clients Account,Bishop Creighton House Care &,Bishop Creighton House,SW6 7PH,Z50000,8102,241A Westbourne Park Road,241A Westbourne Park Road,1232751,10/01/2024,16445,No
222,9040,Statutory Year-End Adjustments,Statutory Year End Accounting,Statutory Year-End Adjustments,Payments to main contractor,ZN,2200366329,C,Bishop Creighton House Care & Repair Clients Account,Bishop Creighton House Care &,Bishop Creighton House,SW6 7PH,Z50000,8102,91 Ormrod - Fees,91 Ormrod - Fees,1232751,10/01/2024,1057.2,No
223,9040,Statutory Year-End Adjustments,Statutory Year End Accounting,Statutory Year-End Adjustments,Payments to main contractor,ZN,2200366331,C,Bishop Creighton House Care & Repair Clients Account,Bishop Creighton House Care &,Bishop Creighton House,SW6 7PH,Z50000,8102,91 Ormrod - Contractor,91 Ormrod - Contractor,1232751,10/01/2024,7048,No
224,9040,Statutory Year-End Adjustments,Statutory Year End Accounting,Statutory Year-End Adjustments,Payments to main contractor,ZN,2200371346,C,Bishop Creighton House Care & Repair Clients Account,Bishop Creighton House Care &,Bishop Creighton House,SW6 7PH,Z50000,8102,8 Carter House - Contractor,8 Carter House - Contractor,1232751,01/02/2024,14071,No
225,9040,Statutory Year-End Adjustments,Statutory Year End Accounting,Statutory Year-End Adjustments,Payments to main contractor,ZN,2200373487,C,Bishop Creighton House Care & Repair Clients Account,Bishop Creighton House Care &,Bishop Creighton House,SW6 7PH,Z50000,8102,67 Lancaster Road,67 Lancaster Road,1232751,09/02/2024,6605,No
226,9040,Statutory Year-End Adjustments,Statutory Year End Accounting,Statutory Year-End Adjustments,Payments to main contractor,ZN,2200373488,C,Bishop Creighton House Care & Repair Clients Account,Bishop Creighton House Care &,Bishop Creighton House,SW6 7PH,Z50000,8102,67 Lancaster Road - Fees,67 Lancaster Road - Fees,1232751,09/02/2024,990.75,No
227,9040,Statutory Year-End Adjustments,Statutory Year End Accounting,Statutory Year-End Adjustments,Payments to main contractor,ZN,2200374872,C,Bishop Creighton House Care & Repair Clients Account,Bishop Creighton House Care &,Bishop Creighton House,SW6 7PH,Z50000,8102,5 Johnson House,5 Johnson House,1232751,16/02/2024,2820,No
228,9040,Statutory Year-End Adjustments,Statutory Year End Accounting,Statutory Year-End Adjustments,Payments to main contractor,ZN,2200374873,C,Bishop Creighton House Care & Repair Clients Account,Bishop Creighton House Care &,Bishop Creighton House,SW6 7PH,Z50000,8102,8 Carter House - Fees,8 Carter House - Fees,1232751,16/02/2024,2110.65,No
229,9040,Statutory Year-End Adjustments,Statutory Year End Accounting,Statutory Year-End Adjustments,Payments to main contractor,ZN,2200374874,C,Bishop Creighton House Care & Repair Clients Account,Bishop Creighton House Care &,Bishop Creighton House,SW6 7PH,Z50000,8102,99B Warwick Road - Fees,99B Warwick Road - Fees,1232751,16/02/2024,1559.4,No
230,9040,Statutory Year-End Adjustments,Statutory Year End Accounting,Statutory Year-End Adjustments,Payments to main contractor,ZN,2200374875,C,Bishop Creighton House Care & Repair Clients Account,Bishop Creighton House Care &,Bishop Creighton House,SW6 7PH,Z50000,8102,99B Warwick Road - Contractor,99B Warwick Road - Contractor,1232751,16/02/2024,10396,No
231,9040,Statutory Year-End Adjustments,Statutory Year End Accounting,Statutory Year-End Adjustments,Payments to main contractor,ZN,2200382065,C,Bishop Creighton House Care & Repair Clients Account,Bishop Creighton House Care &,Bishop Creighton House,SW6 7PH,Z50000,8102,"16, 1 Crossfield House - Fees","16, 1 Crossfield House - Fees",1232751,20/03/2024,1362,No
232,9040,Statutory Year-End Adjustments,Statutory Year End Accounting,Statutory Year-End Adjustments,Payments to main contractor,ZN,2200382069,C,Bishop Creighton House Care & Repair Clients Account,Bishop Creighton House Care &,Bishop Creighton House,SW6 7PH,Z50000,8102,34C Chesterton Road,34C Chesterton Road,1232751,20/03/2024,30000,No
233,9040,Statutory Year-End Adjustments,Statutory Year End Accounting,Statutory Year-End Adjustments,Payments to main contractor,ZN,2200383911,C,Bishop Creighton House Care & Repair Clients Account,Bishop Creighton House Care &,Bishop Creighton House,SW6 7PH,Z50000,8102,64C Warwick Road - Contractor,64C Warwick Road - Contractor,1232751,27/03/2024,6955,No
234,9040,Statutory Year-End Adjustments,Statutory Year End Accounting,Statutory Year-End Adjustments,Payments to main contractor,ZN,2200383912,C,Bishop Creighton House Care & Repair Clients Account,Bishop Creighton House Care &,Bishop Creighton House,SW6 7PH,Z50000,8102,19A Oxford Gardens - Fees,19A Oxford Gardens - Fees,1232751,27/03/2024,1093.8,No
235,9040,Statutory Year-End Adjustments,Statutory Year End Accounting,Statutory Year-End Adjustments,Payments to main contractor,ZN,2200383913,C,Bishop Creighton House Care & Repair Clients Account,Bishop Creighton House Care &,Bishop Creighton House,SW6 7PH,Z50000,8102,64C Warwick Road - Fees,64C Warwick Road - Fees,1232751,27/03/2024,1043.25,No
236,9040,Statutory Year-End Adjustments,Statutory Year End Accounting,Statutory Year-End Adjustments,Payments to main contractor,ZN,2200383914,C,Bishop Creighton House Care & Repair Clients Account,Bishop Creighton House Care &,Bishop Creighton House,SW6 7PH,Z50000,8102,19A Oxford Gardens,19A Oxford Gardens,1232751,27/03/2024,7292,No
237,9040,Statutory Year-End Adjustments,Statutory Year End Accounting,Statutory Year-End Adjustments,Creditors Control : AP GRIR,ZN,2200377779,C,Black Box Network Services ,Black Box Network Services,Unit 3 Bennet Court,RG2 0QX,Z50000,1362,Reinstall 24 x Cat6 cables Pembroke Road,Reinstall 24 x Cat6 cables Pembroke Road,1231180,01/03/2024,2430.63,No
238,9040,Statutory Year-End Adjustments,Statutory Year End Accounting,Statutory Year-End Adjustments,Payments to main contractor,ZN,2200375318,C,Blue Light Safety Limited,Blue Light Safety Limited,Khepera Business Centre,S13 9LQ,Z50000,8102,31 Lowerwood Court - Automister - On,31 Lowerwood Court - Automister - On,1317091,19/02/2024,500,No
239,9040,Statutory Year-End Adjustments,Statutory Year End Accounting,Statutory Year-End Adjustments,Payments to main contractor,ZN,2200366076,C,Borras Construction Ltd,Borras Construction Ltd,1 Salar House,AL1 5HT,Z50000,8102,Kensington Memorial Park - Building,Kensington Memorial Park - Building,1275543,09/01/2024,38000,No
240,9040,Statutory Year-End Adjustments,Statutory Year End Accounting,Statutory Year-End Adjustments,Payments to main contractor,ZN,2200370819,C,Borras Construction Ltd,Borras Construction Ltd,1 Salar House,AL1 5HT,Z50000,8102,Kensington Memorial Park - Building,Kensington Memorial Park - Building,1275543,31/01/2024,54150,No
241,9040,Statutory Year-End Adjustments,Statutory Year End Accounting,Statutory Year-End Adjustments,Payments to main contractor,ZN,2200376772,C,Borras Construction Ltd,Borras Construction Ltd,1 Salar House,AL1 5HT,Z50000,8102,Kensington Memorial Park - Building,Kensington Memorial Park - Building,1275543,26/02/2024,135850,No
242,9040,Statutory Year-End Adjustments,Statutory Year End Accounting,Statutory Year-End Adjustments,Payments to main contractor,ZN,2200379617,C,Bronze Restorations Consultancy Ltd ,Bronze Restorations Consultancy Ltd,Unit 22,KT17 1DH,Z50000,8102,RBKC Cast Street Name Plate Refurbs,RBKC Cast Street Name Plate Refurbs,1254148,11/03/2024,17300,No
243,9040,Statutory Year-End Adjustments,Statutory Year End Accounting,Statutory Year-End Adjustments,Payments to main contractor,ZN,2200371446,C,Broxap Ltd ,Broxap Ltd,Rowhurst Industrial Estate,ST5 6BD,Z50000,8102,Supply and deliver 1 x eastgate cast,Supply and deliver 1 x eastgate cast,1255218,02/02/2024,2066,No
244,9040,Statutory Year-End Adjustments,Statutory Year End Accounting,Statutory Year-End Adjustments,Site Works,ZN,2200370659,C,Redact Details,Bryan Packman Marcel,,,Z50000,8130,Redact Details,Emergency Surveying and Design Works at,1260368,30/01/2024,10900,No
245,9040,Statutory Year-End Adjustments,Statutory Year End Accounting,Statutory Year-End Adjustments,Site Works,ZN,2200376393,C,Redact Details,Bryan Packman Marcel,,,Z50000,8130,Redact Details,SE Fee for 6 Months Monitoring at,1260368,22/02/2024,2520,No
246,9040,Statutory Year-End Adjustments,Statutory Year End Accounting,Statutory Year-End Adjustments,Site Works,ZN,2200380951,C,Redact Details,Bryan Packman Marcel,,,Z50000,8130,Redact Details,Inspection and report on the spalling,1260368,15/03/2024,900,No
247,9040,Statutory Year-End Adjustments,Statutory Year End Accounting,Statutory Year-End Adjustments,Architects,ZN,2200369047,C,Building Design Partnership Ltd ,Building Design Partnership Ltd,16 Brewhouse Yard,EC1V 4LJ,Z50000,8021,Leighton House Museum Boundary Wall -,Leighton House Museum Boundary Wall -,1233009,23/01/2024,2006,No
248,9040,Statutory Year-End Adjustments,Statutory Year End Accounting,Statutory Year-End Adjustments,Architects,ZN,2200369122,C,Building Design Partnership Ltd ,Building Design Partnership Ltd,16 Brewhouse Yard,EC1V 4LJ,Z50000,8021,Leighton House Museum Cold Store &,Leighton House Museum Cold Store &,1233009,23/01/2024,2538.4,No
249,9040,Statutory Year-End Adjustments,Statutory Year End Accounting,Statutory Year-End Adjustments,Other Consultants,ZN,2200383848,C,Burges Salmon LLP,Burges Salmon LLP,1 Glass Wharf,BS2 0ZX,Z50000,8007,Legal support for NDHN,Legal support for NDHN,1316385,27/03/2024,5012,No
250,9040,Statutory Year-End Adjustments,Statutory Year End Accounting,Statutory Year-End Adjustments,Professional Fees : Non Legal,ZN,2200365050,C,Butler & Young Services Ltd,Butler & Young Services Ltd,54-62 Station Road East,RH8 0PG,Z50000,8017,Clerk of Works Services.,Clerk of Works Services.,1272888,03/01/2024,4500,No
251,9040,Statutory Year-End Adjustments,Statutory Year End Accounting,Statutory Year-End Adjustments,Professional Fees : Non Legal,ZN,2200365090,C,Butler & Young Services Ltd,Butler & Young Services Ltd,54-62 Station Road East,RH8 0PG,Z50000,8017,Cremorne Est - M&E Professional Services,Cremorne Est - M&E Professional Services,1272888,03/01/2024,3925,No
252,9040,Statutory Year-End Adjustments,Statutory Year End Accounting,Statutory Year-End Adjustments,Professional Fees : Non Legal,ZN,2200371317,C,Butler & Young Services Ltd,Butler & Young Services Ltd,54-62 Station Road East,RH8 0PG,Z50000,8017,Consultancy Services for 14 number,Consultancy Services for 14 number,1272888,01/02/2024,3766.5,No
253,9040,Statutory Year-End Adjustments,Statutory Year End Accounting,Statutory Year-End Adjustments,Professional Fees : Non Legal,ZN,2200371323,C,Butler & Young Services Ltd,Butler & Young Services Ltd,54-62 Station Road East,RH8 0PG,Z50000,8017,Consultancy Services - New Lifts at Elm,Consultancy Services - New Lifts at Elm,1272888,01/02/2024,10360,No
254,9040,Statutory Year-End Adjustments,Statutory Year End Accounting,Statutory Year-End Adjustments,Professional Fees : Non Legal,ZN,2200371759,C,Butler & Young Services Ltd,Butler & Young Services Ltd,54-62 Station Road East,RH8 0PG,Z50000,8017,Employers Agent/Clerk of Works,Employers Agent/Clerk of Works,1272888,05/02/2024,8425,No
255,9040,Statutory Year-End Adjustments,Statutory Year End Accounting,Statutory Year-End Adjustments,Professional Fees : Non Legal,ZN,2200376741,C,Butler & Young Services Ltd,Butler & Young Services Ltd,54-62 Station Road East,RH8 0PG,Z50000,8017,Employers Agent/Clerk of Works,Employers Agent/Clerk of Works,1272888,26/02/2024,8425,No
256,9040,Statutory Year-End Adjustments,Statutory Year End Accounting,Statutory Year-End Adjustments,Professional Fees : Non Legal,ZN,2200378221,C,Butler & Young Services Ltd,Butler & Young Services Ltd,54-62 Station Road East,RH8 0PG,Z50000,8017,Trellick Tower Clubroom Refurbishment,Trellick Tower Clubroom Refurbishment,1272888,04/03/2024,2962,No
257,9040,Statutory Year-End Adjustments,Statutory Year End Accounting,Statutory Year-End Adjustments,Professional Fees : Non Legal,ZN,2200378980,C,Butler & Young Services Ltd,Butler & Young Services Ltd,54-62 Station Road East,RH8 0PG,Z50000,8017,M&E Professional Services - Plantroom,M&E Professional Services - Plantroom,1272888,07/03/2024,10368.34,No
258,9040,Statutory Year-End Adjustments,Statutory Year End Accounting,Statutory Year-End Adjustments,Professional Fees : Non Legal,ZN,2200379151,C,Butler & Young Services Ltd,Butler & Young Services Ltd,54-62 Station Road East,RH8 0PG,Z50000,8017,Whitchurch & Blechynden - Heating Design,Whitchurch & Blechynden - Heating Design,1272888,07/03/2024,4397.6,No
259,9040,Statutory Year-End Adjustments,Statutory Year End Accounting,Statutory Year-End Adjustments,Professional Fees : Non Legal,ZN,2200384031,C,Butler & Young Services Ltd,Butler & Young Services Ltd,54-62 Station Road East,RH8 0PG,Z50000,8017,Employers Agent/Clerk of Works,Employers Agent/Clerk of Works,1272888,28/03/2024,8425,No
260,9040,Statutory Year-End Adjustments,Statutory Year End Accounting,Statutory Year-End Adjustments,Professional Fees : Non Legal,ZN,2200384046,C,Butler & Young Services Ltd,Butler & Young Services Ltd,54-62 Station Road East,RH8 0PG,Z50000,8017,Consultancy Services - New Lifts at Elm,Consultancy Services - New Lifts at Elm,1272888,28/03/2024,1480,No
261,9040,Statutory Year-End Adjustments,Statutory Year End Accounting,Statutory Year-End Adjustments,Payments to main contractor,ZN,2200372432,C,Buxton Building Contractors Ltd,Buxton Building Contractors Ltd,Cedar House,CR3 5UX,Z50000,8102,Silchester main contract works,Silchester main contract works,1288846,06/02/2024,30400,No
262,9040,Statutory Year-End Adjustments,Statutory Year End Accounting,Statutory Year-End Adjustments,Payments to main contractor,ZN,2200378060,C,Buxton Building Contractors Ltd,Buxton Building Contractors Ltd,Cedar House,CR3 5UX,Z50000,8102,Silchester main contract works,Silchester main contract works,1288846,04/03/2024,342500,No
263,9040,Statutory Year-End Adjustments,Statutory Year End Accounting,Statutory Year-End Adjustments,Payments to main contractor,ZN,2200365161,C,C&C Builders Ltd,C&C Builders Ltd,Unit 11 Barningham Way,NW9 8AU,Z50000,8102,213 Bonchurch Street,213 Bonchurch Street,1274385,03/01/2024,6705,No
264,9040,Statutory Year-End Adjustments,Statutory Year End Accounting,Statutory Year-End Adjustments,Payments to main contractor,ZN,2200365225,C,C&C Builders Ltd,C&C Builders Ltd,Unit 11 Barningham Way,NW9 8AU,Z50000,8102,"2,22 Stanley Gardens","2,22 Stanley Gardens",1274385,04/01/2024,12410,No
265,9040,Statutory Year-End Adjustments,Statutory Year End Accounting,Statutory Year-End Adjustments,Payments to main contractor,ZN,2200366644,C,C&C Builders Ltd,C&C Builders Ltd,Unit 11 Barningham Way,NW9 8AU,Z50000,8102,15 Courtleigh House,15 Courtleigh House,1274385,11/01/2024,9307.5,No
266,9040,Statutory Year-End Adjustments,Statutory Year End Accounting,Statutory Year-End Adjustments,Payments to main contractor,ZN,2200367605,C,C&C Builders Ltd,C&C Builders Ltd,Unit 11 Barningham Way,NW9 8AU,Z50000,8102,12B St Lawrence Terrace,12B St Lawrence Terrace,1274385,16/01/2024,8549.67,No
267,9040,Statutory Year-End Adjustments,Statutory Year End Accounting,Statutory Year-End Adjustments,Payments to main contractor,ZN,2200368837,C,C&C Builders Ltd,C&C Builders Ltd,Unit 11 Barningham Way,NW9 8AU,Z50000,8102,42 Dartrey Tower,42 Dartrey Tower,1274385,22/01/2024,8510,No
268,9040,Statutory Year-End Adjustments,Statutory Year End Accounting,Statutory Year-End Adjustments,Payments to main contractor,ZN,2200369718,C,C&C Builders Ltd,C&C Builders Ltd,Unit 11 Barningham Way,NW9 8AU,Z50000,8102,6 Mersey House,6 Mersey House,1274385,25/01/2024,8366,No
269,9040,Statutory Year-End Adjustments,Statutory Year End Accounting,Statutory Year-End Adjustments,Payments to main contractor,ZN,2200382422,C,Clm Fireproofing Limited,CLM Fireproofing Limited,Unit 4 Block 2,TN14 5EL,Z50000,8102,C.KJ10148 Fire safety works CLM,C.KJ10148 Fire safety works CLM,1268719,21/03/2024,13135.51,No
270,9040,Statutory Year-End Adjustments,Statutory Year End Accounting,Statutory Year-End Adjustments,Special Maintenance,ZN,2200366966,C,CVC Direct Ltd,CVC Direct Ltd,Unit 11 Bushell Business Estat,OX10 9DD,Z50000,8321,MVHR Installation - 45 Clarendon Walk,MVHR Installation - 45 Clarendon Walk,1293985,13/01/2024,6175.36,No
271,9040,Statutory Year-End Adjustments,Statutory Year End Accounting,Statutory Year-End Adjustments,Special Maintenance,ZN,2200366967,C,CVC Direct Ltd,CVC Direct Ltd,Unit 11 Bushell Business Estat,OX10 9DD,Z50000,8321,MVHR Installation - 2 Camelford Walk,MVHR Installation - 2 Camelford Walk,1293985,13/01/2024,3331.98,No
272,9040,Statutory Year-End Adjustments,Statutory Year End Accounting,Statutory Year-End Adjustments,Special Maintenance,ZN,2200366968,C,CVC Direct Ltd,CVC Direct Ltd,Unit 11 Bushell Business Estat,OX10 9DD,Z50000,8321,MVHR with cooling system (pilot) - 308,MVHR with cooling system (pilot) - 308,1293985,13/01/2024,4660.22,No
273,9040,Statutory Year-End Adjustments,Statutory Year End Accounting,Statutory Year-End Adjustments,Special Maintenance,ZN,2200366969,C,CVC Direct Ltd,CVC Direct Ltd,Unit 11 Bushell Business Estat,OX10 9DD,Z50000,8321,MVHR Installation - 45 Clarendon Walk,MVHR Installation - 45 Clarendon Walk,1293985,13/01/2024,2727.29,No
274,9040,Statutory Year-End Adjustments,Statutory Year End Accounting,Statutory Year-End Adjustments,Special Maintenance,ZN,2200366970,C,CVC Direct Ltd,CVC Direct Ltd,Unit 11 Bushell Business Estat,OX10 9DD,Z50000,8321,MVHR Installation - 46 Verity Close,MVHR Installation - 46 Verity Close,1293985,13/01/2024,3352.31,No
275,9040,Statutory Year-End Adjustments,Statutory Year End Accounting,Statutory Year-End Adjustments,Special Maintenance,ZN,2200366971,C,CVC Direct Ltd,CVC Direct Ltd,Unit 11 Bushell Business Estat,OX10 9DD,Z50000,8321,MVHR Installation - 529 Barandon Walk,MVHR Installation - 529 Barandon Walk,1293985,13/01/2024,2355.61,No
276,9040,Statutory Year-End Adjustments,Statutory Year End Accounting,Statutory Year-End Adjustments,Special Maintenance,ZN,2200366972,C,CVC Direct Ltd,CVC Direct Ltd,Unit 11 Bushell Business Estat,OX10 9DD,Z50000,8321,MVHR Installation - 514 Barandon Walk,MVHR Installation - 514 Barandon Walk,1293985,13/01/2024,2727.29,No
277,9040,Statutory Year-End Adjustments,Statutory Year End Accounting,Statutory Year-End Adjustments,Special Maintenance,ZN,2200368202,C,CVC Direct Ltd,CVC Direct Ltd,Unit 11 Bushell Business Estat,OX10 9DD,Z50000,8321,MVHR Installation - 39 Verity Close,MVHR Installation - 39 Verity Close,1293985,18/01/2024,5929,No
278,9040,Statutory Year-End Adjustments,Statutory Year End Accounting,Statutory Year-End Adjustments,Special Maintenance,ZN,2200368205,C,CVC Direct Ltd,CVC Direct Ltd,Unit 11 Bushell Business Estat,OX10 9DD,Z50000,8321,MVHR Installation - 39 Verity Close,MVHR Installation - 39 Verity Close,1293985,18/01/2024,2846.08,No
279,9040,Statutory Year-End Adjustments,Statutory Year End Accounting,Statutory Year-End Adjustments,Special Maintenance,ZN,2200368210,C,CVC Direct Ltd,CVC Direct Ltd,Unit 11 Bushell Business Estat,OX10 9DD,Z50000,8321,MVHR Installation - 7 Clarendon Walk,MVHR Installation - 7 Clarendon Walk,1293985,18/01/2024,4836.48,No
280,9040,Statutory Year-End Adjustments,Statutory Year End Accounting,Statutory Year-End Adjustments,Special Maintenance,ZN,2200368213,C,CVC Direct Ltd,CVC Direct Ltd,Unit 11 Bushell Business Estat,OX10 9DD,Z50000,8321,MVHR Installation - 29 Upper Clarendon,MVHR Installation - 29 Upper Clarendon,1293985,18/01/2024,6175.36,No
281,9040,Statutory Year-End Adjustments,Statutory Year End Accounting,Statutory Year-End Adjustments,Special Maintenance,ZN,2200368216,C,CVC Direct Ltd,CVC Direct Ltd,Unit 11 Bushell Business Estat,OX10 9DD,Z50000,8321,MVHR Installation - 427 Hurstway Walk,MVHR Installation - 427 Hurstway Walk,1293985,18/01/2024,6175.36,No
282,9040,Statutory Year-End Adjustments,Statutory Year End Accounting,Statutory Year-End Adjustments,Special Maintenance,ZN,2200368884,C,CVC Direct Ltd,CVC Direct Ltd,Unit 11 Bushell Business Estat,OX10 9DD,Z50000,8321,MVHR Installation - 20 Morland House,MVHR Installation - 20 Morland House,1293985,22/01/2024,6379,No
283,9040,Statutory Year-End Adjustments,Statutory Year End Accounting,Statutory Year-End Adjustments,Special Maintenance,ZN,2200368885,C,CVC Direct Ltd,CVC Direct Ltd,Unit 11 Bushell Business Estat,OX10 9DD,Z50000,8321,MVHR Installation - 427 Hurstway Walk,MVHR Installation - 427 Hurstway Walk,1293985,22/01/2024,2727.29,No
284,9040,Statutory Year-End Adjustments,Statutory Year End Accounting,Statutory Year-End Adjustments,Special Maintenance,ZN,2200374580,C,CVC Direct Ltd,CVC Direct Ltd,Unit 11 Bushell Business Estat,OX10 9DD,Z50000,8321,MVHR Installation - 8 Camborne Mews,MVHR Installation - 8 Camborne Mews,1293985,15/02/2024,2772.41,No
285,9040,Statutory Year-End Adjustments,Statutory Year End Accounting,Statutory Year-End Adjustments,Special Maintenance,ZN,2200374582,C,CVC Direct Ltd,CVC Direct Ltd,Unit 11 Bushell Business Estat,OX10 9DD,Z50000,8321,MVHR Installation - 7 Clarendon Walk,MVHR Installation - 7 Clarendon Walk,1293985,15/02/2024,2354.61,No
286,9040,Statutory Year-End Adjustments,Statutory Year End Accounting,Statutory Year-End Adjustments,Special Maintenance,ZN,2200375743,C,CVC Direct Ltd,CVC Direct Ltd,Unit 11 Bushell Business Estat,OX10 9DD,Z50000,8321,MVHR Installation - 13 Camelford Court,MVHR Installation - 13 Camelford Court,1293985,20/02/2024,7118.05,No
287,9040,Statutory Year-End Adjustments,Statutory Year End Accounting,Statutory Year-End Adjustments,Special Maintenance,ZN,2200375744,C,CVC Direct Ltd,CVC Direct Ltd,Unit 11 Bushell Business Estat,OX10 9DD,Z50000,8321,MVHR Installation - 316  Testerton Walk,MVHR Installation - 316  Testerton Walk,1293985,20/02/2024,5536.48,No
288,9040,Statutory Year-End Adjustments,Statutory Year End Accounting,Statutory Year-End Adjustments,Special Maintenance,ZN,2200379200,C,CVC Direct Ltd,CVC Direct Ltd,Unit 11 Bushell Business Estat,OX10 9DD,Z50000,8321,MVHR Installation - 31 Upper Camelford,MVHR Installation - 31 Upper Camelford,1293985,07/03/2024,6775.36,No
289,9040,Statutory Year-End Adjustments,Statutory Year End Accounting,Statutory Year-End Adjustments,Special Maintenance,ZN,2200379204,C,CVC Direct Ltd,CVC Direct Ltd,Unit 11 Bushell Business Estat,OX10 9DD,Z50000,8321,MVHR Installation - 20 Morland House,MVHR Installation - 20 Morland House,1293985,07/03/2024,2846.08,No
290,9040,Statutory Year-End Adjustments,Statutory Year End Accounting,Statutory Year-End Adjustments,Special Maintenance,ZN,2200379217,C,CVC Direct Ltd,CVC Direct Ltd,Unit 11 Bushell Business Estat,OX10 9DD,Z50000,8321,MVHR Installation - 12 Verity Close,MVHR Installation - 12 Verity Close,1293985,07/03/2024,6452.71,No
291,9040,Statutory Year-End Adjustments,Statutory Year End Accounting,Statutory Year-End Adjustments,Special Maintenance,ZN,2200379221,C,CVC Direct Ltd,CVC Direct Ltd,Unit 11 Bushell Business Estat,OX10 9DD,Z50000,8321,MVHR Installation - 29 Upper Clarendon,MVHR Installation - 29 Upper Clarendon,1293985,07/03/2024,2727.29,No
292,9040,Statutory Year-End Adjustments,Statutory Year End Accounting,Statutory Year-End Adjustments,Special Maintenance,ZN,2200379847,C,CVC Direct Ltd,CVC Direct Ltd,Unit 11 Bushell Business Estat,OX10 9DD,Z50000,8321,MVHR Installation - 330 Hurstway Walk,MVHR Installation - 330 Hurstway Walk,1293985,11/03/2024,6775.36,No
293,9040,Statutory Year-End Adjustments,Statutory Year End Accounting,Statutory Year-End Adjustments,Payments to main contractor,ZN,2200378683,C,CWG Group Ltd,CWG Group Ltd,The Yard,SG1 2BW,Z50000,8102,Talbot Walk - roof improvement works,Talbot Walk - roof improvement works,1281268,06/03/2024,8677.31,No
294,9040,Statutory Year-End Adjustments,Statutory Year End Accounting,Statutory Year-End Adjustments,Payments to main contractor,ZN,2200378685,C,CWG Group Ltd,CWG Group Ltd,The Yard,SG1 2BW,Z50000,8102,Clarendon Walk - roof improvement works,Clarendon Walk - roof improvement works,1281268,06/03/2024,30686.23,No
295,9040,Statutory Year-End Adjustments,Statutory Year End Accounting,Statutory Year-End Adjustments,Payments to main contractor,ZN,2200374744,C,Cablesheer (Asbestos) Limited,Cablesheer (Asbestos) Limited,Cablesheer House,BR5 3QY,Z50000,8102,63 Finborough Road - EIB Flooring,63 Finborough Road - EIB Flooring,1273893,16/02/2024,3493,No
296,9040,Statutory Year-End Adjustments,Statutory Year End Accounting,Statutory Year-End Adjustments,Professional Fees : Non Legal,ZN,2200376880,C,Calford Seadon (Health & Safety) Ltd,Calford Seadon (Health & Safety),St. Johns House,BR6 0JX,Z50000,8017,Chelsea Farm House & Jean Darling House,Chelsea Farm House & Jean Darling House,1233044,26/02/2024,13126.55,No
297,9040,Statutory Year-End Adjustments,Statutory Year End Accounting,Statutory Year-End Adjustments,Other Consultants,ZN,2200364831,C,Capital Property & Construction ,Capital Property & Construction,Nicon House,EN1 3EF,Z50000,8007,C.KJ10204.03 - Scheme 3 Pond House -,C.KJ10204.03 - Scheme 3 Pond House -,1256857,02/01/2024,12479.76,No
298,9040,Statutory Year-End Adjustments,Statutory Year End Accounting,Statutory Year-End Adjustments,Professional Fees : Non Legal,ZN,2200365150,C,Capital Property & Construction ,Capital Property & Construction,Nicon House,EN1 3EF,Z50000,8017,C.KJ10119.01 - Multidisciplinary,C.KJ10119.01 - Multidisciplinary,1256857,03/01/2024,4560,No
299,9040,Statutory Year-End Adjustments,Statutory Year End Accounting,Statutory Year-End Adjustments,Professional Fees : Non Legal,ZN,2200365454,C,Capital Property & Construction ,Capital Property & Construction,Nicon House,EN1 3EF,Z50000,8017,Scheme 9 - Warwick Road Estate - Text,Scheme 9 - Warwick Road Estate - Text,1256857,05/01/2024,3983,No
300,9040,Statutory Year-End Adjustments,Statutory Year End Accounting,Statutory Year-End Adjustments,Payments to main contractor,ZN,2200368537,C,Capital Property & Construction ,Capital Property & Construction,Nicon House,EN1 3EF,Z50000,8102,Hurstway Garages - QS Valuation services,Hurstway Garages - QS Valuation services,1256857,19/01/2024,1333.28,No
301,9040,Statutory Year-End Adjustments,Statutory Year End Accounting,Statutory Year-End Adjustments,Other Consultants,ZN,2200369592,C,Capital Property & Construction ,Capital Property & Construction,Nicon House,EN1 3EF,Z50000,8007,Walkways Stage_3 EWI Holistic Review,Walkways Stage_3 EWI Holistic Review,1256857,25/01/2024,19518.9,No
302,9040,Statutory Year-End Adjustments,Statutory Year End Accounting,Statutory Year-End Adjustments,Professional Fees : Non Legal,ZN,2200370288,C,Capital Property & Construction ,Capital Property & Construction,Nicon House,EN1 3EF,Z50000,8017,Scheme 16 | CA/QS Fees Part Two � Months,Scheme 16 | CA/QS Fees Part Two � Months,1256857,29/01/2024,11672.58,No
303,9040,Statutory Year-End Adjustments,Statutory Year End Accounting,Statutory Year-End Adjustments,Other Consultants,ZN,2200370509,C,Capital Property & Construction ,Capital Property & Construction,Nicon House,EN1 3EF,Z50000,8007,C.KJ10204.03 - Scheme 3 Pond House -,C.KJ10204.03 - Scheme 3 Pond House -,1256857,30/01/2024,12479.76,No
304,9040,Statutory Year-End Adjustments,Statutory Year End Accounting,Statutory Year-End Adjustments,Payments to main contractor,ZN,2200370844,C,Capital Property & Construction ,Capital Property & Construction,Nicon House,EN1 3EF,Z50000,8102,Lot 1 Roofing Works consultancy services,Lot 1 Roofing Works consultancy services,1256857,31/01/2024,20407.58,No
305,9040,Statutory Year-End Adjustments,Statutory Year End Accounting,Statutory Year-End Adjustments,Professional Fees : Non Legal,ZN,2200371157,C,Capital Property & Construction ,Capital Property & Construction,Nicon House,EN1 3EF,Z50000,8017,C.KJ10119.01 - Multidisciplinary,C.KJ10119.01 - Multidisciplinary,1256857,01/02/2024,2770,No
306,9040,Statutory Year-End Adjustments,Statutory Year End Accounting,Statutory Year-End Adjustments,Professional Fees : Non Legal,ZN,2200371183,C,Capital Property & Construction ,Capital Property & Construction,Nicon House,EN1 3EF,Z50000,8017,Multi Disciplinary Consultant Services -,Multi Disciplinary Consultant Services -,1256857,01/02/2024,12282.13,No
307,9040,Statutory Year-End Adjustments,Statutory Year End Accounting,Statutory Year-End Adjustments,Professional Fees : Non Legal,ZN,2200371188,C,Capital Property & Construction ,Capital Property & Construction,Nicon House,EN1 3EF,Z50000,8017,Multi Disciplinary Consultant Services -,Multi Disciplinary Consultant Services -,1256857,01/02/2024,18948.38,No
308,9040,Statutory Year-End Adjustments,Statutory Year End Accounting,Statutory Year-End Adjustments,Payments to main contractor,ZN,2200371203,C,Capital Property & Construction ,Capital Property & Construction,Nicon House,EN1 3EF,Z50000,8102,Hurstway Garages - QS Valuation services,Hurstway Garages - QS Valuation services,1256857,01/02/2024,2000,No
309,9040,Statutory Year-End Adjustments,Statutory Year End Accounting,Statutory Year-End Adjustments,Payments to main contractor,ZN,2200374261,C,Capital Property & Construction ,Capital Property & Construction,Nicon House,EN1 3EF,Z50000,8102,Lot 1 Roofing Works consultancy services,Lot 1 Roofing Works consultancy services,1256857,14/02/2024,20407.58,No
310,9040,Statutory Year-End Adjustments,Statutory Year End Accounting,Statutory Year-End Adjustments,Payments to main contractor,ZN,2200374850,C,Capital Property & Construction ,Capital Property & Construction,Nicon House,EN1 3EF,Z50000,8102,Walkways Main Works� Stage 3 MDC,Walkways Main Works� Stage 3 MDC,1256857,16/02/2024,186894,No
311,9040,Statutory Year-End Adjustments,Statutory Year End Accounting,Statutory Year-End Adjustments,Professional Fees : Non Legal,ZN,2200376042,C,Capital Property & Construction ,Capital Property & Construction,Nicon House,EN1 3EF,Z50000,8017,Scheme 9 - Warwick Road Estate - Text,Scheme 9 - Warwick Road Estate - Text,1256857,21/02/2024,1740,No
312,9040,Statutory Year-End Adjustments,Statutory Year End Accounting,Statutory Year-End Adjustments,Professional Fees : Non Legal,ZN,2200376044,C,Capital Property & Construction ,Capital Property & Construction,Nicon House,EN1 3EF,Z50000,8017,Scheme 9 - Warwick Road Estate - Wood,Scheme 9 - Warwick Road Estate - Wood,1256857,21/02/2024,2000,No
313,9040,Statutory Year-End Adjustments,Statutory Year End Accounting,Statutory Year-End Adjustments,Professional Fees : Non Legal,ZN,2200376045,C,Capital Property & Construction ,Capital Property & Construction,Nicon House,EN1 3EF,Z50000,8017,Scheme 9 - Warwick Road Estate - FLOH,Scheme 9 - Warwick Road Estate - FLOH,1256857,21/02/2024,3197,No
314,9040,Statutory Year-End Adjustments,Statutory Year End Accounting,Statutory Year-End Adjustments,Professional Fees : Non Legal,ZN,2200376224,C,Capital Property & Construction ,Capital Property & Construction,Nicon House,EN1 3EF,Z50000,8017,C.KJ10110 - ADAIR AND HAZLEWOOD- phase 3,C.KJ10110 - ADAIR AND HAZLEWOOD- phase 3,1256857,21/02/2024,17241,No
315,9040,Statutory Year-End Adjustments,Statutory Year End Accounting,Statutory Year-End Adjustments,Other Consultants,ZN,2200377419,C,Capital Property & Construction ,Capital Property & Construction,Nicon House,EN1 3EF,Z50000,8007,C.KJ10204.03 - Scheme 3 Pond House -,C.KJ10204.03 - Scheme 3 Pond House -,1256857,28/02/2024,12479.76,No
316,9040,Statutory Year-End Adjustments,Statutory Year End Accounting,Statutory Year-End Adjustments,Payments to main contractor,ZN,2200377707,C,Capital Property & Construction ,Capital Property & Construction,Nicon House,EN1 3EF,Z50000,8102,"C.KJ10110""Adair and Hazelwood -","C.KJ10110""Adair and Hazelwood -",1256857,29/02/2024,18235,No
317,9040,Statutory Year-End Adjustments,Statutory Year End Accounting,Statutory Year-End Adjustments,Professional Fees : Non Legal,ZN,2200377735,C,Capital Property & Construction ,Capital Property & Construction,Nicon House,EN1 3EF,Z50000,8017,Scheme 16 | CA/QS Fees Part Two � Months,Scheme 16 | CA/QS Fees Part Two � Months,1256857,29/02/2024,11672.58,No
318,9040,Statutory Year-End Adjustments,Statutory Year End Accounting,Statutory Year-End Adjustments,Professional Fees : Non Legal,ZN,2200377739,C,Capital Property & Construction ,Capital Property & Construction,Nicon House,EN1 3EF,Z50000,8017,Scheme 9 - Warwick Road Estate - Wood,Scheme 9 - Warwick Road Estate - Wood,1256857,29/02/2024,2005,No
319,9040,Statutory Year-End Adjustments,Statutory Year End Accounting,Statutory Year-End Adjustments,Professional Fees : Non Legal,ZN,2200378331,C,Capital Property & Construction ,Capital Property & Construction,Nicon House,EN1 3EF,Z50000,8017,C.KJ10119.01 - Multidisciplinary,C.KJ10119.01 - Multidisciplinary,1256857,05/03/2024,3040,No
320,9040,Statutory Year-End Adjustments,Statutory Year End Accounting,Statutory Year-End Adjustments,Professional Fees : Non Legal,ZN,2200378496,C,Capital Property & Construction ,Capital Property & Construction,Nicon House,EN1 3EF,Z50000,8017,Multi Disciplinary Consultant Services -,Multi Disciplinary Consultant Services -,1256857,05/03/2024,27216.97,No
321,9040,Statutory Year-End Adjustments,Statutory Year End Accounting,Statutory Year-End Adjustments,Professional Fees : Non Legal,ZN,2200378883,C,Capital Property & Construction ,Capital Property & Construction,Nicon House,EN1 3EF,Z50000,8017,"Various stages - inspection, provisional","Various stages - inspection, provisional",1256857,06/03/2024,5040,No
322,9040,Statutory Year-End Adjustments,Statutory Year End Accounting,Statutory Year-End Adjustments,Payments to main contractor,ZN,2200380144,C,Capital Property & Construction ,Capital Property & Construction,Nicon House,EN1 3EF,Z50000,8102,Lot 1 Roofing Works consultancy services,Lot 1 Roofing Works consultancy services,1256857,12/03/2024,20407.58,No
323,9040,Statutory Year-End Adjustments,Statutory Year End Accounting,Statutory Year-End Adjustments,Professional Fees : Non Legal,ZN,2200380977,C,Capital Property & Construction ,Capital Property & Construction,Nicon House,EN1 3EF,Z50000,8017,Scheme 9 - Warwick Road Estate - RIBA,Scheme 9 - Warwick Road Estate - RIBA,1256857,15/03/2024,1260,No
324,9040,Statutory Year-End Adjustments,Statutory Year End Accounting,Statutory Year-End Adjustments,Payments to main contractor,ZN,2200381434,C,Capital Property & Construction ,Capital Property & Construction,Nicon House,EN1 3EF,Z50000,8102,Lot 1 MDC Main Works St 4 early works,Lot 1 MDC Main Works St 4 early works,1256857,18/03/2024,39776,No
325,9040,Statutory Year-End Adjustments,Statutory Year End Accounting,Statutory Year-End Adjustments,Site Works,ZN,2200382195,C,Capital Property & Construction ,Capital Property & Construction,Nicon House,EN1 3EF,Z50000,8130,Broadwood Terrace - Concrete inspection,Broadwood Terrace - Concrete inspection,1256857,21/03/2024,7475,No
326,9040,Statutory Year-End Adjustments,Statutory Year End Accounting,Statutory Year-End Adjustments,Site Works,ZN,2200382196,C,Capital Property & Construction ,Capital Property & Construction,Nicon House,EN1 3EF,Z50000,8130,Broadwood Terrace - Concrete inspection,Broadwood Terrace - Concrete inspection,1256857,21/03/2024,3420,No
327,9040,Statutory Year-End Adjustments,Statutory Year End Accounting,Statutory Year-End Adjustments,Professional Fees : Non Legal,ZN,2200382606,C,Capital Property & Construction ,Capital Property & Construction,Nicon House,EN1 3EF,Z50000,8017,CA/QS Services - Scheme 10,CA/QS Services - Scheme 10,1256857,22/03/2024,5133.06,No
328,9040,Statutory Year-End Adjustments,Statutory Year End Accounting,Statutory Year-End Adjustments,Professional Fees : Non Legal,ZN,2200382609,C,Capital Property & Construction ,Capital Property & Construction,Nicon House,EN1 3EF,Z50000,8017,CA\QS Services for Cyclical Scheme 6,CA\QS Services for Cyclical Scheme 6,1256857,22/03/2024,888.5,No
329,9040,Statutory Year-End Adjustments,Statutory Year End Accounting,Statutory Year-End Adjustments,Payments to main contractor,ZN,2200382787,C,Capital Property & Construction ,Capital Property & Construction,Nicon House,EN1 3EF,Z50000,8102,Lot 1 Roofing Works consultancy services,Lot 1 Roofing Works consultancy services,1256857,22/03/2024,20407.58,No
330,9040,Statutory Year-End Adjustments,Statutory Year End Accounting,Statutory Year-End Adjustments,Professional Fees : Non Legal,ZN,2200382838,C,Capital Property & Construction ,Capital Property & Construction,Nicon House,EN1 3EF,Z50000,8017,30 hrs (30x 150) = 4500 as per attached,30 hrs (30x 150) = 4500 as per attached,1256857,23/03/2024,1260,No
331,9040,Statutory Year-End Adjustments,Statutory Year End Accounting,Statutory Year-End Adjustments,Professional Fees : Non Legal,ZN,2200383560,C,Capital Property & Construction ,Capital Property & Construction,Nicon House,EN1 3EF,Z50000,8017,Scheme 9 - Warwick Road Estate -,Scheme 9 - Warwick Road Estate -,1256857,26/03/2024,1980,No
332,9040,Statutory Year-End Adjustments,Statutory Year End Accounting,Statutory Year-End Adjustments,Other Consultants,ZN,2200383643,C,Capital Property & Construction ,Capital Property & Construction,Nicon House,EN1 3EF,Z50000,8007,C.KJ10204.03 - Scheme 3 Pond House -,C.KJ10204.03 - Scheme 3 Pond House -,1256857,27/03/2024,12479.76,No
333,9040,Statutory Year-End Adjustments,Statutory Year End Accounting,Statutory Year-End Adjustments,Professional Fees : Non Legal,ZN,2200383926,C,Capital Property & Construction ,Capital Property & Construction,Nicon House,EN1 3EF,Z50000,8017,Scheme 26 - 60 Slaidburn - CA-QS Fee -,Scheme 26 - 60 Slaidburn - CA-QS Fee -,1256857,27/03/2024,1005,No
334,9040,Statutory Year-End Adjustments,Statutory Year End Accounting,Statutory Year-End Adjustments,Professional Fees : Non Legal,ZN,2200384048,C,Capital Property & Construction ,Capital Property & Construction,Nicon House,EN1 3EF,Z50000,8017,CA/QS Services - Scheme 10,CA/QS Services - Scheme 10,1256857,28/03/2024,5988.58,No
335,9040,Statutory Year-End Adjustments,Statutory Year End Accounting,Statutory Year-End Adjustments,Professional Fees : Non Legal,ZN,2200384052,C,Capital Property & Construction ,Capital Property & Construction,Nicon House,EN1 3EF,Z50000,8017,Scheme 16 | CA/QS Fees Part Two � Months,Scheme 16 | CA/QS Fees Part Two � Months,1256857,28/03/2024,8266.04,No
336,9040,Statutory Year-End Adjustments,Statutory Year End Accounting,Statutory Year-End Adjustments,Construction : enhancements,ZN,2200364883,C,Cappagh Contractors Construction (London) Ltd,Cappagh Contractors Construction,Cappagh House,SW17 0HB,Z50000,8035,Sloane Street - Drainage (Construction,Sloane Street - Drainage (Construction,1233084,02/01/2024,90864.7,No
337,9040,Statutory Year-End Adjustments,Statutory Year End Accounting,Statutory Year-End Adjustments,Acquisition of Land & Buildings,ZN,2200373807,C,Carter Jonas Llp ,Carter Jonas Llp,127 Mount Street,W1K 3NT,Z50000,8050,This is a draw down PO for valuation,This is a draw down PO for valuation,1233297,12/02/2024,1050,No
338,9040,Statutory Year-End Adjustments,Statutory Year End Accounting,Statutory Year-End Adjustments,Legal Fees & expenses,ZN,2200374319,C,Carter Jonas Llp ,Carter Jonas Llp,127 Mount Street,W1K 3NT,Z50000,8511,Acklam Road - 1999 valuation,Acklam Road - 1999 valuation,1233297,14/02/2024,4000,No
339,9040,Statutory Year-End Adjustments,Statutory Year End Accounting,Statutory Year-End Adjustments,Other Consultants,ZN,2200382557,C,Carter Jonas Llp ,Carter Jonas Llp,127 Mount Street,W1K 3NT,Z50000,8007,Kensal Road: Market Rents were urgently,Kensal Road: Market Rents were urgently,1233297,22/03/2024,500,No
340,9040,Statutory Year-End Adjustments,Statutory Year End Accounting,Statutory Year-End Adjustments,Special Maintenance,ZN,2200365324,C,Cavendish Construction LTD,Cavendish Construction LTD,Tower House,HP5 1TU,Z50000,8321,504 Barandon Walk - Shower room,504 Barandon Walk - Shower room,1267193,04/01/2024,11497.79,No
341,9040,Statutory Year-End Adjustments,Statutory Year End Accounting,Statutory Year-End Adjustments,Special Maintenance,ZN,2200365328,C,Cavendish Construction LTD,Cavendish Construction LTD,Tower House,HP5 1TU,Z50000,8321,16 Camelford Walk - Full Internal,16 Camelford Walk - Full Internal,1267193,04/01/2024,45352.53,No
342,9040,Statutory Year-End Adjustments,Statutory Year End Accounting,Statutory Year-End Adjustments,Special Maintenance,ZN,2200365332,C,Cavendish Construction LTD,Cavendish Construction LTD,Tower House,HP5 1TU,Z50000,8321,15 Verity Close (1 bed) Full Void Works,15 Verity Close (1 bed) Full Void Works,1267193,04/01/2024,34553.4,No
343,9040,Statutory Year-End Adjustments,Statutory Year End Accounting,Statutory Year-End Adjustments,Construction : enhancements,ZN,2200366432,C,Cavendish Construction LTD,Cavendish Construction LTD,Tower House,HP5 1TU,Z50000,8035,107 Wilsham Street: Additional,107 Wilsham Street: Additional,1267193,11/01/2024,11021.5,No
344,9040,Statutory Year-End Adjustments,Statutory Year End Accounting,Statutory Year-End Adjustments,Construction : enhancements,ZN,2200366433,C,Cavendish Construction LTD,Cavendish Construction LTD,Tower House,HP5 1TU,Z50000,8035,39C Danvers Street:,39C Danvers Street:,1267193,11/01/2024,32335.29,No
345,9040,Statutory Year-End Adjustments,Statutory Year End Accounting,Statutory Year-End Adjustments,Special Maintenance,ZN,2200368162,C,Cavendish Construction LTD,Cavendish Construction LTD,Tower House,HP5 1TU,Z50000,8321,Goodbye Gas Scheme - Lot 3,Goodbye Gas Scheme - Lot 3,1267193,18/01/2024,847.25,No
346,9040,Statutory Year-End Adjustments,Statutory Year End Accounting,Statutory Year-End Adjustments,Special Maintenance,ZN,2200368164,C,Cavendish Construction LTD,Cavendish Construction LTD,Tower House,HP5 1TU,Z50000,8321,Goodbye Gas Scheme - Lot 2,Goodbye Gas Scheme - Lot 2,1267193,18/01/2024,777.2,No
347,9040,Statutory Year-End Adjustments,Statutory Year End Accounting,Statutory Year-End Adjustments,Special Maintenance,ZN,2200368165,C,Cavendish Construction LTD,Cavendish Construction LTD,Tower House,HP5 1TU,Z50000,8321,Goodbye Gas Scheme - Lot 2,Goodbye Gas Scheme - Lot 2,1267193,18/01/2024,847.25,No
348,9040,Statutory Year-End Adjustments,Statutory Year End Accounting,Statutory Year-End Adjustments,Special Maintenance,ZN,2200368166,C,Cavendish Construction LTD,Cavendish Construction LTD,Tower House,HP5 1TU,Z50000,8321,Goodbye Gas Scheme - Lot 2,Goodbye Gas Scheme - Lot 2,1267193,18/01/2024,899.53,No
349,9040,Statutory Year-End Adjustments,Statutory Year End Accounting,Statutory Year-End Adjustments,Special Maintenance,ZN,2200368168,C,Cavendish Construction LTD,Cavendish Construction LTD,Tower House,HP5 1TU,Z50000,8321,Goodbye Gas Scheme - Lot 2,Goodbye Gas Scheme - Lot 2,1267193,18/01/2024,567.72,No
350,9040,Statutory Year-End Adjustments,Statutory Year End Accounting,Statutory Year-End Adjustments,Special Maintenance,ZN,2200368169,C,Cavendish Construction LTD,Cavendish Construction LTD,Tower House,HP5 1TU,Z50000,8321,Goodbye Gas Scheme - Lot 2,Goodbye Gas Scheme - Lot 2,1267193,18/01/2024,567.72,No
351,9040,Statutory Year-End Adjustments,Statutory Year End Accounting,Statutory Year-End Adjustments,Special Maintenance,ZN,2200368170,C,Cavendish Construction LTD,Cavendish Construction LTD,Tower House,HP5 1TU,Z50000,8321,Goodbye Gas Scheme - Lot 2,Goodbye Gas Scheme - Lot 2,1267193,18/01/2024,721.54,No
352,9040,Statutory Year-End Adjustments,Statutory Year End Accounting,Statutory Year-End Adjustments,Special Maintenance,ZN,2200368172,C,Cavendish Construction LTD,Cavendish Construction LTD,Tower House,HP5 1TU,Z50000,8321,Goodbye Gas Scheme - Lot 3,Goodbye Gas Scheme - Lot 3,1267193,18/01/2024,721.54,No
353,9040,Statutory Year-End Adjustments,Statutory Year End Accounting,Statutory Year-End Adjustments,Special Maintenance,ZN,2200368175,C,Cavendish Construction LTD,Cavendish Construction LTD,Tower House,HP5 1TU,Z50000,8321,Goodbye Gas Scheme - Lot 1,Goodbye Gas Scheme - Lot 1,1267193,18/01/2024,860.28,No
354,9040,Statutory Year-End Adjustments,Statutory Year End Accounting,Statutory Year-End Adjustments,Special Maintenance,ZN,2200368177,C,Cavendish Construction LTD,Cavendish Construction LTD,Tower House,HP5 1TU,Z50000,8321,Goodbye Gas Scheme - Lot 1,Goodbye Gas Scheme - Lot 1,1267193,18/01/2024,2545.65,No
355,9040,Statutory Year-End Adjustments,Statutory Year End Accounting,Statutory Year-End Adjustments,Special Maintenance,ZN,2200368178,C,Cavendish Construction LTD,Cavendish Construction LTD,Tower House,HP5 1TU,Z50000,8321,Goodbye Gas Scheme - Lot 1,Goodbye Gas Scheme - Lot 1,1267193,18/01/2024,721.54,No
356,9040,Statutory Year-End Adjustments,Statutory Year End Accounting,Statutory Year-End Adjustments,Special Maintenance,ZN,2200368247,C,Cavendish Construction LTD,Cavendish Construction LTD,Tower House,HP5 1TU,Z50000,8321,46 Verity Close (3 bed) - Full Void,46 Verity Close (3 bed) - Full Void,1267193,18/01/2024,44850.39,No
357,9040,Statutory Year-End Adjustments,Statutory Year End Accounting,Statutory Year-End Adjustments,Special Maintenance,ZN,2200371952,C,Cavendish Construction LTD,Cavendish Construction LTD,Tower House,HP5 1TU,Z50000,8321,Stores relocation due to Grenfell,Stores relocation due to Grenfell,1267193,05/02/2024,31258.4,No
358,9040,Statutory Year-End Adjustments,Statutory Year End Accounting,Statutory Year-End Adjustments,Special Maintenance,ZN,2200371988,C,Cavendish Construction LTD,Cavendish Construction LTD,Tower House,HP5 1TU,Z50000,8321,Hurstway Garages Welfare Conversion -,Hurstway Garages Welfare Conversion -,1267193,05/02/2024,9542.64,No
359,9040,Statutory Year-End Adjustments,Statutory Year End Accounting,Statutory Year-End Adjustments,Special Maintenance,ZN,2200371990,C,Cavendish Construction LTD,Cavendish Construction LTD,Tower House,HP5 1TU,Z50000,8321,Hurstway Garages Welfare Conversion -,Hurstway Garages Welfare Conversion -,1267193,05/02/2024,15462.64,No
360,9040,Statutory Year-End Adjustments,Statutory Year End Accounting,Statutory Year-End Adjustments,Special Maintenance,ZN,2200372006,C,Cavendish Construction LTD,Cavendish Construction LTD,Tower House,HP5 1TU,Z50000,8321,Stores relocation due to Grenfell,Stores relocation due to Grenfell,1267193,05/02/2024,31258.25,No
361,9040,Statutory Year-End Adjustments,Statutory Year End Accounting,Statutory Year-End Adjustments,Special Maintenance,ZN,2200372016,C,Cavendish Construction LTD,Cavendish Construction LTD,Tower House,HP5 1TU,Z50000,8321,Hurstway Garages Welfare Conversion -,Hurstway Garages Welfare Conversion -,1267193,05/02/2024,9542.64,No
362,9040,Statutory Year-End Adjustments,Statutory Year End Accounting,Statutory Year-End Adjustments,Special Maintenance,ZN,2200372020,C,Cavendish Construction LTD,Cavendish Construction LTD,Tower House,HP5 1TU,Z50000,8321,Hurstway Garages Welfare Conversion -,Hurstway Garages Welfare Conversion -,1267193,05/02/2024,9542.64,No
363,9040,Statutory Year-End Adjustments,Statutory Year End Accounting,Statutory Year-End Adjustments,Special Maintenance,ZN,2200372022,C,Cavendish Construction LTD,Cavendish Construction LTD,Tower House,HP5 1TU,Z50000,8321,Hurstway Garages Welfare Conversion -,Hurstway Garages Welfare Conversion -,1267193,05/02/2024,10905.04,No
364,9040,Statutory Year-End Adjustments,Statutory Year End Accounting,Statutory Year-End Adjustments,Special Maintenance,ZN,2200372838,C,Cavendish Construction LTD,Cavendish Construction LTD,Tower House,HP5 1TU,Z50000,8321,Nest Installation programme - 8 Talbot,Nest Installation programme - 8 Talbot,1267193,07/02/2024,943.36,No
365,9040,Statutory Year-End Adjustments,Statutory Year End Accounting,Statutory Year-End Adjustments,Special Maintenance,ZN,2200372839,C,Cavendish Construction LTD,Cavendish Construction LTD,Tower House,HP5 1TU,Z50000,8321,Nest Installation programme - 530,Nest Installation programme - 530,1267193,07/02/2024,722.67,No
366,9040,Statutory Year-End Adjustments,Statutory Year End Accounting,Statutory Year-End Adjustments,Special Maintenance,ZN,2200372840,C,Cavendish Construction LTD,Cavendish Construction LTD,Tower House,HP5 1TU,Z50000,8321,Nest Installation programme - 41 Verity,Nest Installation programme - 41 Verity,1267193,07/02/2024,562.83,No
367,9040,Statutory Year-End Adjustments,Statutory Year End Accounting,Statutory Year-End Adjustments,Special Maintenance,ZN,2200372841,C,Cavendish Construction LTD,Cavendish Construction LTD,Tower House,HP5 1TU,Z50000,8321,Nest Installation programme - 36 Upper,Nest Installation programme - 36 Upper,1267193,07/02/2024,1236.56,No
368,9040,Statutory Year-End Adjustments,Statutory Year End Accounting,Statutory Year-End Adjustments,Special Maintenance,ZN,2200372842,C,Cavendish Construction LTD,Cavendish Construction LTD,Tower House,HP5 1TU,Z50000,8321,Nest Installation programme - 426,Nest Installation programme - 426,1267193,07/02/2024,912.06,No
369,9040,Statutory Year-End Adjustments,Statutory Year End Accounting,Statutory Year-End Adjustments,Special Maintenance,ZN,2200372843,C,Cavendish Construction LTD,Cavendish Construction LTD,Tower House,HP5 1TU,Z50000,8321,Nest Installation programme - 30,Nest Installation programme - 30,1267193,07/02/2024,722.67,No
370,9040,Statutory Year-End Adjustments,Statutory Year End Accounting,Statutory Year-End Adjustments,Special Maintenance,ZN,2200372846,C,Cavendish Construction LTD,Cavendish Construction LTD,Tower House,HP5 1TU,Z50000,8321,Nest Installation programme - 313,Nest Installation programme - 313,1267193,07/02/2024,1040.12,No
371,9040,Statutory Year-End Adjustments,Statutory Year End Accounting,Statutory Year-End Adjustments,Special Maintenance,ZN,2200372847,C,Cavendish Construction LTD,Cavendish Construction LTD,Tower House,HP5 1TU,Z50000,8321,Nest Installation programme - 6 Talbot,Nest Installation programme - 6 Talbot,1267193,07/02/2024,943.36,No
372,9040,Statutory Year-End Adjustments,Statutory Year End Accounting,Statutory Year-End Adjustments,Special Maintenance,ZN,2200372848,C,Cavendish Construction LTD,Cavendish Construction LTD,Tower House,HP5 1TU,Z50000,8321,Nest Installation programme - 7 Upper,Nest Installation programme - 7 Upper,1267193,07/02/2024,912.06,No
373,9040,Statutory Year-End Adjustments,Statutory Year End Accounting,Statutory Year-End Adjustments,Special Maintenance,ZN,2200372850,C,Cavendish Construction LTD,Cavendish Construction LTD,Tower House,HP5 1TU,Z50000,8321,29 Verity Close - S/fit AirEx as agreed,29 Verity Close - S/fit AirEx as agreed,1267193,07/02/2024,2798.67,No
374,9040,Statutory Year-End Adjustments,Statutory Year End Accounting,Statutory Year-End Adjustments,Special Maintenance,ZN,2200373813,C,Cavendish Construction LTD,Cavendish Construction LTD,Tower House,HP5 1TU,Z50000,8321,14 Morland House - Minor works following,14 Morland House - Minor works following,1267193,12/02/2024,2941.41,No
375,9040,Statutory Year-End Adjustments,Statutory Year End Accounting,Statutory Year-End Adjustments,Construction : enhancements,ZN,2200374200,C,Cavendish Construction LTD,Cavendish Construction LTD,Tower House,HP5 1TU,Z50000,8035,11 Warren house: additional,11 Warren house: additional,1267193,14/02/2024,3017,No
376,9040,Statutory Year-End Adjustments,Statutory Year End Accounting,Statutory Year-End Adjustments,Construction : enhancements,ZN,2200374201,C,Cavendish Construction LTD,Cavendish Construction LTD,Tower House,HP5 1TU,Z50000,8035,107 Wilsham Street: Major void,107 Wilsham Street: Major void,1267193,14/02/2024,29749,No
377,9040,Statutory Year-End Adjustments,Statutory Year End Accounting,Statutory Year-End Adjustments,Construction : enhancements,ZN,2200374216,C,Cavendish Construction LTD,Cavendish Construction LTD,Tower House,HP5 1TU,Z50000,8035,Decorative works in Testerton walk,Decorative works in Testerton walk,1267193,14/02/2024,39964.66,No
378,9040,Statutory Year-End Adjustments,Statutory Year End Accounting,Statutory Year-End Adjustments,Construction : enhancements,ZN,2200374507,C,Cavendish Construction LTD,Cavendish Construction LTD,Tower House,HP5 1TU,Z50000,8035,11 Warren House personalisation works,11 Warren House personalisation works,1267193,15/02/2024,3937.63,No
379,9040,Statutory Year-End Adjustments,Statutory Year End Accounting,Statutory Year-End Adjustments,Special Maintenance,ZN,2200374648,C,Cavendish Construction LTD,Cavendish Construction LTD,Tower House,HP5 1TU,Z50000,8321,28 Talbot Grove House  - Full Internal,28 Talbot Grove House  - Full Internal,1267193,15/02/2024,46424.79,No
380,9040,Statutory Year-End Adjustments,Statutory Year End Accounting,Statutory Year-End Adjustments,Special Maintenance,ZN,2200374649,C,Cavendish Construction LTD,Cavendish Construction LTD,Tower House,HP5 1TU,Z50000,8321,427 Hurstway Walk - Full Void Works (2,427 Hurstway Walk - Full Void Works (2,1267193,15/02/2024,37689.17,No
381,9040,Statutory Year-End Adjustments,Statutory Year End Accounting,Statutory Year-End Adjustments,Special Maintenance,ZN,2200374652,C,Cavendish Construction LTD,Cavendish Construction LTD,Tower House,HP5 1TU,Z50000,8321,45 Clarendon Walk - Full Void Works (2,45 Clarendon Walk - Full Void Works (2,1267193,15/02/2024,41946.91,No
382,9040,Statutory Year-End Adjustments,Statutory Year End Accounting,Statutory Year-End Adjustments,Special Maintenance,ZN,2200375738,C,Cavendish Construction LTD,Cavendish Construction LTD,Tower House,HP5 1TU,Z50000,8321,39 Verity Close -Full Void Works (1 bed),39 Verity Close -Full Void Works (1 bed),1267193,20/02/2024,32756.35,No
383,9040,Statutory Year-End Adjustments,Statutory Year End Accounting,Statutory Year-End Adjustments,Special Maintenance,ZN,2200375739,C,Cavendish Construction LTD,Cavendish Construction LTD,Tower House,HP5 1TU,Z50000,8321,8 Camborne Mews - Full Internal,8 Camborne Mews - Full Internal,1267193,20/02/2024,34959.04,No
384,9040,Statutory Year-End Adjustments,Statutory Year End Accounting,Statutory Year-End Adjustments,Payments to main contractor,ZN,2200375740,C,Cavendish Construction LTD,Cavendish Construction LTD,Tower House,HP5 1TU,Z50000,8102,29 Upper Clarendon Walk - Void Clearance,29 Upper Clarendon Walk - Void Clearance,1267193,20/02/2024,800,No
385,9040,Statutory Year-End Adjustments,Statutory Year End Accounting,Statutory Year-End Adjustments,Special Maintenance,ZN,2200375741,C,Cavendish Construction LTD,Cavendish Construction LTD,Tower House,HP5 1TU,Z50000,8321,29 Upper Clarendon Walk - Full Void,29 Upper Clarendon Walk - Full Void,1267193,20/02/2024,41685.46,No
386,9040,Statutory Year-End Adjustments,Statutory Year End Accounting,Statutory Year-End Adjustments,Special Maintenance,ZN,2200375752,C,Cavendish Construction LTD,Cavendish Construction LTD,Tower House,HP5 1TU,Z50000,8321,2 Talbot Walk -  S/Fit Grabrails as per,2 Talbot Walk -  S/Fit Grabrails as per,1267193,20/02/2024,716.23,No
387,9040,Statutory Year-End Adjustments,Statutory Year End Accounting,Statutory Year-End Adjustments,Special Maintenance,ZN,2200375753,C,Cavendish Construction LTD,Cavendish Construction LTD,Tower House,HP5 1TU,Z50000,8321,67 Verity Close  - Additional Void works,67 Verity Close  - Additional Void works,1267193,20/02/2024,4297.13,No
388,9040,Statutory Year-End Adjustments,Statutory Year End Accounting,Statutory Year-End Adjustments,Construction : enhancements,ZN,2200376192,C,Cavendish Construction LTD,Cavendish Construction LTD,Tower House,HP5 1TU,Z50000,8035,450 Testerton making good,450 Testerton making good,1267193,21/02/2024,990,No
389,9040,Statutory Year-End Adjustments,Statutory Year End Accounting,Statutory Year-End Adjustments,Special Maintenance,ZN,2200379876,C,Cavendish Construction LTD,Cavendish Construction LTD,Tower House,HP5 1TU,Z50000,8321,20 Morland House - Full Void works with,20 Morland House - Full Void works with,1267193,11/03/2024,37477.79,No
390,9040,Statutory Year-End Adjustments,Statutory Year End Accounting,Statutory Year-End Adjustments,Special Maintenance,ZN,2200379879,C,Cavendish Construction LTD,Cavendish Construction LTD,Tower House,HP5 1TU,Z50000,8321,28 Talbot Grove House  - Full Internal,28 Talbot Grove House  - Full Internal,1267193,11/03/2024,45791.31,No
391,9040,Statutory Year-End Adjustments,Statutory Year End Accounting,Statutory Year-End Adjustments,Special Maintenance,ZN,2200379880,C,Cavendish Construction LTD,Cavendish Construction LTD,Tower House,HP5 1TU,Z50000,8321,26 Upper Camelford Walk (3 bed) Full,26 Upper Camelford Walk (3 bed) Full,1267193,11/03/2024,38520.53,No
392,9040,Statutory Year-End Adjustments,Statutory Year End Accounting,Statutory Year-End Adjustments,Special Maintenance,ZN,2200379884,C,Cavendish Construction LTD,Cavendish Construction LTD,Tower House,HP5 1TU,Z50000,8321,542 Hurstway Walk - Full Internal,542 Hurstway Walk - Full Internal,1267193,11/03/2024,43659.2,No
393,9040,Statutory Year-End Adjustments,Statutory Year End Accounting,Statutory Year-End Adjustments,Special Maintenance,ZN,2200379887,C,Cavendish Construction LTD,Cavendish Construction LTD,Tower House,HP5 1TU,Z50000,8321,2 Camelford Walk - Full Internal Refurbs,2 Camelford Walk - Full Internal Refurbs,1267193,11/03/2024,46238.56,No
394,9040,Statutory Year-End Adjustments,Statutory Year End Accounting,Statutory Year-End Adjustments,Special Maintenance,ZN,2200379889,C,Cavendish Construction LTD,Cavendish Construction LTD,Tower House,HP5 1TU,Z50000,8321,13 Camelford Court - Full Internal,13 Camelford Court - Full Internal,1267193,11/03/2024,44831.03,No
395,9040,Statutory Year-End Adjustments,Statutory Year End Accounting,Statutory Year-End Adjustments,Professional Fees : Non Legal,ZN,2200380133,C,Cavendish Construction LTD,Cavendish Construction LTD,Tower House,HP5 1TU,Z50000,8017,26 Oakworth Road - Supply and fit new,26 Oakworth Road - Supply and fit new,1267193,12/03/2024,11527.29,No
396,9040,Statutory Year-End Adjustments,Statutory Year End Accounting,Statutory Year-End Adjustments,Construction : enhancements,ZN,2200380237,C,Cavendish Construction LTD,Cavendish Construction LTD,Tower House,HP5 1TU,Z50000,8035,107 Wilsham: Various additional works,107 Wilsham: Various additional works,1267193,12/03/2024,14714,No
397,9040,Statutory Year-End Adjustments,Statutory Year End Accounting,Statutory Year-End Adjustments,Special Maintenance,ZN,2200380376,C,Cavendish Construction LTD,Cavendish Construction LTD,Tower House,HP5 1TU,Z50000,8321,410 Hurstway Walk (3 bed) - Full,410 Hurstway Walk (3 bed) - Full,1267193,13/03/2024,46321.39,No
398,9040,Statutory Year-End Adjustments,Statutory Year End Accounting,Statutory Year-End Adjustments,Special Maintenance,ZN,2200380383,C,Cavendish Construction LTD,Cavendish Construction LTD,Tower House,HP5 1TU,Z50000,8321,13 Camelford Court -IR- Installation of,13 Camelford Court -IR- Installation of,1267193,13/03/2024,13200,No
399,9040,Statutory Year-End Adjustments,Statutory Year End Accounting,Statutory Year-End Adjustments,Construction : enhancements,ZN,2200381428,C,Cavendish Construction LTD,Cavendish Construction LTD,Tower House,HP5 1TU,Z50000,8035,flat C 39 Davners St SW3 5AY,flat C 39 Davners St SW3 5AY,1267193,18/03/2024,3045,No
400,9040,Statutory Year-End Adjustments,Statutory Year End Accounting,Statutory Year-End Adjustments,Special Maintenance,ZN,2200383394,C,Cavendish Construction LTD,Cavendish Construction LTD,Tower House,HP5 1TU,Z50000,8321,Hurstway Garages Welfare Conversion -,Hurstway Garages Welfare Conversion -,1267193,26/03/2024,11583.92,No
401,9040,Statutory Year-End Adjustments,Statutory Year End Accounting,Statutory Year-End Adjustments,Special Maintenance,ZN,2200383395,C,Cavendish Construction LTD,Cavendish Construction LTD,Tower House,HP5 1TU,Z50000,8321,Hurstway Garages Welfare Conversion -,Hurstway Garages Welfare Conversion -,1267193,26/03/2024,10346,No
402,9040,Statutory Year-End Adjustments,Statutory Year End Accounting,Statutory Year-End Adjustments,Special Maintenance,ZN,2200383398,C,Cavendish Construction LTD,Cavendish Construction LTD,Tower House,HP5 1TU,Z50000,8321,325 Testerton Walk - Shower room,325 Testerton Walk - Shower room,1267193,26/03/2024,7680.66,No
403,9040,Statutory Year-End Adjustments,Statutory Year End Accounting,Statutory Year-End Adjustments,Special Maintenance,ZN,2200384025,C,Cavendish Construction LTD,Cavendish Construction LTD,Tower House,HP5 1TU,Z50000,8321,45 Clarendon Walk - Full Void Works (2,45 Clarendon Walk - Full Void Works (2,1267193,28/03/2024,41921.29,No
404,9040,Statutory Year-End Adjustments,Statutory Year End Accounting,Statutory Year-End Adjustments,Special Maintenance,ZN,2200384027,C,Cavendish Construction LTD,Cavendish Construction LTD,Tower House,HP5 1TU,Z50000,8321,39 Verity Close -Full Void Works (1 bed),39 Verity Close -Full Void Works (1 bed),1267193,28/03/2024,33827.85,No
405,9040,Statutory Year-End Adjustments,Statutory Year End Accounting,Statutory Year-End Adjustments,Special Maintenance,ZN,2200384028,C,Cavendish Construction LTD,Cavendish Construction LTD,Tower House,HP5 1TU,Z50000,8321,427 Hurstway Walk - Full Void Works (2,427 Hurstway Walk - Full Void Works (2,1267193,28/03/2024,38402.95,No
406,9040,Statutory Year-End Adjustments,Statutory Year End Accounting,Statutory Year-End Adjustments,Payments to main contractor,ZN,2200384029,C,Cavendish Construction LTD,Cavendish Construction LTD,Tower House,HP5 1TU,Z50000,8102,427 Hurstway Walk - Void Clearance,427 Hurstway Walk - Void Clearance,1267193,28/03/2024,800,No
407,9040,Statutory Year-End Adjustments,Statutory Year End Accounting,Statutory Year-End Adjustments,Other Consultants,ZN,2200374254,C,Cenergist Ltd,Cenergist Ltd,7 Bede House,NE37 2SH,Z50000,8007,Stage 4 RIBA early works (1),Stage 4 RIBA early works (1),1258887,14/02/2024,50000,No
408,9040,Statutory Year-End Adjustments,Statutory Year End Accounting,Statutory Year-End Adjustments,Other Consultants,ZN,2200374255,C,Cenergist Ltd,Cenergist Ltd,7 Bede House,NE37 2SH,Z50000,8007,Stage 4 RIBA early works (2),Stage 4 RIBA early works (2),1258887,14/02/2024,50000,No
409,9040,Statutory Year-End Adjustments,Statutory Year End Accounting,Statutory Year-End Adjustments,Payments to main contractor,ZN,2200381792,C,Cenergist Ltd,Cenergist Ltd,7 Bede House,NE37 2SH,Z50000,8102,Worlds End Estate - 7 Nr Pump Rooms - PO,Worlds End Estate - 7 Nr Pump Rooms - PO,1258887,19/03/2024,69767.01,No
410,9040,Statutory Year-End Adjustments,Statutory Year End Accounting,Statutory Year-End Adjustments,Other Consultants,ZN,2200383748,C,Cenergist Ltd,Cenergist Ltd,7 Bede House,NE37 2SH,Z50000,8007,Heat Network D&B �,Heat Network D&B �,1258887,27/03/2024,150316.38,No
411,9040,Statutory Year-End Adjustments,Statutory Year End Accounting,Statutory Year-End Adjustments,Other Consultants,ZN,2200383751,C,Cenergist Ltd,Cenergist Ltd,7 Bede House,NE37 2SH,Z50000,8007,Heat Network D&B,Heat Network D&B,1258887,27/03/2024,110914.88,No
412,9040,Statutory Year-End Adjustments,Statutory Year End Accounting,Statutory Year-End Adjustments,Payments to main contractor,ZN,2200368248,C,Central Moves Uk Limited ,Central Moves Uk Limited,"The Skills Centre,Twickenham",TW1 1DG,Z50000,8102,542 Hurstway Walk - IR programme move 2,542 Hurstway Walk - IR programme move 2,1233324,18/01/2024,1000,No
413,9040,Statutory Year-End Adjustments,Statutory Year End Accounting,Statutory Year-End Adjustments,Payments to main contractor,ZN,2200370746,C,Central Moves Uk Limited ,Central Moves Uk Limited,"The Skills Centre,Twickenham",TW1 1DG,Z50000,8102,518 Barandon Walk - IR programme move 2,518 Barandon Walk - IR programme move 2,1233324,30/01/2024,1370,No
414,9040,Statutory Year-End Adjustments,Statutory Year End Accounting,Statutory Year-End Adjustments,Payments to main contractor,ZN,2200370747,C,Central Moves Uk Limited ,Central Moves Uk Limited,"The Skills Centre,Twickenham",TW1 1DG,Z50000,8102,410 Hurstway Walk - IR programme move 2,410 Hurstway Walk - IR programme move 2,1233324,30/01/2024,2177.5,No
415,9040,Statutory Year-End Adjustments,Statutory Year End Accounting,Statutory Year-End Adjustments,Payments to main contractor,ZN,2200371198,C,Central Moves Uk Limited ,Central Moves Uk Limited,"The Skills Centre,Twickenham",TW1 1DG,Z50000,8102,ss16 Camelford Walk - IR programme move,ss16 Camelford Walk - IR programme move,1233324,01/02/2024,760,No
416,9040,Statutory Year-End Adjustments,Statutory Year End Accounting,Statutory Year-End Adjustments,Payments to main contractor,ZN,2200379755,C,Central Moves Uk Limited ,Central Moves Uk Limited,"The Skills Centre,Twickenham",TW1 1DG,Z50000,8102,28 Talbot Grove House - IR programme,28 Talbot Grove House - IR programme,1233324,11/03/2024,1240,No
417,9040,Statutory Year-End Adjustments,Statutory Year End Accounting,Statutory Year-End Adjustments,Payments to main contractor,ZN,2200379762,C,Central Moves Uk Limited ,Central Moves Uk Limited,"The Skills Centre,Twickenham",TW1 1DG,Z50000,8102,2 Camelford Walk - IR programme move 2,2 Camelford Walk - IR programme move 2,1233324,11/03/2024,3600,No
418,9040,Statutory Year-End Adjustments,Statutory Year End Accounting,Statutory Year-End Adjustments,Payments to main contractor,ZN,2200368516,C,Chapmanbdsp Limited,Chapmanbdsp Limited,40 Gracechurch Street,EC3V 0BT,Z50000,8102,Additional Lifts LWE - RIBA 2-3,Additional Lifts LWE - RIBA 2-3,1270766,19/01/2024,1012.5,No
419,9040,Statutory Year-End Adjustments,Statutory Year End Accounting,Statutory Year-End Adjustments,Payments to main contractor,ZN,2200377860,C,Chapmanbdsp Limited,Chapmanbdsp Limited,40 Gracechurch Street,EC3V 0BT,Z50000,8102,Good lift in Hurst Way,Good lift in Hurst Way,1270766,01/03/2024,4600,No
420,9040,Statutory Year-End Adjustments,Statutory Year End Accounting,Statutory Year-End Adjustments,Payments to main contractor,ZN,2200383974,C,Chris Edge Tree Care Ltd ,Chris Edge Tree Care Ltd,20 Eastwick Drive,KT23 3PR,Z50000,8102,"Portobello Court, EIB- benches","Portobello Court, EIB- benches",1233369,28/03/2024,3450,No
421,9040,Statutory Year-End Adjustments,Statutory Year End Accounting,Statutory Year-End Adjustments,Special Maintenance,ZN,2200371486,C,City Electrical Factors,City Electrical factors,Heathcote House,CV34 6LS,Z50000,8321,W11 Void Properties -  Material Stock,W11 Void Properties -  Material Stock,1263373,02/02/2024,1124.85,No
422,9040,Statutory Year-End Adjustments,Statutory Year End Accounting,Statutory Year-End Adjustments,Payments to main contractor,ZN,2200371186,C,Clean and Serene Ltd ,Clean and Serene Ltd,260-262 London Road,CR4 3HD,Z50000,8102,C.KJ10074.01 - 2No. scaffold cleans to,C.KJ10074.01 - 2No. scaffold cleans to,1233399,01/02/2024,545,No
423,9040,Statutory Year-End Adjustments,Statutory Year End Accounting,Statutory Year-End Adjustments,Payments to main contractor,ZN,2200371187,C,Clean and Serene Ltd ,Clean and Serene Ltd,260-262 London Road,CR4 3HD,Z50000,8102,C.KJ10074.01 - December and January,C.KJ10074.01 - December and January,1233399,01/02/2024,1635,No
424,9040,Statutory Year-End Adjustments,Statutory Year End Accounting,Statutory Year-End Adjustments,Payments to main contractor,ZN,2200377561,C,Clean and Serene Ltd ,Clean and Serene Ltd,260-262 London Road,CR4 3HD,Z50000,8102,C.KJ10074.01 - 3 Scaffold cleans on,C.KJ10074.01 - 3 Scaffold cleans on,1233399,29/02/2024,1635,No
425,9040,Statutory Year-End Adjustments,Statutory Year End Accounting,Statutory Year-End Adjustments,Payments to main contractor,ZN,2200380216,C,Closomat Ltd ,Closomat Ltd,Unit 1 Brooklands Place,M33 3SD,Z50000,8102,63 Wiltshire Close - Aerolet,63 Wiltshire Close - Aerolet,1233412,12/03/2024,4266.6,No
426,9040,Statutory Year-End Adjustments,Statutory Year End Accounting,Statutory Year-End Adjustments,Electrical & Mechanical Engineers,ZN,2200373966,C,T/A Colt Service,Colt International Ltd T/A Colt,Colt House Ridgeway Office Par,GU32 3QF,Z50000,8024,AOV Remedial Works Parts,AOV Remedial Works Parts,1231190,13/02/2024,39781,No
427,9040,Statutory Year-End Adjustments,Statutory Year End Accounting,Statutory Year-End Adjustments,Electrical & Mechanical Engineers,ZN,2200373970,C,T/A Colt Service,Colt International Ltd T/A Colt,Colt House Ridgeway Office Par,GU32 3QF,Z50000,8024,AOV Remedial Works Labour,AOV Remedial Works Labour,1231190,13/02/2024,2912,No
428,9040,Statutory Year-End Adjustments,Statutory Year End Accounting,Statutory Year-End Adjustments,Site Works,ZN,2200381370,C,Concept Facilities Management Ltd,Concept Facilities Management Ltd,13 Finns Industrial Park,GU10 5RX,Z50000,8130,Chelsea Old Town Hall: To carry out,Chelsea Old Town Hall: To carry out,1303027,18/03/2024,23442,No
429,9040,Statutory Year-End Adjustments,Statutory Year End Accounting,Statutory Year-End Adjustments,Payments to main contractor,ZN,2200374783,C,Connected Response Limite,Connected Response Limited,12 Meiklejohn Street,FK9 5HQ,Z50000,8102,Heating Control System - Trellick Tower,Heating Control System - Trellick Tower,1265273,16/02/2024,1627.5,No
430,9040,Statutory Year-End Adjustments,Statutory Year End Accounting,Statutory Year-End Adjustments,Site Works,ZN,2200380448,C,Contour Direct Ltd ,Contour Direct Ltd,Unit 40,UB6 8XU,Z50000,8130,Barlby Road Hoarding,Barlby Road Hoarding,1257919,13/03/2024,25514,No
431,9040,Statutory Year-End Adjustments,Statutory Year End Accounting,Statutory Year-End Adjustments,Payments to main contractor,ZN,2200368500,C,Core Projects Ltd ,Core Projects Ltd,351 Ashford Road,TW18 1QQ,Z50000,8102,Refurbishment of 95m of railings at,Refurbishment of 95m of railings at,1233682,19/01/2024,2677,No
432,9040,Statutory Year-End Adjustments,Statutory Year End Accounting,Statutory Year-End Adjustments,Professional Fees : Non Legal,ZN,2200364931,C,Croydon Council ,Croydon Council (**0624),Finance & Resources Taberner H,CR9 1JL,Z50000,8017,"FLC - APEX framework, RBKC Mazars","FLC - APEX framework, RBKC Mazars",1231774,02/01/2024,2336,No
433,9040,Statutory Year-End Adjustments,Statutory Year End Accounting,Statutory Year-End Adjustments,Professional Fees : Non Legal,ZN,2200364932,C,Croydon Council ,Croydon Council (**0624),Finance & Resources Taberner H,CR9 1JL,Z50000,8017,"FLC - APEX framework, RBKC Mazars","FLC - APEX framework, RBKC Mazars",1231774,02/01/2024,2336,No
434,9040,Statutory Year-End Adjustments,Statutory Year End Accounting,Statutory Year-End Adjustments,Other Consultants,ZN,2200364893,C,Cupaz ,Cupaz,Unit 1,SG12 0SS,Z50000,8007,To purchase and install lockers for 37,To purchase and install lockers for 37,1233737,02/01/2024,5220.8,No
435,9040,Statutory Year-End Adjustments,Statutory Year End Accounting,Statutory Year-End Adjustments,Site Works,ZN,2200369026,C,Cupaz ,Cupaz,Unit 1,SG12 0SS,Z50000,8130,Chairs (x3) for Learning Disability,Chairs (x3) for Learning Disability,1233737,23/01/2024,1588.02,No
436,9040,Statutory Year-End Adjustments,Statutory Year End Accounting,Statutory Year-End Adjustments,Other Consultants,ZN,2200374095,C,Currie & Brown UK Ltd ,Currie & Brown UK Ltd,40 Holborn Viaduct,EC1N 2PB,Z50000,8007,Support Services to claim against the,Support Services to claim against the,1233738,13/02/2024,750,No
437,9040,Statutory Year-End Adjustments,Statutory Year End Accounting,Statutory Year-End Adjustments,Payments to main contractor,ZN,2200369128,C,Cyclehoop Ltd ,Cyclehoop Ltd,UNIT 1,SE26 5AG,Z50000,8102,26x Black Cycle Hangar units,26x Black Cycle Hangar units,1233744,23/01/2024,13557,No
438,9040,Statutory Year-End Adjustments,Statutory Year End Accounting,Statutory Year-End Adjustments,Payments to main contractor,ZN,2200369129,C,Cyclehoop Ltd ,Cyclehoop Ltd,UNIT 1,SE26 5AG,Z50000,8102,26x Black Cycle Hangar units,26x Black Cycle Hangar units,1233744,23/01/2024,4519,No
439,9040,Statutory Year-End Adjustments,Statutory Year End Accounting,Statutory Year-End Adjustments,Payments to main contractor,ZN,2200369131,C,Cyclehoop Ltd ,Cyclehoop Ltd,UNIT 1,SE26 5AG,Z50000,8102,26x Black Cycle Hangar units,26x Black Cycle Hangar units,1233744,23/01/2024,4519,No
440,9040,Statutory Year-End Adjustments,Statutory Year End Accounting,Statutory Year-End Adjustments,Payments to main contractor,ZN,2200370223,C,Cyclehoop Ltd ,Cyclehoop Ltd,UNIT 1,SE26 5AG,Z50000,8102,26x Black Cycle Hangar units,26x Black Cycle Hangar units,1233744,29/01/2024,4519,No
441,9040,Statutory Year-End Adjustments,Statutory Year End Accounting,Statutory Year-End Adjustments,Payments to main contractor,ZN,2200370224,C,Cyclehoop Ltd ,Cyclehoop Ltd,UNIT 1,SE26 5AG,Z50000,8102,26x Black Cycle Hangar units,26x Black Cycle Hangar units,1233744,29/01/2024,9038,No
442,9040,Statutory Year-End Adjustments,Statutory Year End Accounting,Statutory Year-End Adjustments,Payments to main contractor,ZN,2200367623,C,D R Jones Yeovil Ltd,D R Jones Yeovil Ltd,Willow House,BA22 8RP,Z50000,8102,C.KJ10204.03 - Scheme 3 Pond House.,C.KJ10204.03 - Scheme 3 Pond House.,1308767,16/01/2024,95283.53,No
443,9040,Statutory Year-End Adjustments,Statutory Year End Accounting,Statutory Year-End Adjustments,Payments to main contractor,ZN,2200374175,C,D R Jones Yeovil Ltd,D R Jones Yeovil Ltd,Willow House,BA22 8RP,Z50000,8102,C.KJ10204.03 - Scheme 3 Pond House.,C.KJ10204.03 - Scheme 3 Pond House.,1308767,14/02/2024,65748.37,No
444,9040,Statutory Year-End Adjustments,Statutory Year End Accounting,Statutory Year-End Adjustments,Payments to main contractor,ZN,2200378348,C,D R Jones Yeovil Ltd,D R Jones Yeovil Ltd,Willow House,BA22 8RP,Z50000,8102,C.KJ10204.03 - Scheme 3 Pond House.,C.KJ10204.03 - Scheme 3 Pond House.,1308767,05/03/2024,178326.64,No
445,9040,Statutory Year-End Adjustments,Statutory Year End Accounting,Statutory Year-End Adjustments,Special Maintenance,ZN,2200364875,C,DPJ Sprinklers Limited,DPJ Sprinklers Limited,Unit 19,SS11 7QX,Z50000,8321,Residential Sprinkler Box Removal x61,Residential Sprinkler Box Removal x61,1308421,02/01/2024,15879,No
446,9040,Statutory Year-End Adjustments,Statutory Year End Accounting,Statutory Year-End Adjustments,Electrical & Mechanical Engineers,ZN,2200368042,C,DPJ Sprinklers Limited,DPJ Sprinklers Limited,Unit 19,SS11 7QX,Z50000,8024,DECOMMITION COMPRESSOR BARADON WALK,DECOMMITION COMPRESSOR BARADON WALK,1308421,18/01/2024,1850,No
447,9040,Statutory Year-End Adjustments,Statutory Year End Accounting,Statutory Year-End Adjustments,Electrical & Mechanical Engineers,ZN,2200369772,C,DPJ Sprinklers Limited,DPJ Sprinklers Limited,Unit 19,SS11 7QX,Z50000,8024,DESIGN LIGHTING TESTERTON,DESIGN LIGHTING TESTERTON,1308421,25/01/2024,10100,No
448,9040,Statutory Year-End Adjustments,Statutory Year End Accounting,Statutory Year-End Adjustments,Electrical & Mechanical Engineers,ZN,2200369886,C,DPJ Sprinklers Limited,DPJ Sprinklers Limited,Unit 19,SS11 7QX,Z50000,8024,TESTERTON LED LIGHTING,TESTERTON LED LIGHTING,1308421,26/01/2024,19320,No
449,9040,Statutory Year-End Adjustments,Statutory Year End Accounting,Statutory Year-End Adjustments,Electrical & Mechanical Engineers,ZN,2200371898,C,DPJ Sprinklers Limited,DPJ Sprinklers Limited,Unit 19,SS11 7QX,Z50000,8024,Emergency lighting supply and fit cost,Emergency lighting supply and fit cost,1308421,05/02/2024,7761,No
450,9040,Statutory Year-End Adjustments,Statutory Year End Accounting,Statutory Year-End Adjustments,Electrical & Mechanical Engineers,ZN,2200372324,C,DPJ Sprinklers Limited,DPJ Sprinklers Limited,Unit 19,SS11 7QX,Z50000,8024,Emergency lighting supply and fit cost,Emergency lighting supply and fit cost,1308421,06/02/2024,7761,No
451,9040,Statutory Year-End Adjustments,Statutory Year End Accounting,Statutory Year-End Adjustments,Electrical & Mechanical Engineers,ZN,2200377295,C,DPJ Sprinklers Limited,DPJ Sprinklers Limited,Unit 19,SS11 7QX,Z50000,8024,C.KJ10098.01Emergency lighting supply,C.KJ10098.01Emergency lighting supply,1308421,28/02/2024,2904,No
452,9040,Statutory Year-End Adjustments,Statutory Year End Accounting,Statutory Year-End Adjustments,Electrical & Mechanical Engineers,ZN,2200377347,C,DPJ Sprinklers Limited,DPJ Sprinklers Limited,Unit 19,SS11 7QX,Z50000,8024,Emergency lighting supply and fit cost,Emergency lighting supply and fit cost,1308421,28/02/2024,9746,No
453,9040,Statutory Year-End Adjustments,Statutory Year End Accounting,Statutory Year-End Adjustments,Special Maintenance,ZN,2200377541,C,DPJ Sprinklers Limited,DPJ Sprinklers Limited,Unit 19,SS11 7QX,Z50000,8321,Sprinkler Installation - 541 Testerton,Sprinkler Installation - 541 Testerton,1308421,29/02/2024,507.2,No
454,9040,Statutory Year-End Adjustments,Statutory Year End Accounting,Statutory Year-End Adjustments,Payments to main contractor,ZN,2200377611,C,DPJ Sprinklers Limited,DPJ Sprinklers Limited,Unit 19,SS11 7QX,Z50000,8102,Sprinkler Installation - 330 Hurstway,Sprinkler Installation - 330 Hurstway,1308421,29/02/2024,6891,No
455,9040,Statutory Year-End Adjustments,Statutory Year End Accounting,Statutory Year-End Adjustments,Special Maintenance,ZN,2200377613,C,DPJ Sprinklers Limited,DPJ Sprinklers Limited,Unit 19,SS11 7QX,Z50000,8321,Sprinkler Installation - 316 Testerton,Sprinkler Installation - 316 Testerton,1308421,29/02/2024,5072,No
456,9040,Statutory Year-End Adjustments,Statutory Year End Accounting,Statutory Year-End Adjustments,Electrical & Mechanical Engineers,ZN,2200377861,C,DPJ Sprinklers Limited,DPJ Sprinklers Limited,Unit 19,SS11 7QX,Z50000,8024,UPS batteries 4 Hortensia Rd,UPS batteries 4 Hortensia Rd,1308421,01/03/2024,23223,No
457,9040,Statutory Year-End Adjustments,Statutory Year End Accounting,Statutory Year-End Adjustments,Electrical & Mechanical Engineers,ZN,2200381123,C,DPJ Sprinklers Limited,DPJ Sprinklers Limited,Unit 19,SS11 7QX,Z50000,8024,Laterals Moreland House,Laterals Moreland House,1308421,15/03/2024,31000,No
458,9040,Statutory Year-End Adjustments,Statutory Year End Accounting,Statutory Year-End Adjustments,Special Maintenance,ZN,2200383041,C,DPJ Sprinklers Limited,DPJ Sprinklers Limited,Unit 19,SS11 7QX,Z50000,8321,Sprinkler Installation - 307 Testerton,Sprinkler Installation - 307 Testerton,1308421,25/03/2024,6891,No
459,9040,Statutory Year-End Adjustments,Statutory Year End Accounting,Statutory Year-End Adjustments,Electrical & Mechanical Engineers,ZN,2200383334,C,DPJ Sprinklers Limited,DPJ Sprinklers Limited,Unit 19,SS11 7QX,Z50000,8024,Lighting alterations for Talbot Grove,Lighting alterations for Talbot Grove,1308421,26/03/2024,2000,No
460,9040,Statutory Year-End Adjustments,Statutory Year End Accounting,Statutory Year-End Adjustments,Payments to main contractor,ZN,2200364873,C,Decontaminate UK Limited,Decontaminate UK Limited,Burdett House,WC2N 6DU,Z50000,8102,Removal of asbestos to bin stores,Removal of asbestos to bin stores,1280985,02/01/2024,20030.62,No
461,9040,Statutory Year-End Adjustments,Statutory Year End Accounting,Statutory Year-End Adjustments,Payments to main contractor,ZN,2200364885,C,Decontaminate UK Limited,Decontaminate UK Limited,Burdett House,WC2N 6DU,Z50000,8102,29 Upper Clarendon Walk - Asbestos,29 Upper Clarendon Walk - Asbestos,1280985,02/01/2024,3904.17,No
462,9040,Statutory Year-End Adjustments,Statutory Year End Accounting,Statutory Year-End Adjustments,Payments to main contractor,ZN,2200364899,C,Decontaminate UK Limited,Decontaminate UK Limited,Burdett House,WC2N 6DU,Z50000,8102,316 Testerton Walk - Asbestos Removal,316 Testerton Walk - Asbestos Removal,1280985,02/01/2024,6639.36,No
463,9040,Statutory Year-End Adjustments,Statutory Year End Accounting,Statutory Year-End Adjustments,Payments to main contractor,ZN,2200364901,C,Decontaminate UK Limited,Decontaminate UK Limited,Burdett House,WC2N 6DU,Z50000,8102,45 Clarendon Walk - Asbestos Removal,45 Clarendon Walk - Asbestos Removal,1280985,02/01/2024,5094.18,No
464,9040,Statutory Year-End Adjustments,Statutory Year End Accounting,Statutory Year-End Adjustments,Payments to main contractor,ZN,2200364904,C,Decontaminate UK Limited,Decontaminate UK Limited,Burdett House,WC2N 6DU,Z50000,8102,Treadgold House Bin Stores - Asbestos,Treadgold House Bin Stores - Asbestos,1280985,02/01/2024,8457.82,No
465,9040,Statutory Year-End Adjustments,Statutory Year End Accounting,Statutory Year-End Adjustments,Payments to main contractor,ZN,2200366771,C,Decontaminate UK Limited,Decontaminate UK Limited,Burdett House,WC2N 6DU,Z50000,8102,439 Testerton Walk - Asbestos Removal,439 Testerton Walk - Asbestos Removal,1280985,12/01/2024,8682.49,No
466,9040,Statutory Year-End Adjustments,Statutory Year End Accounting,Statutory Year-End Adjustments,Payments to main contractor,ZN,2200366772,C,Decontaminate UK Limited,Decontaminate UK Limited,Burdett House,WC2N 6DU,Z50000,8102,427 Hurstway Walk - Asbestos Removal,427 Hurstway Walk - Asbestos Removal,1280985,12/01/2024,9452.9,No
467,9040,Statutory Year-End Adjustments,Statutory Year End Accounting,Statutory Year-End Adjustments,Payments to main contractor,ZN,2200368207,C,Decontaminate UK Limited,Decontaminate UK Limited,Burdett House,WC2N 6DU,Z50000,8102,7 Clarendon Walk  - Asbestos Removal,7 Clarendon Walk  - Asbestos Removal,1280985,18/01/2024,1801.8,No
468,9040,Statutory Year-End Adjustments,Statutory Year End Accounting,Statutory Year-End Adjustments,Payments to main contractor,ZN,2200369039,C,Decontaminate UK Limited,Decontaminate UK Limited,Burdett House,WC2N 6DU,Z50000,8102,13 Camelford Court  - Asbestos Removal,13 Camelford Court  - Asbestos Removal,1280985,23/01/2024,780.83,No
469,9040,Statutory Year-End Adjustments,Statutory Year End Accounting,Statutory Year-End Adjustments,Payments to main contractor,ZN,2200369048,C,Decontaminate UK Limited,Decontaminate UK Limited,Burdett House,WC2N 6DU,Z50000,8102,25 Treadgold House  - Asbestos Removal,25 Treadgold House  - Asbestos Removal,1280985,23/01/2024,3525.8,No
470,9040,Statutory Year-End Adjustments,Statutory Year End Accounting,Statutory Year-End Adjustments,Payments to main contractor,ZN,2200371114,C,Decontaminate UK Limited,Decontaminate UK Limited,Burdett House,WC2N 6DU,Z50000,8102,13 Camelford Walk - Asbestos Removal,13 Camelford Walk - Asbestos Removal,1280985,01/02/2024,7215.55,No
471,9040,Statutory Year-End Adjustments,Statutory Year End Accounting,Statutory Year-End Adjustments,Payments to main contractor,ZN,2200371116,C,Decontaminate UK Limited,Decontaminate UK Limited,Burdett House,WC2N 6DU,Z50000,8102,20 Morland House - Asbestos Removal,20 Morland House - Asbestos Removal,1280985,01/02/2024,3898.44,No
472,9040,Statutory Year-End Adjustments,Statutory Year End Accounting,Statutory Year-End Adjustments,Payments to main contractor,ZN,2200371163,C,Decontaminate UK Limited,Decontaminate UK Limited,Burdett House,WC2N 6DU,Z50000,8102,29 Upper Clarendon Walk - AIB asbestos,29 Upper Clarendon Walk - AIB asbestos,1280985,01/02/2024,2515.64,No
473,9040,Statutory Year-End Adjustments,Statutory Year End Accounting,Statutory Year-End Adjustments,Payments to main contractor,ZN,2200371170,C,Decontaminate UK Limited,Decontaminate UK Limited,Burdett House,WC2N 6DU,Z50000,8102,12 Upper Camelford Walk - Removal of,12 Upper Camelford Walk - Removal of,1280985,01/02/2024,587.06,No
474,9040,Statutory Year-End Adjustments,Statutory Year End Accounting,Statutory Year-End Adjustments,Payments to main contractor,ZN,2200371191,C,Decontaminate UK Limited,Decontaminate UK Limited,Burdett House,WC2N 6DU,Z50000,8102,12 Verity Close - Asbestos Removal,12 Verity Close - Asbestos Removal,1280985,01/02/2024,7127.27,No
475,9040,Statutory Year-End Adjustments,Statutory Year End Accounting,Statutory Year-End Adjustments,Payments to main contractor,ZN,2200371193,C,Decontaminate UK Limited,Decontaminate UK Limited,Burdett House,WC2N 6DU,Z50000,8102,330 Hurstway Walk - Asbestos Removal,330 Hurstway Walk - Asbestos Removal,1280985,01/02/2024,8604.09,No
476,9040,Statutory Year-End Adjustments,Statutory Year End Accounting,Statutory Year-End Adjustments,Payments to main contractor,ZN,2200375749,C,Decontaminate UK Limited,Decontaminate UK Limited,Burdett House,WC2N 6DU,Z50000,8102,37 Clarendon Walk - Asbestos Removal,37 Clarendon Walk - Asbestos Removal,1280985,20/02/2024,4030.3,No
477,9040,Statutory Year-End Adjustments,Statutory Year End Accounting,Statutory Year-End Adjustments,Payments to main contractor,ZN,2200375750,C,Decontaminate UK Limited,Decontaminate UK Limited,Burdett House,WC2N 6DU,Z50000,8102,35 Treadgold House - Asbestos removal,35 Treadgold House - Asbestos removal,1280985,20/02/2024,2063.88,No
478,9040,Statutory Year-End Adjustments,Statutory Year End Accounting,Statutory Year-End Adjustments,Payments to main contractor,ZN,2200375751,C,Decontaminate UK Limited,Decontaminate UK Limited,Burdett House,WC2N 6DU,Z50000,8102,31 Upper Camelford Walk - Asbestos,31 Upper Camelford Walk - Asbestos,1280985,20/02/2024,6990.82,No
479,9040,Statutory Year-End Adjustments,Statutory Year End Accounting,Statutory Year-End Adjustments,Payments to main contractor,ZN,2200376589,C,Decontaminate UK Limited,Decontaminate UK Limited,Burdett House,WC2N 6DU,Z50000,8102,529 Barandon Walk - Asbestos Removal,529 Barandon Walk - Asbestos Removal,1280985,23/02/2024,3077.26,No
480,9040,Statutory Year-End Adjustments,Statutory Year End Accounting,Statutory Year-End Adjustments,Payments to main contractor,ZN,2200380082,C,Decontaminate UK Limited,Decontaminate UK Limited,Burdett House,WC2N 6DU,Z50000,8102,307 Testerton Walk (3 bed) - Asbestos +,307 Testerton Walk (3 bed) - Asbestos +,1280985,12/03/2024,12237.66,No
481,9040,Statutory Year-End Adjustments,Statutory Year End Accounting,Statutory Year-End Adjustments,Payments to main contractor,ZN,2200380083,C,Decontaminate UK Limited,Decontaminate UK Limited,Burdett House,WC2N 6DU,Z50000,8102,550 Barandon Walk - Asbestos + AIB,550 Barandon Walk - Asbestos + AIB,1280985,12/03/2024,6294.83,No
482,9040,Statutory Year-End Adjustments,Statutory Year End Accounting,Statutory Year-End Adjustments,Payments to main contractor,ZN,2200380877,C,Decontaminate UK Limited,Decontaminate UK Limited,Burdett House,WC2N 6DU,Z50000,8102,443 Testerton Walk  - Asbestos Removal,443 Testerton Walk  - Asbestos Removal,1280985,14/03/2024,8490.57,No
483,9040,Statutory Year-End Adjustments,Statutory Year End Accounting,Statutory Year-End Adjustments,Payments to main contractor,ZN,2200383020,C,Decontaminate UK Limited,Decontaminate UK Limited,Burdett House,WC2N 6DU,Z50000,8102,21 Upper Clarendon Walk - Asbestos,21 Upper Clarendon Walk - Asbestos,1280985,25/03/2024,3577.39,No
484,9040,Statutory Year-End Adjustments,Statutory Year End Accounting,Statutory Year-End Adjustments,Site Works,ZN,2200366436,C,Delva Patman Redler LLP,Delva Patman Redler LLP,Thavies Inn House,EC1N 2HA,Z50000,8130,Treverton Road Regeneration & 343,Treverton Road Regeneration & 343,1271465,11/01/2024,6196.05,No
485,9040,Statutory Year-End Adjustments,Statutory Year End Accounting,Statutory Year-End Adjustments,Professional Fees : Non Legal,ZN,2200365453,C,Derisk (UK) Limited ,Derisk (UK) Limited,Burdett House,WC2N 6DU,Z50000,8017,Scheme 25 - Manchester Drive - DeRisk -,Scheme 25 - Manchester Drive - DeRisk -,1233980,05/01/2024,2383.73,No
486,9040,Statutory Year-End Adjustments,Statutory Year End Accounting,Statutory Year-End Adjustments,Other Consultants,ZN,2200366000,C,Derisk (UK) Limited ,Derisk (UK) Limited,Burdett House,WC2N 6DU,Z50000,8007,H&S Competent Person services,H&S Competent Person services,1233980,09/01/2024,695,No
487,9040,Statutory Year-End Adjustments,Statutory Year End Accounting,Statutory Year-End Adjustments,Payments to main contractor,ZN,2200366239,C,Derisk (UK) Limited ,Derisk (UK) Limited,Burdett House,WC2N 6DU,Z50000,8102,LWE PD to Review all Projects and,LWE PD to Review all Projects and,1233980,10/01/2024,2300.01,No
488,9040,Statutory Year-End Adjustments,Statutory Year End Accounting,Statutory Year-End Adjustments,Payments to main contractor,ZN,2200366242,C,Derisk (UK) Limited ,Derisk (UK) Limited,Burdett House,WC2N 6DU,Z50000,8102,LWE Principle Designer Fees - Lot 1,LWE Principle Designer Fees - Lot 1,1233980,10/01/2024,1149.99,No
489,9040,Statutory Year-End Adjustments,Statutory Year End Accounting,Statutory Year-End Adjustments,Payments to main contractor,ZN,2200366243,C,Derisk (UK) Limited ,Derisk (UK) Limited,Burdett House,WC2N 6DU,Z50000,8102,LWE Principle Designer Fees - Lot 2,LWE Principle Designer Fees - Lot 2,1233980,10/01/2024,733.32,No
490,9040,Statutory Year-End Adjustments,Statutory Year End Accounting,Statutory Year-End Adjustments,Payments to main contractor,ZN,2200366244,C,Derisk (UK) Limited ,Derisk (UK) Limited,Burdett House,WC2N 6DU,Z50000,8102,LWE Principle Designer Fees - Lot 3,LWE Principle Designer Fees - Lot 3,1233980,10/01/2024,520.83,No
491,9040,Statutory Year-End Adjustments,Statutory Year End Accounting,Statutory Year-End Adjustments,Other Consultants,ZN,2200366730,C,Derisk (UK) Limited ,Derisk (UK) Limited,Burdett House,WC2N 6DU,Z50000,8007,H&S Competent Person services,H&S Competent Person services,1233980,12/01/2024,695,No
492,9040,Statutory Year-End Adjustments,Statutory Year End Accounting,Statutory Year-End Adjustments,Professional Fees : Non Legal,ZN,2200367405,C,Derisk (UK) Limited ,Derisk (UK) Limited,Burdett House,WC2N 6DU,Z50000,8017,C.KJ10211.01 Trellick Tower Electrical,C.KJ10211.01 Trellick Tower Electrical,1233980,16/01/2024,2050.49,No
493,9040,Statutory Year-End Adjustments,Statutory Year End Accounting,Statutory Year-End Adjustments,Electrical & Mechanical Engineers,ZN,2200370961,C,Derisk (UK) Limited ,Derisk (UK) Limited,Burdett House,WC2N 6DU,Z50000,8024,Payment for RoSPA Award,Payment for RoSPA Award,1233980,31/01/2024,996,No
494,9040,Statutory Year-End Adjustments,Statutory Year End Accounting,Statutory Year-End Adjustments,Professional Fees : Non Legal,ZN,2200374776,C,Derisk (UK) Limited ,Derisk (UK) Limited,Burdett House,WC2N 6DU,Z50000,8017,C.KJ10204.03 - Pond house. Purchase,C.KJ10204.03 - Pond house. Purchase,1233980,16/02/2024,1475,No
495,9040,Statutory Year-End Adjustments,Statutory Year End Accounting,Statutory Year-End Adjustments,Other Consultants,ZN,2200376165,C,Derisk (UK) Limited ,Derisk (UK) Limited,Burdett House,WC2N 6DU,Z50000,8007,LWE Principle Designer Fees - Lot 1 -,LWE Principle Designer Fees - Lot 1 -,1233980,21/02/2024,1096.7,No
496,9040,Statutory Year-End Adjustments,Statutory Year End Accounting,Statutory Year-End Adjustments,Other Consultants,ZN,2200376166,C,Derisk (UK) Limited ,Derisk (UK) Limited,Burdett House,WC2N 6DU,Z50000,8007,LWE Principle Designer Fees - Lot 2 -,LWE Principle Designer Fees - Lot 2 -,1233980,21/02/2024,1147.7,No
497,9040,Statutory Year-End Adjustments,Statutory Year End Accounting,Statutory Year-End Adjustments,Other Consultants,ZN,2200376176,C,Derisk (UK) Limited ,Derisk (UK) Limited,Burdett House,WC2N 6DU,Z50000,8007,LWE PD to Review all Projects and,LWE PD to Review all Projects and,1233980,21/02/2024,1555.7,No
498,9040,Statutory Year-End Adjustments,Statutory Year End Accounting,Statutory Year-End Adjustments,Other Consultants,ZN,2200377271,C,Derisk (UK) Limited ,Derisk (UK) Limited,Burdett House,WC2N 6DU,Z50000,8007,LWE Principle Designer Fees - Lot 1 -,LWE Principle Designer Fees - Lot 1 -,1233980,28/02/2024,1096.7,No
499,9040,Statutory Year-End Adjustments,Statutory Year End Accounting,Statutory Year-End Adjustments,Other Consultants,ZN,2200377273,C,Derisk (UK) Limited ,Derisk (UK) Limited,Burdett House,WC2N 6DU,Z50000,8007,LWE Principle Designer Fees - Lot 2 -,LWE Principle Designer Fees - Lot 2 -,1233980,28/02/2024,1147.7,No
500,9040,Statutory Year-End Adjustments,Statutory Year End Accounting,Statutory Year-End Adjustments,Other Consultants,ZN,2200377278,C,Derisk (UK) Limited ,Derisk (UK) Limited,Burdett House,WC2N 6DU,Z50000,8007,LWE PD to Review all Projects and,LWE PD to Review all Projects and,1233980,28/02/2024,1555.7,No
501,9040,Statutory Year-End Adjustments,Statutory Year End Accounting,Statutory Year-End Adjustments,Professional Fees : Non Legal,ZN,2200377421,C,Derisk (UK) Limited ,Derisk (UK) Limited,Burdett House,WC2N 6DU,Z50000,8017,Scheme 22 - Wandon Road Estate - DeRisk,Scheme 22 - Wandon Road Estate - DeRisk,1233980,28/02/2024,3920,No
502,9040,Statutory Year-End Adjustments,Statutory Year End Accounting,Statutory Year-End Adjustments,Professional Fees : Non Legal,ZN,2200378332,C,Derisk (UK) Limited ,Derisk (UK) Limited,Burdett House,WC2N 6DU,Z50000,8017,C.KJ10119.01 - Principal Designer,C.KJ10119.01 - Principal Designer,1233980,05/03/2024,1680,No
503,9040,Statutory Year-End Adjustments,Statutory Year End Accounting,Statutory Year-End Adjustments,Other Consultants,ZN,2200378851,C,Derisk (UK) Limited ,Derisk (UK) Limited,Burdett House,WC2N 6DU,Z50000,8007,LWE Principle Designer Fees - Lot 1 -,LWE Principle Designer Fees - Lot 1 -,1233980,06/03/2024,1096.7,No
504,9040,Statutory Year-End Adjustments,Statutory Year End Accounting,Statutory Year-End Adjustments,Other Consultants,ZN,2200378852,C,Derisk (UK) Limited ,Derisk (UK) Limited,Burdett House,WC2N 6DU,Z50000,8007,LWE Principle Designer Fees - Lot 2 -,LWE Principle Designer Fees - Lot 2 -,1233980,06/03/2024,1147.7,No
505,9040,Statutory Year-End Adjustments,Statutory Year End Accounting,Statutory Year-End Adjustments,Other Consultants,ZN,2200378857,C,Derisk (UK) Limited ,Derisk (UK) Limited,Burdett House,WC2N 6DU,Z50000,8007,LWE PD to Review all Projects and,LWE PD to Review all Projects and,1233980,06/03/2024,1555.7,No
506,9040,Statutory Year-End Adjustments,Statutory Year End Accounting,Statutory Year-End Adjustments,Other Consultants,ZN,2200380822,C,Derisk (UK) Limited ,Derisk (UK) Limited,Burdett House,WC2N 6DU,Z50000,8007,LWE Principle Designer Fees - Lot 2 -,LWE Principle Designer Fees - Lot 2 -,1233980,14/03/2024,1147.7,No
507,9040,Statutory Year-End Adjustments,Statutory Year End Accounting,Statutory Year-End Adjustments,Other Consultants,ZN,2200380823,C,Derisk (UK) Limited ,Derisk (UK) Limited,Burdett House,WC2N 6DU,Z50000,8007,LWE Principle Designer Fees - Lot 1 -,LWE Principle Designer Fees - Lot 1 -,1233980,14/03/2024,1096.7,No
508,9040,Statutory Year-End Adjustments,Statutory Year End Accounting,Statutory Year-End Adjustments,Other Consultants,ZN,2200380828,C,Derisk (UK) Limited ,Derisk (UK) Limited,Burdett House,WC2N 6DU,Z50000,8007,LWE PD to Review all Projects and,LWE PD to Review all Projects and,1233980,14/03/2024,1555.7,No
509,9040,Statutory Year-End Adjustments,Statutory Year End Accounting,Statutory Year-End Adjustments,Professional Fees : Non Legal,ZN,2200382172,C,Derisk (UK) Limited ,Derisk (UK) Limited,Burdett House,WC2N 6DU,Z50000,8017,C.KJ10211.01 Trellick Tower Electrical,C.KJ10211.01 Trellick Tower Electrical,1233980,21/03/2024,585.85,No
510,9040,Statutory Year-End Adjustments,Statutory Year End Accounting,Statutory Year-End Adjustments,Professional Fees : Non Legal,ZN,2200382427,C,Derisk (UK) Limited ,Derisk (UK) Limited,Burdett House,WC2N 6DU,Z50000,8017,C.KJ10202.01 ref 197 Residential H&S,C.KJ10202.01 ref 197 Residential H&S,1233980,21/03/2024,1320,No
511,9040,Statutory Year-End Adjustments,Statutory Year End Accounting,Statutory Year-End Adjustments,Professional Fees : Non Legal,ZN,2200383194,C,Derisk (UK) Limited ,Derisk (UK) Limited,Burdett House,WC2N 6DU,Z50000,8017,Principal Designer Services - Lot 9 -,Principal Designer Services - Lot 9 -,1233980,25/03/2024,5467.57,No
512,9040,Statutory Year-End Adjustments,Statutory Year End Accounting,Statutory Year-End Adjustments,Professional Fees : Non Legal,ZN,2200383503,C,Derisk (UK) Limited ,Derisk (UK) Limited,Burdett House,WC2N 6DU,Z50000,8017,Scheme 26 | Principal Designer,Scheme 26 | Principal Designer,1233980,26/03/2024,985.19,No
513,9040,Statutory Year-End Adjustments,Statutory Year End Accounting,Statutory Year-End Adjustments,Other Consultants,ZN,2200383631,C,Derisk (UK) Limited ,Derisk (UK) Limited,Burdett House,WC2N 6DU,Z50000,8007,LWE PD to Review all Projects and,LWE PD to Review all Projects and,1233980,27/03/2024,1555.7,No
514,9040,Statutory Year-End Adjustments,Statutory Year End Accounting,Statutory Year-End Adjustments,Other Consultants,ZN,2200383633,C,Derisk (UK) Limited ,Derisk (UK) Limited,Burdett House,WC2N 6DU,Z50000,8007,LWE Principle Designer Fees - Lot 2 -,LWE Principle Designer Fees - Lot 2 -,1233980,27/03/2024,1147.7,No
515,9040,Statutory Year-End Adjustments,Statutory Year End Accounting,Statutory Year-End Adjustments,Other Consultants,ZN,2200383635,C,Derisk (UK) Limited ,Derisk (UK) Limited,Burdett House,WC2N 6DU,Z50000,8007,LWE Principle Designer Fees - Lot 1 -,LWE Principle Designer Fees - Lot 1 -,1233980,27/03/2024,1096.7,No
516,9040,Statutory Year-End Adjustments,Statutory Year End Accounting,Statutory Year-End Adjustments,Professional Fees : Non Legal,ZN,2200383850,C,Derisk (UK) Limited ,Derisk (UK) Limited,Burdett House,WC2N 6DU,Z50000,8017,PD Services - Tranche 2 - Lot 20,PD Services - Tranche 2 - Lot 20,1233980,27/03/2024,1392,No
517,9040,Statutory Year-End Adjustments,Statutory Year End Accounting,Statutory Year-End Adjustments,Other Consultants,ZN,2200371154,C,Digitize Consultants,Digitize Consultants,2 Arcadian Close,DA5 1JJ,Z50000,8007,C.KJ10080.01BIM management services Year,C.KJ10080.01BIM management services Year,1314644,01/02/2024,4000,No
518,9040,Statutory Year-End Adjustments,Statutory Year End Accounting,Statutory Year-End Adjustments,Other Consultants,ZN,2200371156,C,Digitize Consultants,Digitize Consultants,2 Arcadian Close,DA5 1JJ,Z50000,8007,C.KJ10080.01BIM management services Year,C.KJ10080.01BIM management services Year,1314644,01/02/2024,4000,No
519,9040,Statutory Year-End Adjustments,Statutory Year End Accounting,Statutory Year-End Adjustments,Other Consultants,ZN,2200379212,C,Digitize Consultants,Digitize Consultants,2 Arcadian Close,DA5 1JJ,Z50000,8007,C.KJ10080.01BIM management services Year,C.KJ10080.01BIM management services Year,1314644,07/03/2024,3000,No
520,9040,Statutory Year-End Adjustments,Statutory Year End Accounting,Statutory Year-End Adjustments,Other Consultants,ZN,2200383555,C,Digitize Consultants,Digitize Consultants,2 Arcadian Close,DA5 1JJ,Z50000,8007,C.KJ10080.01BIM management services Year,C.KJ10080.01BIM management services Year,1314644,26/03/2024,3000,No
521,9040,Statutory Year-End Adjustments,Statutory Year End Accounting,Statutory Year-End Adjustments,Payments to main contractor,ZN,2200381855,C,Dma Signs Ltd ,Dma Signs Ltd,"Unit 6, Bridge Works",KT22 7SU,Z50000,8102,Supply and delivery of 16 x inground,Supply and delivery of 16 x inground,1234013,19/03/2024,8405.04,No
522,9040,Statutory Year-End Adjustments,Statutory Year End Accounting,Statutory Year-End Adjustments,Payments to main contractor,ZN,2200365839,C,Doorway Maintenance Co ,Doorway Maintenance Co,17a Harrow Road,IG11 7QZ,Z50000,8102,"EIB- Waynflete Square, front door","EIB- Waynflete Square, front door",1231196,08/01/2024,4106.43,No
523,9040,Statutory Year-End Adjustments,Statutory Year End Accounting,Statutory Year-End Adjustments,Payments to main contractor,ZN,2200371530,C,Doorway Maintenance Co ,Doorway Maintenance Co,17a Harrow Road,IG11 7QZ,Z50000,8102,Sensor lighting at Longlands Court,Sensor lighting at Longlands Court,1231196,02/02/2024,4985,No
524,9040,Statutory Year-End Adjustments,Statutory Year End Accounting,Statutory Year-End Adjustments,Payments to main contractor,ZN,2200383975,C,Doorway Maintenance Co ,Doorway Maintenance Co,17a Harrow Road,IG11 7QZ,Z50000,8102,EIB- sheltered club room additional,EIB- sheltered club room additional,1231196,28/03/2024,2895,No
525,9040,Statutory Year-End Adjustments,Statutory Year End Accounting,Statutory Year-End Adjustments,Creditors Control : AP GRIR,ZN,2200369390,C,redacted,Duncan Thomson,35,WR10 1QX,Z50000,1362,Redact Details,Two additional handrails,1296555,24/01/2024,2265,No
526,9040,Statutory Year-End Adjustments,Statutory Year End Accounting,Statutory Year-End Adjustments,Creditors Control : AP GRIR,ZN,2200376525,C,redacted,Duncan Thomson,35,WR10 1QX,Z50000,1362,Redact Details,Drawing room door at Leighton House,1296555,23/02/2024,1432.5,No
527,9040,Statutory Year-End Adjustments,Statutory Year End Accounting,Statutory Year-End Adjustments,Creditors Control : AP GRIR,ZN,2200376526,C,redacted,Duncan Thomson,35,WR10 1QX,Z50000,1362,Redact Details,To replace the two additional handrail,1296555,23/02/2024,5327.5,No
528,9040,Statutory Year-End Adjustments,Statutory Year End Accounting,Statutory Year-End Adjustments,Professional Fees : Non Legal,ZN,2200366701,C,ECD Architects Ltd,ECD Architects Ltd,65C,SE1 9LR,Z50000,8017,Professional Services for Silchester,Professional Services for Silchester,1234067,12/01/2024,4646.29,No
529,9040,Statutory Year-End Adjustments,Statutory Year End Accounting,Statutory Year-End Adjustments,Professional Fees : Non Legal,ZN,2200371149,C,ECD Architects Ltd,ECD Architects Ltd,65C,SE1 9LR,Z50000,8017,C.KJ 10151 Silchester Est Remedial Wks,C.KJ 10151 Silchester Est Remedial Wks,1234067,01/02/2024,3000,No
530,9040,Statutory Year-End Adjustments,Statutory Year End Accounting,Statutory Year-End Adjustments,Professional Fees : Non Legal,ZN,2200377190,C,ECD Architects Ltd,ECD Architects Ltd,65C,SE1 9LR,Z50000,8017,C.K10151 Silchester Est Remedial Works,C.K10151 Silchester Est Remedial Works,1234067,27/02/2024,3097.52,No
531,9040,Statutory Year-End Adjustments,Statutory Year End Accounting,Statutory Year-End Adjustments,Professional Fees : Non Legal,ZN,2200377197,C,ECD Architects Ltd,ECD Architects Ltd,65C,SE1 9LR,Z50000,8017,C.K10151 Silchester Est Remedial Works,C.K10151 Silchester Est Remedial Works,1234067,27/02/2024,9292.57,No
532,9040,Statutory Year-End Adjustments,Statutory Year End Accounting,Statutory Year-End Adjustments,Professional Fees : Non Legal,ZN,2200377717,C,ECD Architects Ltd,ECD Architects Ltd,65C,SE1 9LR,Z50000,8017,C.KJ 10151 Silchester Est Remedial Wks,C.KJ 10151 Silchester Est Remedial Wks,1234067,29/02/2024,3000,No
533,9040,Statutory Year-End Adjustments,Statutory Year End Accounting,Statutory Year-End Adjustments,Professional Fees : Non Legal,ZN,2200379980,C,ECD Architects Ltd,ECD Architects Ltd,65C,SE1 9LR,Z50000,8017,C.KJ 10151 Silchester Est Remedial Wks,C.KJ 10151 Silchester Est Remedial Wks,1234067,12/03/2024,3000,No
534,9040,Statutory Year-End Adjustments,Statutory Year End Accounting,Statutory Year-End Adjustments,Professional Fees : Non Legal,ZN,2200366475,C,Engie Regeneration Ltd ,EQUANS REGENERATION LIMITED,Conquest House,EN9 1DX,Z50000,8017,Val 1 for Equans working on Silchester,Val 1 for Equans working on Silchester,1231201,11/01/2024,191257.38,No
535,9040,Statutory Year-End Adjustments,Statutory Year End Accounting,Statutory Year-End Adjustments,Professional Fees : Non Legal,ZN,2200369768,C,Engie Regeneration Ltd ,EQUANS REGENERATION LIMITED,Conquest House,EN9 1DX,Z50000,8017,C.KJ10151.01 Silchester Refurbishment,C.KJ10151.01 Silchester Refurbishment,1231201,25/01/2024,160666.05,No
536,9040,Statutory Year-End Adjustments,Statutory Year End Accounting,Statutory Year-End Adjustments,Professional Fees : Non Legal,ZN,2200379052,C,Engie Regeneration Ltd ,EQUANS REGENERATION LIMITED,Conquest House,EN9 1DX,Z50000,8017,C.KJ10151.01 Silchester Refurbishment,C.KJ10151.01 Silchester Refurbishment,1231201,07/03/2024,57366.63,No
537,9040,Statutory Year-End Adjustments,Statutory Year End Accounting,Statutory Year-End Adjustments,Professional Fees : Non Legal,ZN,2200382839,C,Engie Regeneration Ltd ,EQUANS REGENERATION LIMITED,Conquest House,EN9 1DX,Z50000,8017,C.KJ10151.01 Silchester Refurbishment,C.KJ10151.01 Silchester Refurbishment,1231201,23/03/2024,328010.7,No
538,9040,Statutory Year-End Adjustments,Statutory Year End Accounting,Statutory Year-End Adjustments,Other Consultants,ZN,2200364914,C,Earl Kendrick (London) Limited,Earl Kendrick (London) Limited,2nd Floor,HA1 3EX,Z50000,8007,Building Surveys for TA Acquisitions,Building Surveys for TA Acquisitions,1288229,02/01/2024,975,No
539,9040,Statutory Year-End Adjustments,Statutory Year End Accounting,Statutory Year-End Adjustments,Other Consultants,ZN,2200364915,C,Earl Kendrick (London) Limited,Earl Kendrick (London) Limited,2nd Floor,HA1 3EX,Z50000,8007,Building Surveys for TA Acquisitions,Building Surveys for TA Acquisitions,1288229,02/01/2024,975,No
540,9040,Statutory Year-End Adjustments,Statutory Year End Accounting,Statutory Year-End Adjustments,Site Works,ZN,2200372121,C,Earl Kendrick (London) Limited,Earl Kendrick (London) Limited,2nd Floor,HA1 3EX,Z50000,8130,Re: 10 building surveys for the TA,Re: 10 building surveys for the TA,1288229,05/02/2024,975,No
541,9040,Statutory Year-End Adjustments,Statutory Year End Accounting,Statutory Year-End Adjustments,Site Works,ZN,2200374293,C,Earl Kendrick (London) Limited,Earl Kendrick (London) Limited,2nd Floor,HA1 3EX,Z50000,8130,Re: 10 building surveys for the TA,Re: 10 building surveys for the TA,1288229,14/02/2024,900,No
542,9040,Statutory Year-End Adjustments,Statutory Year End Accounting,Statutory Year-End Adjustments,Electrical & Mechanical Engineers,ZN,2200365297,C,Ecolution Group Limited,Ecolution Group Limited,Taylors Lane,ME19 5ES,Z50000,8024,PV Batteries Camelford Court,PV Batteries Camelford Court,1305294,04/01/2024,18429.94,No
543,9040,Statutory Year-End Adjustments,Statutory Year End Accounting,Statutory Year-End Adjustments,Electrical & Mechanical Engineers,ZN,2200374767,C,Ecolution Group Limited,Ecolution Group Limited,Taylors Lane,ME19 5ES,Z50000,8024,25kW Solar Edge Inverter & Battery,25kW Solar Edge Inverter & Battery,1305294,16/02/2024,11712,No
544,9040,Statutory Year-End Adjustments,Statutory Year End Accounting,Statutory Year-End Adjustments,Payments to main contractor,ZN,2200377524,C,Ecolution Group Limited,Ecolution Group Limited,Taylors Lane,ME19 5ES,Z50000,8102,25 Bramley House - S/Fit Electric boiler,25 Bramley House - S/Fit Electric boiler,1305294,29/02/2024,12225,No
545,9040,Statutory Year-End Adjustments,Statutory Year End Accounting,Statutory Year-End Adjustments,Construction : enhancements,ZN,2200377912,C,Ecolution Group Limited,Ecolution Group Limited,Taylors Lane,ME19 5ES,Z50000,8035,PV installation including battery,PV installation including battery,1305294,01/03/2024,15117.99,No
546,9040,Statutory Year-End Adjustments,Statutory Year End Accounting,Statutory Year-End Adjustments,Electrical & Mechanical Engineers,ZN,2200379056,C,Ecolution Group Limited,Ecolution Group Limited,Taylors Lane,ME19 5ES,Z50000,8024,Install ASHP Ideal model including,Install ASHP Ideal model including,1305294,07/03/2024,13311,No
547,9040,Statutory Year-End Adjustments,Statutory Year End Accounting,Statutory Year-End Adjustments,Professional Fees : Non Legal,ZN,2200367398,C,Electroplan Contracting Limited,Electroplan Contracting Limited,Mansard House,CM2 8QL,Z50000,8017,C.KJ10211.01 Electric board,C.KJ10211.01 Electric board,1308330,16/01/2024,85892.59,No
548,9040,Statutory Year-End Adjustments,Statutory Year End Accounting,Statutory Year-End Adjustments,Professional Fees : Non Legal,ZN,2200377282,C,Electroplan Contracting Limited,Electroplan Contracting Limited,Mansard House,CM2 8QL,Z50000,8017,C.KJ10211.01 Electric board,C.KJ10211.01 Electric board,1308330,28/02/2024,36792.42,No
549,9040,Statutory Year-End Adjustments,Statutory Year End Accounting,Statutory Year-End Adjustments,Professional Fees : Non Legal,ZN,2200379877,C,Electroplan Contracting Limited,Electroplan Contracting Limited,Mansard House,CM2 8QL,Z50000,8017,C.KJ10211.01 Electric board,C.KJ10211.01 Electric board,1308330,11/03/2024,19147.26,No
550,9040,Statutory Year-End Adjustments,Statutory Year End Accounting,Statutory Year-End Adjustments,Professional Fees : Non Legal,ZN,2200382836,C,Electroplan Contracting Limited,Electroplan Contracting Limited,Mansard House,CM2 8QL,Z50000,8017,C.KJ10211.01 Electric board,C.KJ10211.01 Electric board,1308330,23/03/2024,27285.87,No
551,9040,Statutory Year-End Adjustments,Statutory Year End Accounting,Statutory Year-End Adjustments,Other Consultants,ZN,2200380588,C,Element Digital Engineering Limited,Element Digital Engineering Limited,Davidson Building,WC2E 7HA,Z50000,8007,Kick off meeting and Issue of basis of,Kick off meeting and Issue of basis of,1320487,13/03/2024,5890,No
552,9040,Statutory Year-End Adjustments,Statutory Year End Accounting,Statutory Year-End Adjustments,Payments to main contractor,ZN,2200369303,C,Emisphere Ltd ,Emisphere Ltd,14 Chestnut Drive,HA3 7DJ,Z50000,8102,9 Kelfield Court,9 Kelfield Court,1231200,24/01/2024,7630,No
553,9040,Statutory Year-End Adjustments,Statutory Year End Accounting,Statutory Year-End Adjustments,Payments to main contractor,ZN,2200381122,C,Emisphere Ltd ,Emisphere Ltd,14 Chestnut Drive,HA3 7DJ,Z50000,8102,Pitch 6 Stable Way,Pitch 6 Stable Way,1231200,15/03/2024,6860,No
554,9040,Statutory Year-End Adjustments,Statutory Year End Accounting,Statutory Year-End Adjustments,Construction : enhancements,ZN,2200364888,C,F.M Conway Ltd ,F.M Conway Ltd,Conway House,DA1 3QY,Z50000,8035,Sloane Street - S278 Public Realm,Sloane Street - S278 Public Realm,1231208,02/01/2024,608339.1,No
555,9040,Statutory Year-End Adjustments,Statutory Year End Accounting,Statutory Year-End Adjustments,Payments to main contractor,ZN,2200365991,C,F.M Conway Ltd ,F.M Conway Ltd,Conway House,DA1 3QY,Z50000,8102,Hornton Street - cycle hoops as per,Hornton Street - cycle hoops as per,1231208,09/01/2024,728.72,No
556,9040,Statutory Year-End Adjustments,Statutory Year End Accounting,Statutory Year-End Adjustments,Payments to main contractor,ZN,2200368645,C,F.M Conway Ltd ,F.M Conway Ltd,Conway House,DA1 3QY,Z50000,8102,REMOVE & RE-ERECT AFTER REFURB 37 No.,REMOVE & RE-ERECT AFTER REFURB 37 No.,1231208,22/01/2024,2899.4,No
557,9040,Statutory Year-End Adjustments,Statutory Year End Accounting,Statutory Year-End Adjustments,Payments to main contractor,ZN,2200369712,C,F.M Conway Ltd ,F.M Conway Ltd,Conway House,DA1 3QY,Z50000,8102,Kensington Park Road Planter removal for,Kensington Park Road Planter removal for,1231208,25/01/2024,3885.52,No
558,9040,Statutory Year-End Adjustments,Statutory Year End Accounting,Statutory Year-End Adjustments,Payments to main contractor,ZN,2200369933,C,F.M Conway Ltd ,F.M Conway Ltd,Conway House,DA1 3QY,Z50000,8102,FAO: Ben Cartledge.  Bute Street streel,FAO: Ben Cartledge.  Bute Street streel,1231208,26/01/2024,20028.04,No
559,9040,Statutory Year-End Adjustments,Statutory Year End Accounting,Statutory Year-End Adjustments,Payments to main contractor,ZN,2200371162,C,F.M Conway Ltd ,F.M Conway Ltd,Conway House,DA1 3QY,Z50000,8102,S106 Cheniston Garden - Paving works,S106 Cheniston Garden - Paving works,1231208,01/02/2024,155106.38,No
560,9040,Statutory Year-End Adjustments,Statutory Year End Accounting,Statutory Year-End Adjustments,Payments to main contractor,ZN,2200371172,C,F.M Conway Ltd ,F.M Conway Ltd,Conway House,DA1 3QY,Z50000,8102,S106 Cheniston Garden - Paving works,S106 Cheniston Garden - Paving works,1231208,01/02/2024,40000,No
561,9040,Statutory Year-End Adjustments,Statutory Year End Accounting,Statutory Year-End Adjustments,Payments to main contractor,ZN,2200371345,C,F.M Conway Ltd ,F.M Conway Ltd,Conway House,DA1 3QY,Z50000,8102,FAO: Ben Cartledge.  Bute Street streel,FAO: Ben Cartledge.  Bute Street streel,1231208,01/02/2024,1896.61,No
562,9040,Statutory Year-End Adjustments,Statutory Year End Accounting,Statutory Year-End Adjustments,Construction : enhancements,ZN,2200372886,C,F.M Conway Ltd ,F.M Conway Ltd,Conway House,DA1 3QY,Z50000,8035,Sloane Street - S278 Public Realm,Sloane Street - S278 Public Realm,1231208,08/02/2024,486541.32,No
563,9040,Statutory Year-End Adjustments,Statutory Year End Accounting,Statutory Year-End Adjustments,Payments to main contractor,ZN,2200373449,C,F.M Conway Ltd ,F.M Conway Ltd,Conway House,DA1 3QY,Z50000,8102,Bute St public realm scheme - civils,Bute St public realm scheme - civils,1231208,09/02/2024,111000,No
564,9040,Statutory Year-End Adjustments,Statutory Year End Accounting,Statutory Year-End Adjustments,Payments to main contractor,ZN,2200373450,C,F.M Conway Ltd ,F.M Conway Ltd,Conway House,DA1 3QY,Z50000,8102,Carnival cycle stand trip hazard,Carnival cycle stand trip hazard,1231208,09/02/2024,2301.63,No
565,9040,Statutory Year-End Adjustments,Statutory Year End Accounting,Statutory Year-End Adjustments,Construction : enhancements,ZN,2200373653,C,F.M Conway Ltd ,F.M Conway Ltd,Conway House,DA1 3QY,Z50000,8035,SIGN REDUCTION - STREET SCAPE FULHAM,SIGN REDUCTION - STREET SCAPE FULHAM,1231208,12/02/2024,906.23,No
566,9040,Statutory Year-End Adjustments,Statutory Year End Accounting,Statutory Year-End Adjustments,Payments to main contractor,ZN,2200375127,C,F.M Conway Ltd ,F.M Conway Ltd,Conway House,DA1 3QY,Z50000,8102,Parking CCTV enforcement (box junctions),Parking CCTV enforcement (box junctions),1231208,19/02/2024,838.5,No
567,9040,Statutory Year-End Adjustments,Statutory Year End Accounting,Statutory Year-End Adjustments,Payments to main contractor,ZN,2200375393,C,F.M Conway Ltd ,F.M Conway Ltd,Conway House,DA1 3QY,Z50000,8102,PAVILION ROAD DIRECTION CHANGES,PAVILION ROAD DIRECTION CHANGES,1231208,20/02/2024,2620.23,No
568,9040,Statutory Year-End Adjustments,Statutory Year End Accounting,Statutory Year-End Adjustments,Payments to main contractor,ZN,2200375394,C,F.M Conway Ltd ,F.M Conway Ltd,Conway House,DA1 3QY,Z50000,8102,PAVILION ROAD DIRECTION CHANGES,PAVILION ROAD DIRECTION CHANGES,1231208,20/02/2024,6379.77,No
569,9040,Statutory Year-End Adjustments,Statutory Year End Accounting,Statutory Year-End Adjustments,Payments to main contractor,ZN,2200376835,C,F.M Conway Ltd ,F.M Conway Ltd,Conway House,DA1 3QY,Z50000,8102,12-018 Fulham Rd - Drayton Gardens,12-018 Fulham Rd - Drayton Gardens,1231208,26/02/2024,43776.23,No
570,9040,Statutory Year-End Adjustments,Statutory Year End Accounting,Statutory Year-End Adjustments,Payments to main contractor,ZN,2200376836,C,F.M Conway Ltd ,F.M Conway Ltd,Conway House,DA1 3QY,Z50000,8102,Fulham Rd-Drayton Grdns 12-018 - Civils,Fulham Rd-Drayton Grdns 12-018 - Civils,1231208,26/02/2024,89300,No
571,9040,Statutory Year-End Adjustments,Statutory Year End Accounting,Statutory Year-End Adjustments,Construction : enhancements,ZN,2200377790,C,F.M Conway Ltd ,F.M Conway Ltd,Conway House,DA1 3QY,Z50000,8035,Sloane Street - S278 Public Realm,Sloane Street - S278 Public Realm,1231208,01/03/2024,562324.31,No
572,9040,Statutory Year-End Adjustments,Statutory Year End Accounting,Statutory Year-End Adjustments,Payments to main contractor,ZN,2200378937,C,F.M Conway Ltd ,F.M Conway Ltd,Conway House,DA1 3QY,Z50000,8102,Bute St public realm scheme - civils,Bute St public realm scheme - civils,1231208,06/03/2024,153000,No
573,9040,Statutory Year-End Adjustments,Statutory Year End Accounting,Statutory Year-End Adjustments,Payments to main contractor,ZN,2200381110,C,F.M Conway Ltd ,F.M Conway Ltd,Conway House,DA1 3QY,Z50000,8102,Hollywood Road - civils as per estimate,Hollywood Road - civils as per estimate,1231208,15/03/2024,52804,No
574,9040,Statutory Year-End Adjustments,Statutory Year End Accounting,Statutory Year-End Adjustments,Payments to main contractor,ZN,2200381111,C,F.M Conway Ltd ,F.M Conway Ltd,Conway House,DA1 3QY,Z50000,8102,Hollywood Road - pre-order materials,Hollywood Road - pre-order materials,1231208,15/03/2024,83196,No
575,9040,Statutory Year-End Adjustments,Statutory Year End Accounting,Statutory Year-End Adjustments,Payments to main contractor,ZN,2200384168,C,F.M Conway Ltd ,F.M Conway Ltd,Conway House,DA1 3QY,Z50000,8102,Bute St public realm scheme - civils,Bute St public realm scheme - civils,1231208,28/03/2024,88567,No
576,9040,Statutory Year-End Adjustments,Statutory Year End Accounting,Statutory Year-End Adjustments,Payments to main contractor,ZN,2200384194,C,F.M Conway Ltd ,F.M Conway Ltd,Conway House,DA1 3QY,Z50000,8102,LED STREET LIGHTING GEAR TRAYS 950 No.,LED STREET LIGHTING GEAR TRAYS 950 No.,1231208,28/03/2024,333440.5,No
577,9040,Statutory Year-End Adjustments,Statutory Year End Accounting,Statutory Year-End Adjustments,Creditors Control : AP GRIR,ZN,2200369531,C,FURNITURE@WORK LTD,FURNITURE@WORK LTD,89 Seaward Street,G41 1HJ,Z50000,1362,Gocabby Charge & Sync,Gocabby Charge & Sync,1317486,25/01/2024,1106,No
578,9040,Statutory Year-End Adjustments,Statutory Year End Accounting,Statutory Year-End Adjustments,Creditors Control : AP GRIR,ZN,2200370220,C,FURNITURE@WORK LTD,FURNITURE@WORK LTD,89 Seaward Street,G41 1HJ,Z50000,1362,Probe LapBox Multi-Door Laptop Charging,Probe LapBox Multi-Door Laptop Charging,1317486,29/01/2024,742,No
579,9040,Statutory Year-End Adjustments,Statutory Year End Accounting,Statutory Year-End Adjustments,Creditors Control : AP GRIR,ZN,2200370220,C,FURNITURE@WORK LTD,FURNITURE@WORK LTD,89 Seaward Street,G41 1HJ,Z50000,1362,Probe LapBox Multi-Door Laptop Charging,Probe LapBox Multi-Door Laptop Charging,1317486,29/01/2024,742,No
580,9040,Statutory Year-End Adjustments,Statutory Year End Accounting,Statutory Year-End Adjustments,Creditors Control : AP GRIR,ZN,2200370221,C,FURNITURE@WORK LTD,FURNITURE@WORK LTD,89 Seaward Street,G41 1HJ,Z50000,1362,Probe LapBox Multi-Door Laptop Charging,Probe LapBox Multi-Door Laptop Charging,1317486,29/01/2024,742,No
581,9040,Statutory Year-End Adjustments,Statutory Year End Accounting,Statutory Year-End Adjustments,Creditors Control : AP GRIR,ZN,2200370221,C,FURNITURE@WORK LTD,FURNITURE@WORK LTD,89 Seaward Street,G41 1HJ,Z50000,1362,Probe LapBox Multi-Door Laptop Charging,Probe LapBox Multi-Door Laptop Charging,1317486,29/01/2024,742,No
582,9040,Statutory Year-End Adjustments,Statutory Year End Accounting,Statutory Year-End Adjustments,Creditors Control : AP GRIR,ZN,2200373627,C,FURNITURE@WORK LTD,FURNITURE@WORK LTD,89 Seaward Street,G41 1HJ,Z50000,1362,Probe LapBox Multi-Door Laptop Charging,Probe LapBox Multi-Door Laptop Charging,1317486,12/02/2024,742,No
583,9040,Statutory Year-End Adjustments,Statutory Year End Accounting,Statutory Year-End Adjustments,Creditors Control : AP GRIR,ZN,2200373627,C,FURNITURE@WORK LTD,FURNITURE@WORK LTD,89 Seaward Street,G41 1HJ,Z50000,1362,Probe LapBox Multi-Door Laptop Charging,Probe LapBox Multi-Door Laptop Charging,1317486,12/02/2024,742,No
584,9040,Statutory Year-End Adjustments,Statutory Year End Accounting,Statutory Year-End Adjustments,Creditors Control : AP GRIR,ZN,2200373630,C,FURNITURE@WORK LTD,FURNITURE@WORK LTD,89 Seaward Street,G41 1HJ,Z50000,1362,Probe LapBox Multi-Door Laptop Charging,Probe LapBox Multi-Door Laptop Charging,1317486,12/02/2024,742,No
585,9040,Statutory Year-End Adjustments,Statutory Year End Accounting,Statutory Year-End Adjustments,Creditors Control : AP GRIR,ZN,2200373630,C,FURNITURE@WORK LTD,FURNITURE@WORK LTD,89 Seaward Street,G41 1HJ,Z50000,1362,Probe LapBox Multi-Door Laptop Charging,Probe LapBox Multi-Door Laptop Charging,1317486,12/02/2024,742,No
586,9040,Statutory Year-End Adjustments,Statutory Year End Accounting,Statutory Year-End Adjustments,Creditors Control : AP GRIR,ZN,2200373631,C,FURNITURE@WORK LTD,FURNITURE@WORK LTD,89 Seaward Street,G41 1HJ,Z50000,1362,Probe LapBox Multi-Door Laptop Charging,Probe LapBox Multi-Door Laptop Charging,1317486,12/02/2024,742,No
587,9040,Statutory Year-End Adjustments,Statutory Year End Accounting,Statutory Year-End Adjustments,Creditors Control : AP GRIR,ZN,2200373631,C,FURNITURE@WORK LTD,FURNITURE@WORK LTD,89 Seaward Street,G41 1HJ,Z50000,1362,Probe LapBox Multi-Door Laptop Charging,Probe LapBox Multi-Door Laptop Charging,1317486,12/02/2024,742,No
588,9040,Statutory Year-End Adjustments,Statutory Year End Accounting,Statutory Year-End Adjustments,Creditors Control : AP GRIR,ZN,2200373632,C,FURNITURE@WORK LTD,FURNITURE@WORK LTD,89 Seaward Street,G41 1HJ,Z50000,1362,Probe LapBox Multi-Door Laptop Charging,Probe LapBox Multi-Door Laptop Charging,1317486,12/02/2024,742,No
589,9040,Statutory Year-End Adjustments,Statutory Year End Accounting,Statutory Year-End Adjustments,Creditors Control : AP GRIR,ZN,2200373632,C,FURNITURE@WORK LTD,FURNITURE@WORK LTD,89 Seaward Street,G41 1HJ,Z50000,1362,Probe LapBox Multi-Door Laptop Charging,Probe LapBox Multi-Door Laptop Charging,1317486,12/02/2024,742,No
590,9040,Statutory Year-End Adjustments,Statutory Year End Accounting,Statutory Year-End Adjustments,Creditors Control : AP GRIR,ZN,2200374610,C,FURNITURE@WORK LTD,FURNITURE@WORK LTD,89 Seaward Street,G41 1HJ,Z50000,1362,Probe LapBox Multi-Door Laptop Charging,Probe LapBox Multi-Door Laptop Charging,1317486,15/02/2024,742,No
591,9040,Statutory Year-End Adjustments,Statutory Year End Accounting,Statutory Year-End Adjustments,Creditors Control : AP GRIR,ZN,2200374610,C,FURNITURE@WORK LTD,FURNITURE@WORK LTD,89 Seaward Street,G41 1HJ,Z50000,1362,Probe LapBox Multi-Door Laptop Charging,Probe LapBox Multi-Door Laptop Charging,1317486,15/02/2024,742,No
592,9040,Statutory Year-End Adjustments,Statutory Year End Accounting,Statutory Year-End Adjustments,Creditors Control : AP GRIR,ZN,2200380190,C,FURNITURE@WORK LTD,FURNITURE@WORK LTD,89 Seaward Street,G41 1HJ,Z50000,1362,Probe LapBox Multi-Door Laptop Charging,Probe LapBox Multi-Door Laptop Charging,1317486,12/03/2024,742,No
593,9040,Statutory Year-End Adjustments,Statutory Year End Accounting,Statutory Year-End Adjustments,Creditors Control : AP GRIR,ZN,2200380190,C,FURNITURE@WORK LTD,FURNITURE@WORK LTD,89 Seaward Street,G41 1HJ,Z50000,1362,Probe LapBox Multi-Door Laptop Charging,Probe LapBox Multi-Door Laptop Charging,1317486,12/03/2024,742,No
594,9040,Statutory Year-End Adjustments,Statutory Year End Accounting,Statutory Year-End Adjustments,Payments to main contractor,ZN,2200369423,C,Fastsigns Hammersmith,Fastsigns Hammersmith,"UNIT 8, ROSLIN SQUARE",W3 8DH,Z50000,8102,Bramley House Stainless Steel Signage x,Bramley House Stainless Steel Signage x,1234400,24/01/2024,5670,No
595,9040,Statutory Year-End Adjustments,Statutory Year End Accounting,Statutory Year-End Adjustments,Payments to main contractor,ZN,2200376905,C,First Choice Drainage Solutions Ltd,First Choice Drainage Solutions Ltd,Unit 4,CM17 0RB,Z50000,8102,"Sunbeam Gardens Park - install pipework,","Sunbeam Gardens Park - install pipework,",1285977,26/02/2024,4303,No
596,9040,Statutory Year-End Adjustments,Statutory Year End Accounting,Statutory Year-End Adjustments,Payments to main contractor,ZN,2200377037,C,First Choice Drainage Solutions Ltd,First Choice Drainage Solutions Ltd,Unit 4,CM17 0RB,Z50000,8102,Supply and install a 4 crated soakaway,Supply and install a 4 crated soakaway,1285977,27/02/2024,3330,No
597,9040,Statutory Year-End Adjustments,Statutory Year End Accounting,Statutory Year-End Adjustments,Payments to main contractor,ZN,2200377888,C,First Choice Drainage Solutions Ltd,First Choice Drainage Solutions Ltd,Unit 4,CM17 0RB,Z50000,8102,Dovehouse Green soakaway - additional,Dovehouse Green soakaway - additional,1285977,01/03/2024,2550,No
598,9040,Statutory Year-End Adjustments,Statutory Year End Accounting,Statutory Year-End Adjustments,Payments to main contractor,ZN,2200381714,C,First Choice Drainage Solutions Ltd,First Choice Drainage Solutions Ltd,Unit 4,CM17 0RB,Z50000,8102,Powis Square Park installation of,Powis Square Park installation of,1285977,19/03/2024,4303,No
599,9040,Statutory Year-End Adjustments,Statutory Year End Accounting,Statutory Year-End Adjustments,Payments to main contractor,ZN,2200365010,C,Fountaineers,Fountaineers,Unit 3,BR3 1HG,Z50000,8102,Kensington Memorial Park - Water Park -,Kensington Memorial Park - Water Park -,1307408,03/01/2024,12067,No
600,9040,Statutory Year-End Adjustments,Statutory Year End Accounting,Statutory Year-End Adjustments,Payments to main contractor,ZN,2200370820,C,Fountaineers,Fountaineers,Unit 3,BR3 1HG,Z50000,8102,Kensington Memorial Park - Water Park -,Kensington Memorial Park - Water Park -,1307408,31/01/2024,7882,No
601,9040,Statutory Year-End Adjustments,Statutory Year End Accounting,Statutory Year-End Adjustments,Payments to main contractor,ZN,2200382315,C,Fountaineers,Fountaineers,Unit 3,BR3 1HG,Z50000,8102,Kensington Memorial Park - Water Play -,Kensington Memorial Park - Water Play -,1307408,21/03/2024,47172,No
602,9040,Statutory Year-End Adjustments,Statutory Year End Accounting,Statutory Year-End Adjustments,Payments to main contractor,ZN,2200382543,C,Freeway Lift Services Ltd ,Freeway Lift Services Ltd,Dolphin Wharf,UB8 2UB,Z50000,8102,298A Earls Court Road - Aborted Costs,298A Earls Court Road - Aborted Costs,1231213,22/03/2024,543,No
603,9040,Statutory Year-End Adjustments,Statutory Year End Accounting,Statutory Year-End Adjustments,Payments to main contractor,ZN,2200382544,C,Freeway Lift Services Ltd ,Freeway Lift Services Ltd,Dolphin Wharf,UB8 2UB,Z50000,8102,20 Stable Way,20 Stable Way,1231213,22/03/2024,24356,No
604,9040,Statutory Year-End Adjustments,Statutory Year End Accounting,Statutory Year-End Adjustments,Surveyors,ZN,2200365378,C,Fusion Project Management Ltd,Fusion Project Management Ltd,9 Springfield Lyons Approach,CM2 5LB,Z50000,8010,KAA 1FE expansion QS and consultants,KAA 1FE expansion QS and consultants,1268369,04/01/2024,7408.68,No
605,9040,Statutory Year-End Adjustments,Statutory Year End Accounting,Statutory Year-End Adjustments,Surveyors,ZN,2200365713,C,Fusion Project Management Ltd,Fusion Project Management Ltd,9 Springfield Lyons Approach,CM2 5LB,Z50000,8010,Bousfield School - refurb feasibility,Bousfield School - refurb feasibility,1268369,08/01/2024,3000,No
606,9040,Statutory Year-End Adjustments,Statutory Year End Accounting,Statutory Year-End Adjustments,Surveyors,ZN,2200365714,C,Fusion Project Management Ltd,Fusion Project Management Ltd,9 Springfield Lyons Approach,CM2 5LB,Z50000,8010,Bousfield School - refurb feasibility,Bousfield School - refurb feasibility,1268369,08/01/2024,17213,No
607,9040,Statutory Year-End Adjustments,Statutory Year End Accounting,Statutory Year-End Adjustments,Surveyors,ZN,2200365715,C,Fusion Project Management Ltd,Fusion Project Management Ltd,9 Springfield Lyons Approach,CM2 5LB,Z50000,8010,Bousfield School - refurb feasibility,Bousfield School - refurb feasibility,1268369,08/01/2024,17000,No
608,9040,Statutory Year-End Adjustments,Statutory Year End Accounting,Statutory Year-End Adjustments,Surveyors,ZN,2200365716,C,Fusion Project Management Ltd,Fusion Project Management Ltd,9 Springfield Lyons Approach,CM2 5LB,Z50000,8010,Bousfield School - refurb feasibility,Bousfield School - refurb feasibility,1268369,08/01/2024,1000,No
609,9040,Statutory Year-End Adjustments,Statutory Year End Accounting,Statutory Year-End Adjustments,Surveyors,ZN,2200365717,C,Fusion Project Management Ltd,Fusion Project Management Ltd,9 Springfield Lyons Approach,CM2 5LB,Z50000,8010,Bousfield School - refurb feasibility,Bousfield School - refurb feasibility,1268369,08/01/2024,17000,No
610,9040,Statutory Year-End Adjustments,Statutory Year End Accounting,Statutory Year-End Adjustments,Surveyors,ZN,2200365718,C,Fusion Project Management Ltd,Fusion Project Management Ltd,9 Springfield Lyons Approach,CM2 5LB,Z50000,8010,Bousfield School - refurb feasibility,Bousfield School - refurb feasibility,1268369,08/01/2024,1500,No
611,9040,Statutory Year-End Adjustments,Statutory Year End Accounting,Statutory Year-End Adjustments,Surveyors,ZN,2200365725,C,Fusion Project Management Ltd,Fusion Project Management Ltd,9 Springfield Lyons Approach,CM2 5LB,Z50000,8010,Bousfield School - refurb feasibility,Bousfield School - refurb feasibility,1268369,08/01/2024,3000,No
612,9040,Statutory Year-End Adjustments,Statutory Year End Accounting,Statutory Year-End Adjustments,Payments to main contractor,ZN,2200370363,C,Fusion Project Management Ltd,Fusion Project Management Ltd,9 Springfield Lyons Approach,CM2 5LB,Z50000,8102,Bousfield Primary Project Management and,Bousfield Primary Project Management and,1268369,29/01/2024,6400,No
613,9040,Statutory Year-End Adjustments,Statutory Year End Accounting,Statutory Year-End Adjustments,Surveyors,ZN,2200373067,C,Fusion Project Management Ltd,Fusion Project Management Ltd,9 Springfield Lyons Approach,CM2 5LB,Z50000,8010,KAA 1FE expansion QS and consultants,KAA 1FE expansion QS and consultants,1268369,08/02/2024,3075,No
614,9040,Statutory Year-End Adjustments,Statutory Year End Accounting,Statutory Year-End Adjustments,Surveyors,ZN,2200373068,C,Fusion Project Management Ltd,Fusion Project Management Ltd,9 Springfield Lyons Approach,CM2 5LB,Z50000,8010,KAA 1FE expansion QS and consultants,KAA 1FE expansion QS and consultants,1268369,08/02/2024,3075,No
615,9040,Statutory Year-End Adjustments,Statutory Year End Accounting,Statutory Year-End Adjustments,Architects,ZN,2200376280,C,Fusion Project Management Ltd,Fusion Project Management Ltd,9 Springfield Lyons Approach,CM2 5LB,Z50000,8021,Kensington Aldridge Academy Phase 2,Kensington Aldridge Academy Phase 2,1268369,22/02/2024,3540,No
616,9040,Statutory Year-End Adjustments,Statutory Year End Accounting,Statutory Year-End Adjustments,Architects,ZN,2200380096,C,Fusion Project Management Ltd,Fusion Project Management Ltd,9 Springfield Lyons Approach,CM2 5LB,Z50000,8021,Kensington Aldridge Academy Phase 2,Kensington Aldridge Academy Phase 2,1268369,12/03/2024,3540,No
617,9040,Statutory Year-End Adjustments,Statutory Year End Accounting,Statutory Year-End Adjustments,Design Consultant,ZN,2200380097,C,Fusion Project Management Ltd,Fusion Project Management Ltd,9 Springfield Lyons Approach,CM2 5LB,Z50000,8004,All Saints Catholic College design,All Saints Catholic College design,1268369,12/03/2024,55813.34,No
